Workbook

Sheet Cover Page
A2: Final Risk Evaluation for 1,4-Dioxane
A7: Supplemental Information File on
A8: Occupational Risk Calculations
A9: 1,4-Dioxane
A10: CASRN: 123-91-1
A12: December 2020

Sheet Read Me
A1: Risk Evaluation for 1,4-Dioxane
A2: Supplemental File on 1,4-Dioxane Risk Calculations, December 2020
A3: Description of this workbook:
A4: The risk calculator for 1,4-dioxane contains the following spreadsheets: 1) Dashboard, 2) Bridge Table, 3) Risk Results (RR), 4) Health Data, 5) Dermal Exposure, 6) Dermal Crosswalk, 7) Inhalation Exposure, 8) List Values, and 9) Exposure Factors. The workbook is designed so that the user need only to use/change inputs the first three spreadsheets (i.e. the Dashboard, the Bridge Table, and the RR), which have tabs colored green and contain the results of the risk calculator. The remaining spreadsheets contain data storage and calculation spreadsheets.
A6: Key Worksheets | B6: Description
A7: Dashboard | B7: This Dashboard is an interactive spreadsheet that allows a user to view exposure results for a selected conditions of use (COU) and with a single personal protective equipment (PPE) option of their choosing (i.e. respirator assignmed protection factor [APF] or Glove Protection Factor [PF]). The user can select a) the desired conditions of use (COU), b) PPE options, and c) dermal exposures for the worker type (either an average adult or a woman of childbearing age) from a drop-down menu. The exposure estimates are shown in the “Exposure Outputs” section for both inhalation and dermal routes and for high-end and central tendency exposures. For inhalation exposures the columns show results for both worker and occupational non-user (ONU) exposures. The “Risk Estimation” sections are separated into acute, chronic non-cancer and cancer sections. For each section there is a brief description of the hazard endpoint and the hazard value i.e. human equivalent concentration (HEC) for non-cancer effects from inhalation exposure, human equivalent dose (HED) for non-cancer effects from dermal exposure or a slope factor for cancer and the benchmark margins of exposure (MOEs) or benchmark values for cancer risk are provided to the right of the hazard value. The risk estimations show two columns of risk estimates: one column for exposures without PPE and one column for the results of the user-selected PPE option. These two columns allow the user to compare with and without PPE results side-by-side.
A8: Bridge Table | B8: The table provides summary of the risk estimates for inhalation and dermal exposures for all occupational exposure scenarios. Risk estimates that exceed the benchmark (i.e., MOEs less than the benchmark MOE or cancer risks greater than the cancer risk benchmark) are highlighted by bolding the number and shading the cell.
A9: RR | B9: The RR spreadsheet is an expanded version of the Dashboard. Similar to the Dashboard the RR allows the user to select a COU. However, the user also selected to see results for a worker or ONU and instead of requiring a user to select a single exposure reduction option, the Heat Map displays all the PPE options. The RR spreadsheet has a column each for no PPE and each PPE option (i.e. APF or PF). The RR spreadsheet has a row for each toxicity endpoint, and each row shows the cancer risk or MOE values. Similar to the Dashboard, the RR spreadsheet shades results if the MOE or cancer risk exceeds the benchmark MOE or cancer benchmark.
A10: Health Data, Dermal Exposure, Dermal Crosswalk, Inhalation Exposure, List Values and Exposure Factors | B10: As described above the remaining spreadsheets are data storage and calculation spreadsheets. These worksheets store the exposure estimates, health values and store some of the risk calculations. The user does not need to access these worksheets to use the Dashboard and RR spreadsheets as described above; all results are automatically loaded into the Dashboard and RR spreadsheets.

Sheet Dashboard
C3: Condition of Use | G3: Personal Protective Equipment (PPE) | M3: Dermal
C4: Select the Condition of Use (select) | G4: Respirator Protection Factor (Select) | H4: Glove Protection Factor (Select) | M4: Worker Type (select)
C5: Repackaging (Bottle) | G5: 10 | H5: 5 | M5: Average Adult Worker
C7: 8-hr TWA Exposures | M7: Dermal
C8: Exposure Outputs | M8: Exposure Outputs
C9: Category | D9: Exposure Level | E9: Full-Shift (Eight-Hour) TWA Exposure | F9: Chronic, Non-Cancer Exposures | G9: Chronic, Cancer Exposures | M9: Category | N9: Exposure Level | O9: Potential Dose Rate | P9: Acute Retained Dose | Q9: Chronic Retained Dose, Non-Cancer | R9: Chronic Retained Dose, Cancer
E10: C1,4-Dioxane, 8-hr TWA (mg/m3) | F10: ADC1,4-Dioxane, 8-hr TWA (mg/m3) | G10: LADC1,4-Dioxane, 8-hr TWA (mg/m3) | O10: APDRexp (mg/day) | P10: ADD1,4-Dioxane (mg/kg-day) | Q10: CRD1,4-Dioxane (mg/kg-day) | R10: CRD1,4-Dioxane (mg/kg-day)
C11: Worker | D11: High End | E11: =SUMIFS('Inhalation Exposure'!$H:$H,'Inhalation Exposure'!$C:$C,$C$5,'Inhalation Exposure'!$D:$D,$C11) -> 33.11090714 | F11: =SUMIFS('Inhalation Exposure'!$L:$L,'Inhalation Exposure'!$C:$C,$C$5,'Inhalation Exposure'!$D:$D,$C11) -> 3.394554304 | G11: =SUMIFS('Inhalation Exposure'!$N:$N,'Inhalation Exposure'!$C:$C,$C$5,'Inhalation Exposure'!$D:$D,$C11) -> 1.319318871 | M11: Worker, No Gloves | N11: High End | O11: ='Dermal Exposure'!N7 -> 1759.050769 | P11: ='Dermal Exposure'!O7 -> 21.98813461 | Q11: ='Dermal Exposure'!P7 -> 2.706231952 | R11: ='Dermal Exposure'!Q7 -> 1.387811258
C12: ONU | E12: =SUMIFS('Inhalation Exposure'!$H:$H,'Inhalation Exposure'!$C:$C,$C$5,'Inhalation Exposure'!$D:$D,$C12) -> 0 | F12: =SUMIFS('Inhalation Exposure'!$L:$L,'Inhalation Exposure'!$C:$C,$C$5,'Inhalation Exposure'!$D:$D,$C12) -> 0 | G12: =SUMIFS('Inhalation Exposure'!$N:$N,'Inhalation Exposure'!$C:$C,$C$5,'Inhalation Exposure'!$D:$D,$C12) -> 0 | N12: Central Tendency | O12: ='Dermal Exposure'!N8 -> 586.3502563 | P12: ='Dermal Exposure'!O8 -> 7.329378204 | Q12: ='Dermal Exposure'!P8 -> 0.08456974851 | R12: ='Dermal Exposure'!Q8 -> 0.03361105389
C13: Worker | D13: Central Tendency | E13: =SUMIFS('Inhalation Exposure'!$I:$I,'Inhalation Exposure'!$C:$C,$C$5,'Inhalation Exposure'!$D:$D,$C13) -> 9.284137799 | F13: =SUMIFS('Inhalation Exposure'!$M:$M,'Inhalation Exposure'!$C:$C,$C$5,'Inhalation Exposure'!$D:$D,$C13) -> 0.4632765303 | G13: =SUMIFS('Inhalation Exposure'!$O:$O,'Inhalation Exposure'!$C:$C,$C$5,'Inhalation Exposure'!$D:$D,$C13) -> 0.1754118879 | M13: =_xlfn.CONCAT("Worker with Gloves; PF of ",H5) -> Worker with Gloves; PF of 5 | N13: High End | O13: =O11/$H$5 -> 351.8101538 | P13: =P11/$H$5 -> 4.397626922 | Q13: 0.5412463905 | R13: 0.2775622515
C14: ONU | E14: =SUMIFS('Inhalation Exposure'!$I:$I,'Inhalation Exposure'!$C:$C,$C$5,'Inhalation Exposure'!$D:$D,$C14) -> 0 | F14: =SUMIFS('Inhalation Exposure'!$M:$M,'Inhalation Exposure'!$C:$C,$C$5,'Inhalation Exposure'!$D:$D,$C14) -> 0 | G14: =SUMIFS('Inhalation Exposure'!$O:$O,'Inhalation Exposure'!$C:$C,$C$5,'Inhalation Exposure'!$D:$D,$C14) -> 0 | N14: Central Tendency | O14: =O12/$H$5 -> 117.2700513 | P14: =P12/$H$5 -> 1.465875641 | Q14: 0.0169139497 | R14: 0.006722210779
C16: Risk Estimation for Acute Inhalation Exposures | M16: Risk Estimation for Acute, Non-Cancer Dermal Exposures
C17: Health Effect, Endpoint and Study | D17: HEC (mg/m3) | E17: Exposure Level | F17: Benchmark MOE (= Total UF) | G17: Acute Exposure Estimates | I17: =_xlfn.CONCAT("Respirator Scenario: APF of ",$G$5) -> Respirator Scenario: APF of 10 | M17: Health Effect, Endpoint and Study | N17: HED (mg/kg) | O17: Exposure Level | P17: Benchmark MOE (= Total UF) | Q17: Chronic Exposure Estimates | R17: Gloved Scenarios
G18: Worker MOE | H18: ONU MOE | I18: Worker MOE | J18: ONU MOE | Q18: Worker MOE, No Gloves | R18: =_xlfn.CONCAT("Worker MOE with Gloves: PF of ",$H$5) -> Worker MOE with Gloves: PF of 5
B19: Tox1 | C19: Short-term Liver Effects Mattie et al., 2012 | D19: =VLOOKUP($B19,'Health Data'!$F$7:$K$12,2,FALSE) -> 284 | E19: High End | F19: =VLOOKUP($B$19,'Health Data'!$F$7:$I$12,4,FALSE) -> 300 | G19: =IFERROR(D19/$E$11, "") -> 8.577234046 | H19: =IFERROR(D19/$E$12, "") ->  | I19: =IFERROR(G19*$G$5,"") -> 85.77234046 | J19: =IFERROR(H19*$G$5,"") ->  | L19: Tox1 | M19: Short-term Liver Effects Mattie et al., 2012 | N19: =VLOOKUP($L$19,'Health Data'!$F$7:$K$13,3,FALSE) -> 35.4 | O19: High End | P19: =VLOOKUP($L$19,'Health Data'!$F$7:$I$12,4,FALSE) -> 300 | Q19: =IFERROR(N19/$P$11, "") -> 1.609959218 | R19: =IFERROR(N19/$P$13, "") -> 8.049796089
E20: Central Tendency | F20: =VLOOKUP($B$19,'Health Data'!$F$7:$I$12,4,FALSE) -> 300 | G20: =IFERROR(D19/$E$13, "") -> 30.58980878 | H20: =IFERROR(D19/$E$14, "") ->  | I20: =IFERROR(G20*$G$5,"") -> 305.8980878 | J20: =IFERROR(H20*$G$5,"") ->  | O20: Central Tendency | P20: =VLOOKUP($L$19,'Health Data'!$F$7:$I$12,4,FALSE) -> 300 | Q20: =IFERROR(N19/$P$12,"") -> 4.829877653 | R20: =IFERROR(N19/$P$14,"") -> 24.14938827
C22: Risk Estimation for Chronic, Non-Cancer Inhalation Exposures | M22: Risk Estimation for Chronic, Non-Cancer Dermal Exposures
C23: Health Effect, Endpoint and Study | D23: HEC (mg/m3) | E23: Exposure Level | F23: Benchmark MOE (= Total UF) | G23: Chronic Exposure Estimates | I23: =_xlfn.CONCAT("Respirator Scenario: APF of ",$G$5) -> Respirator Scenario: APF of 10 | M23: Health Effect, Endpoint and Study | N23: HED (mg/kg) | O23: Exposure Level | P23: Benchmark MOE (= Total UF) | Q23: Chronic Exposure Estimates | R23: Gloved Scenarios
G24: Worker MOE | H24: ONU MOE | I24: Worker MOE | J24: ONU MOE | Q24: Worker MOE, No Gloves | R24: =_xlfn.CONCAT("Worker MOE with Gloves: PF of ",$H$5) -> Worker MOE with Gloves: PF of 5
B25: Tox3 | C25: Olfactory epithelium effects (i.e., metaplasia and atrophy) Kasai et al., 2009 | D25: =VLOOKUP($B25,'Health Data'!$F$7:$K$12,2,FALSE) -> 12.8 | E25: High End | F25: =VLOOKUP($B$25,'Health Data'!$F$7:$I$12,4,FALSE) -> 30 | G25: =IFERROR(D25/$F$11, "") -> 3.770745392 | H25: =IFERROR(D25/$F$12, "") ->  | I25: =IFERROR(G25*$G$5,"") -> 37.70745392 | J25: =IFERROR(H25*$G$5,"") ->  | L25: Tox4 | M25: Liver Kociba et al., 1974 | N25: =VLOOKUP($L$25,'Health Data'!$F$7:$K$12,3,FALSE) -> 2.56 | O25: High End | P25: =VLOOKUP($L$25,'Health Data'!$F$7:$I$12,4,FALSE) -> 30 | Q25: =IFERROR(N25/$Q$11, "") -> 0.9459647381 | R25: =IFERROR(N25/$Q$13, "") -> 4.72982369
E26: Central Tendency | F26: =VLOOKUP($B$25,'Health Data'!$F$7:$I$12,4,FALSE) -> 30 | G26: =IFERROR(D25/$F$13, "") -> 27.62928653 | H26: =IFERROR(D25/$F$14, "") ->  | I26: =IFERROR(G26*$G$5,"") -> 276.2928653 | J26: =IFERROR(H26*$G$5,"") ->  | O26: Central Tendency | P26: =VLOOKUP($L$25,'Health Data'!$F$7:$I$12,4,FALSE) -> 30 | Q26: =IFERROR(N25/$Q$12,"") -> 30.27087162 | R26: =IFERROR(N25/$Q$14,"") -> 151.3543581
C30: Cancer Risks | G30: Chronic Cancer Exposure Estimates | I30: =_xlfn.CONCAT("Respirator Scenario: APF of ",$G$5) -> Respirator Scenario: APF of 10 | M30: Cancer Risks | Q30: Chronic Cancer Exposure Estimates | R30: Gloved Scenarios
C31: Risk Estimate | D31: IUR (mg/m3)-1 | E31: Exposure Level | F31: Benchmark | G31: Worker | H31: ONU | I31: Worker | J31: ONU | M31: Risk Estimate | N31: CSF (mg/kg-d)-1 | O31: Exposure Level | P31: Benchmark | Q31: Worker, No Gloves | R31: =_xlfn.CONCAT("Worker with Gloves: PF of ",$H$5) -> Worker with Gloves: PF of 5
B32: Tox5 | C32: Cancer Result of combined cancer modeling (including liver) | D32: =VLOOKUP($B32,'Health Data'!$F$7:$K$12,5,FALSE) -> 0.001 | E32: High End | F32: 10-4, 10-5, 10-6 | G32: =IFERROR(G11*D32, "") -> 0.001319318871 | H32: =IFERROR(G12*D32, "") -> 0 | I32: =IFERROR(G32/$G$5,"") -> 0.0001319318871 | J32: =IFERROR(H32/$G$5,"") -> 0 | L32: Tox6 | M32: Cancer Liver cancer in female mice (Kano 2009) | N32: =VLOOKUP($L$32,'Health Data'!$F$7:$K$12,6,FALSE) -> 0.123 | O32: High End | P32: 10-4, 10-5, 10-6 | Q32: =IFERROR($R$11*N32, "") -> 0.1707007847 | R32: =IFERROR($R$13*N32, "") -> 0.03414015694
E33: Central Tendency | F33: 10-4, 10-5, 10-6 | G33: =IFERROR(G13*D32, "") -> 0.0001754118879 | H33: =IFERROR(G14*D32, "") -> 0 | I33: =IFERROR(G33/$G$5,"") -> 1.754118879e-05 | J33: =IFERROR(H33/$G$5,"") -> 0 | O33: Central Tendency | Q33: =IFERROR($R$12*N32, "") -> 0.004134159629 | R33: =IFERROR($R$14*N32, "") -> 0.0008268319258
C65: Inhalation Cancer Risk Estimates | D65: Cancer Risk | E65: =_xlfn.CONCAT("Cancer Risk with APF of ",$G$5) -> Cancer Risk with APF of 10 | M65: Dermal Cancer Risk Estimates
C66: ONU: 50th Percentile | D66: =H33 -> 0 | E66: =J33 -> 0 | M66: =Q31 -> Worker, No Gloves | N66: =Q32 -> 0.1707007847
C67: ONU: 95th Percentile | D67: =H32 -> 0 | E67: =J32 -> 0 | M67: =R31 -> Worker with Gloves: PF of 5 | N67: =R32 -> 0.03414015694
C68: Worker: 50th Percentile | D68: =G33 -> 0.0001754118879 | E68: =I33 -> 1.754118879e-05
C69: Worker: 95th Percentile | D69: =G32 -> 0.001319318871 | E69: =I32 -> 0.0001319318871

Sheet Bridge Table
B2: Summary of Risk Estimates for Inhalation and Dermal Exposures to Workers by Condition of Use
K3: Benchmarks
K4: ='Health Data'!I7 -> 300 | L4: ='Health Data'!I9 -> 30 | M4: ='Health Data'!P10 -> 0.0001 | N4: =K4 -> 300 | O4: =L4 -> 30 | P4: =M4 -> 0.0001 | T4: Respirator APF = | U4: 10
T5: Glove PF = | U5: 5
B6: OES Group | C6: Population | D6: Exposure Route | E6: Life Cycle Stage/ Category | F6: Subcategory | G6: Occupational Exposure Scenario | H6: Population | I6: Exposure Route and Duration | J6: Exposure Level | K6: Risk Estimates for No PPE | N6: Risk Estimates with PPE | R6: Select the PPE APF or PF for Each OES, Receptor, and Endpoint
K7: Acute Non-cancer (bench­mark MOE = 300) | L7: Chronic Non-cancer (bench­mark MOE = 30) | M7: Cancer (bench­mark = 10-4) | N7: Acute Non-cancer (bench­mark MOE = 300) | O7: Chronic Non-cancer (bench­mark MOE = 30) | P7: Cancer (bench­mark = 10‑4) | R7: Acute Non-cancer | S7: Chronic Non-cancer | T7: Cancer | W7: Acute Non-cancer HEC (mg/m3) and HED (mg/kg-d) | X7: Chronic Non-cancer HEC (mg/m3) and HED (mg/kg-d) | Y7: Cancer CSF (mg/m3)-1 and (mg/kg-d)-1
B8: 1 | C8: Worker | D8: Inhalation | E8: Manufacture/ Domestic manufacture | F8: Domestic manufacture | G8: Section 3.4.1.2 and 5.2 – Manufacturing | H8: Worker | I8: Inhalation 8-hr TWA | J8: Central Tendency | K8: =IFERROR(VLOOKUP($D8,$V$8:$Y$9,2,FALSE)/IF($D8="Inhalation",IF($J8="Central Tendency",SUMIFS('Inhalation Exposure'!$I$6:$I$19,'Inhalation Exposure'!$B$6:$B$19,$B8,'Inhalation Exposure'!$D$6:$D$19,$C8),SUMIFS('Inhalation Exposure'!$H$6:$H$19,'Inhalation Exposure'!$B$6:$B$19,$B8,'Inhalation Exposure'!$D$6:$D$19,$C8)),IF($J8="Central Tendency",VLOOKUP($B8,'Dermal Crosswalk'!$A$6:$R$16,16,FALSE),VLOOKUP($B8,'Dermal Crosswalk'!$A$6:$R$16,12,FALSE))),"--") -> 684.3373494 | L8: =IFERROR(VLOOKUP($D8,$V$8:$Y$9,3,FALSE)/IF($D8="Inhalation",IF($J8="Central Tendency",SUMIFS('Inhalation Exposure'!$M$6:$M$19,'Inhalation Exposure'!$B$6:$B$19,$B8,'Inhalation Exposure'!$D$6:$D$19,$C8),SUMIFS('Inhalation Exposure'!$L$6:$L$19,'Inhalation Exposure'!$B$6:$B$19,$B8,'Inhalation Exposure'!$D$6:$D$19,$C8)),IF($J8="Central Tendency",VLOOKUP($B8,'Dermal Crosswalk'!$A$6:$R$16,17,FALSE),VLOOKUP($B8,'Dermal Crosswalk'!$A$6:$R$16,13,FALSE))),"--") -> 32.07710843 | M8: =IFERROR(VLOOKUP(D8,$V$8:$Y$9,4,FALSE)*IF($D8="Inhalation",IF($J8="Central Tendency",SUMIFS('Inhalation Exposure'!$O$6:$O$19,'Inhalation Exposure'!$B$6:$B$19,$B8,'Inhalation Exposure'!$D$6:$D$19,$C8),SUMIFS('Inhalation Exposure'!$N$6:$N$19,'Inhalation Exposure'!$B$6:$B$19,$B8,'Inhalation Exposure'!$D$6:$D$19,$C8)),IF($J8="Central Tendency",VLOOKUP($B8,'Dermal Crosswalk'!$A$6:$R$16,18,FALSE),VLOOKUP($B8,'Dermal Crosswalk'!$A$6:$R$16,14,FALSE))),"--") -> 0.0001585922091 | N8: =K8*R8 -> 6843.373494 | O8: =L8*S8 -> 320.7710843 | P8: =M8/T8 -> 1.585922091e-05 | R8: 10 | S8: 10 | T8: 10 | V8: Inhalation | W8: ='Health Data'!G7 -> 284 | X8: ='Health Data'!G9 -> 12.8 | Y8: ='Health Data'!J11 -> 0.001
B9: 1 | C9: Worker | D9: Inhalation | N9: =CONCATENATE("(APF ",R8,")") -> (APF 10) | O9: =CONCATENATE("(APF ",S8,")") -> (APF 10) | P9: =CONCATENATE("(APF ",T8,")") -> (APF 10) | R9: APF | S9: APF | T9: APF | V9: Dermal | W9: ='Health Data'!H7 -> 35.4 | X9: ='Health Data'!H9 -> 1.6 | Y9: ='Health Data'!K12 -> 0.123
B10: 1 | C10: Worker | D10: Inhalation | J10: High-End | K10: =IFERROR(VLOOKUP($D10,$V$8:$Y$9,2,FALSE)/IF($D10="Inhalation",IF($J10="Central Tendency",SUMIFS('Inhalation Exposure'!$I$6:$I$19,'Inhalation Exposure'!$B$6:$B$19,$B10,'Inhalation Exposure'!$D$6:$D$19,$C10),SUMIFS('Inhalation Exposure'!$H$6:$H$19,'Inhalation Exposure'!$B$6:$B$19,$B10,'Inhalation Exposure'!$D$6:$D$19,$C10)),IF($J10="Central Tendency",VLOOKUP($B10,'Dermal Crosswalk'!$A$6:$R$16,16,FALSE),VLOOKUP($B10,'Dermal Crosswalk'!$A$6:$R$16,12,FALSE))),"--") -> 36.71859849 | L10: =IFERROR(VLOOKUP($D10,$V$8:$Y$9,3,FALSE)/IF($D10="Inhalation",IF($J10="Central Tendency",SUMIFS('Inhalation Exposure'!$M$6:$M$19,'Inhalation Exposure'!$B$6:$B$19,$B10,'Inhalation Exposure'!$D$6:$D$19,$C10),SUMIFS('Inhalation Exposure'!$L$6:$L$19,'Inhalation Exposure'!$B$6:$B$19,$B10,'Inhalation Exposure'!$D$6:$D$19,$C10)),IF($J10="Central Tendency",VLOOKUP($B10,'Dermal Crosswalk'!$A$6:$R$16,17,FALSE),VLOOKUP($B10,'Dermal Crosswalk'!$A$6:$R$16,13,FALSE))),"--") -> 1.721119659 | M10: =IFERROR(VLOOKUP(D10,$V$8:$Y$9,4,FALSE)*IF($D10="Inhalation",IF($J10="Central Tendency",SUMIFS('Inhalation Exposure'!$O$6:$O$19,'Inhalation Exposure'!$B$6:$B$19,$B10,'Inhalation Exposure'!$D$6:$D$19,$C10),SUMIFS('Inhalation Exposure'!$N$6:$N$19,'Inhalation Exposure'!$B$6:$B$19,$B10,'Inhalation Exposure'!$D$6:$D$19,$C10)),IF($J10="Central Tendency",VLOOKUP($B10,'Dermal Crosswalk'!$A$6:$R$16,18,FALSE),VLOOKUP($B10,'Dermal Crosswalk'!$A$6:$R$16,14,FALSE))),"--") -> 0.003813856016 | N10: =K10*R10 -> 367.1859849 | O10: =L10*S10 -> 86.05598293 | P10: =M10/T10 -> 7.627712032e-05 | R10: 10 | S10: 50 | T10: 50
B11: 1 | C11: Worker | D11: Inhalation | N11: =CONCATENATE("(APF ",R10,")") -> (APF 10) | O11: =CONCATENATE("(APF ",S10,")") -> (APF 50) | P11: =CONCATENATE("(APF ",T10,")") -> (APF 50) | R11: APF | S11: APF | T11: APF
B12: 1 | C12: Worker | D12: Dermal | H12: Worker | I12: Dermal | J12: Central Tendency | K12: =IFERROR(VLOOKUP($D12,$V$8:$Y$9,2,FALSE)/IF($D12="Inhalation",IF($J12="Central Tendency",SUMIFS('Inhalation Exposure'!$I$6:$I$19,'Inhalation Exposure'!$B$6:$B$19,$B12,'Inhalation Exposure'!$D$6:$D$19,$C12),SUMIFS('Inhalation Exposure'!$H$6:$H$19,'Inhalation Exposure'!$B$6:$B$19,$B12,'Inhalation Exposure'!$D$6:$D$19,$C12)),IF($J12="Central Tendency",VLOOKUP($B12,'Dermal Crosswalk'!$A$6:$R$16,16,FALSE),VLOOKUP($B12,'Dermal Crosswalk'!$A$6:$R$16,12,FALSE))),"--") -> 4.829877653 | L12: =IFERROR(VLOOKUP($D12,$V$8:$Y$9,3,FALSE)/IF($D12="Inhalation",IF($J12="Central Tendency",SUMIFS('Inhalation Exposure'!$M$6:$M$19,'Inhalation Exposure'!$B$6:$B$19,$B12,'Inhalation Exposure'!$D$6:$D$19,$C12),SUMIFS('Inhalation Exposure'!$L$6:$L$19,'Inhalation Exposure'!$B$6:$B$19,$B12,'Inhalation Exposure'!$D$6:$D$19,$C12)),IF($J12="Central Tendency",VLOOKUP($B12,'Dermal Crosswalk'!$A$6:$R$16,17,FALSE),VLOOKUP($B12,'Dermal Crosswalk'!$A$6:$R$16,13,FALSE))),"--") -> 0.2270315371 | M12: =IFERROR(VLOOKUP(D12,$V$8:$Y$9,4,FALSE)*IF($D12="Inhalation",IF($J12="Central Tendency",SUMIFS('Inhalation Exposure'!$O$6:$O$19,'Inhalation Exposure'!$B$6:$B$19,$B12,'Inhalation Exposure'!$D$6:$D$19,$C12),SUMIFS('Inhalation Exposure'!$N$6:$N$19,'Inhalation Exposure'!$B$6:$B$19,$B12,'Inhalation Exposure'!$D$6:$D$19,$C12)),IF($J12="Central Tendency",VLOOKUP($B12,'Dermal Crosswalk'!$A$6:$R$16,18,FALSE),VLOOKUP($B12,'Dermal Crosswalk'!$A$6:$R$16,14,FALSE))),"--") -> 0.3445133024 | N12: =K12*R12 -> 96.59755306 | O12: =L12*S12 -> 4.540630743 | P12: =M12/T12 -> 0.01722566512 | R12: 20 | S12: 20 | T12: 20
B13: 1 | C13: Worker | D13: Dermal | N13: =CONCATENATE("(PF ",R12,")") -> (PF 20) | O13: =CONCATENATE("(PF ",S12,")") -> (PF 20) | P13: =CONCATENATE("(PF ",T12,")") -> (PF 20) | R13: PF | S13: PF | T13: PF
B14: 1 | C14: Worker | D14: Dermal | J14: High-End | K14: =IFERROR(VLOOKUP($D14,$V$8:$Y$9,2,FALSE)/IF($D14="Inhalation",IF($J14="Central Tendency",SUMIFS('Inhalation Exposure'!$I$6:$I$19,'Inhalation Exposure'!$B$6:$B$19,$B14,'Inhalation Exposure'!$D$6:$D$19,$C14),SUMIFS('Inhalation Exposure'!$H$6:$H$19,'Inhalation Exposure'!$B$6:$B$19,$B14,'Inhalation Exposure'!$D$6:$D$19,$C14)),IF($J14="Central Tendency",VLOOKUP($B14,'Dermal Crosswalk'!$A$6:$R$16,16,FALSE),VLOOKUP($B14,'Dermal Crosswalk'!$A$6:$R$16,12,FALSE))),"--") -> 1.609959218 | L14: =IFERROR(VLOOKUP($D14,$V$8:$Y$9,3,FALSE)/IF($D14="Inhalation",IF($J14="Central Tendency",SUMIFS('Inhalation Exposure'!$M$6:$M$19,'Inhalation Exposure'!$B$6:$B$19,$B14,'Inhalation Exposure'!$D$6:$D$19,$C14),SUMIFS('Inhalation Exposure'!$L$6:$L$19,'Inhalation Exposure'!$B$6:$B$19,$B14,'Inhalation Exposure'!$D$6:$D$19,$C14)),IF($J14="Central Tendency",VLOOKUP($B14,'Dermal Crosswalk'!$A$6:$R$16,17,FALSE),VLOOKUP($B14,'Dermal Crosswalk'!$A$6:$R$16,13,FALSE))),"--") -> 0.07567717905 | M14: =IFERROR(VLOOKUP(D14,$V$8:$Y$9,4,FALSE)*IF($D14="Inhalation",IF($J14="Central Tendency",SUMIFS('Inhalation Exposure'!$O$6:$O$19,'Inhalation Exposure'!$B$6:$B$19,$B14,'Inhalation Exposure'!$D$6:$D$19,$C14),SUMIFS('Inhalation Exposure'!$N$6:$N$19,'Inhalation Exposure'!$B$6:$B$19,$B14,'Inhalation Exposure'!$D$6:$D$19,$C14)),IF($J14="Central Tendency",VLOOKUP($B14,'Dermal Crosswalk'!$A$6:$R$16,18,FALSE),VLOOKUP($B14,'Dermal Crosswalk'!$A$6:$R$16,14,FALSE))),"--") -> 1.33359988 | N14: =K14*R14 -> 32.19918435 | O14: =L14*S14 -> 1.513543581 | P14: =M14/T14 -> 0.06667999402 | R14: 20 | S14: 20 | T14: 20
B15: 1 | C15: Worker | D15: Dermal | N15: =CONCATENATE("(PF ",R14,")") -> (PF 20) | O15: =CONCATENATE("(PF ",S14,")") -> (PF 20) | P15: =CONCATENATE("(PF ",T14,")") -> (PF 20) | R15: PF | S15: PF | T15: PF
B16: 1 | C16: ONU | D16: Inhalation | H16: ONU | I16: Inhalation 8-hr TWA | J16: Central Tendency | K16: =IFERROR(VLOOKUP($D16,$V$8:$Y$9,2,FALSE)/IF($D16="Inhalation",IF($J16="Central Tendency",SUMIFS('Inhalation Exposure'!$I$6:$I$19,'Inhalation Exposure'!$B$6:$B$19,$B16,'Inhalation Exposure'!$D$6:$D$19,$C16),SUMIFS('Inhalation Exposure'!$H$6:$H$19,'Inhalation Exposure'!$B$6:$B$19,$B16,'Inhalation Exposure'!$D$6:$D$19,$C16)),IF($J16="Central Tendency",VLOOKUP($B16,'Dermal Crosswalk'!$A$6:$R$16,16,FALSE),VLOOKUP($B16,'Dermal Crosswalk'!$A$6:$R$16,12,FALSE))),"--") -> -- | L16: =IFERROR(VLOOKUP($D16,$V$8:$Y$9,3,FALSE)/IF($D16="Inhalation",IF($J16="Central Tendency",SUMIFS('Inhalation Exposure'!$M$6:$M$19,'Inhalation Exposure'!$B$6:$B$19,$B16,'Inhalation Exposure'!$D$6:$D$19,$C16),SUMIFS('Inhalation Exposure'!$L$6:$L$19,'Inhalation Exposure'!$B$6:$B$19,$B16,'Inhalation Exposure'!$D$6:$D$19,$C16)),IF($J16="Central Tendency",VLOOKUP($B16,'Dermal Crosswalk'!$A$6:$R$16,17,FALSE),VLOOKUP($B16,'Dermal Crosswalk'!$A$6:$R$16,13,FALSE))),"--") -> -- | M16: -- | N16: N/A | O16: N/A | P16: N/A | R16: N/A | S16: N/A | T16: N/A
B17: 1 | C17: ONU | D17: Inhalation | J17: High-End | K17: =IFERROR(VLOOKUP($D17,$V$8:$Y$9,2,FALSE)/IF($D17="Inhalation",IF($J17="Central Tendency",SUMIFS('Inhalation Exposure'!$I$6:$I$19,'Inhalation Exposure'!$B$6:$B$19,$B17,'Inhalation Exposure'!$D$6:$D$19,$C17),SUMIFS('Inhalation Exposure'!$H$6:$H$19,'Inhalation Exposure'!$B$6:$B$19,$B17,'Inhalation Exposure'!$D$6:$D$19,$C17)),IF($J17="Central Tendency",VLOOKUP($B17,'Dermal Crosswalk'!$A$6:$R$16,16,FALSE),VLOOKUP($B17,'Dermal Crosswalk'!$A$6:$R$16,12,FALSE))),"--") -> -- | L17: =IFERROR(VLOOKUP($D17,$V$8:$Y$9,3,FALSE)/IF($D17="Inhalation",IF($J17="Central Tendency",SUMIFS('Inhalation Exposure'!$M$6:$M$19,'Inhalation Exposure'!$B$6:$B$19,$B17,'Inhalation Exposure'!$D$6:$D$19,$C17),SUMIFS('Inhalation Exposure'!$L$6:$L$19,'Inhalation Exposure'!$B$6:$B$19,$B17,'Inhalation Exposure'!$D$6:$D$19,$C17)),IF($J17="Central Tendency",VLOOKUP($B17,'Dermal Crosswalk'!$A$6:$R$16,17,FALSE),VLOOKUP($B17,'Dermal Crosswalk'!$A$6:$R$16,13,FALSE))),"--") -> -- | M17: -- | N17: N/A | O17: N/A | P17: N/A | R17: N/A | S17: N/A | T17: N/A
B18: 2a | C18: Worker | D18: Inhalation | E18: Manufacture/ Import | F18: Import | G18: Section 3.4.1.3 and 5.2 – Import/‌Repackaging (Bottle) | H18: Worker | I18: Inhalation 8-hr TWA | J18: Central Tendency | K18: =IFERROR(VLOOKUP($D18,$V$8:$Y$9,2,FALSE)/IF($D18="Inhalation",IF($J18="Central Tendency",SUMIFS('Inhalation Exposure'!$I$6:$I$19,'Inhalation Exposure'!$B$6:$B$19,$B18,'Inhalation Exposure'!$D$6:$D$19,$C18),SUMIFS('Inhalation Exposure'!$H$6:$H$19,'Inhalation Exposure'!$B$6:$B$19,$B18,'Inhalation Exposure'!$D$6:$D$19,$C18)),IF($J18="Central Tendency",VLOOKUP($B18,'Dermal Crosswalk'!$A$6:$R$16,16,FALSE),VLOOKUP($B18,'Dermal Crosswalk'!$A$6:$R$16,12,FALSE))),"--") -> 30.58980878 | L18: =IFERROR(VLOOKUP($D18,$V$8:$Y$9,3,FALSE)/IF($D18="Inhalation",IF($J18="Central Tendency",SUMIFS('Inhalation Exposure'!$M$6:$M$19,'Inhalation Exposure'!$B$6:$B$19,$B18,'Inhalation Exposure'!$D$6:$D$19,$C18),SUMIFS('Inhalation Exposure'!$L$6:$L$19,'Inhalation Exposure'!$B$6:$B$19,$B18,'Inhalation Exposure'!$D$6:$D$19,$C18)),IF($J18="Central Tendency",VLOOKUP($B18,'Dermal Crosswalk'!$A$6:$R$16,17,FALSE),VLOOKUP($B18,'Dermal Crosswalk'!$A$6:$R$16,13,FALSE))),"--") -> 27.62928653 | M18: =IFERROR(VLOOKUP(D18,$V$8:$Y$9,4,FALSE)*IF($D18="Inhalation",IF($J18="Central Tendency",SUMIFS('Inhalation Exposure'!$O$6:$O$19,'Inhalation Exposure'!$B$6:$B$19,$B18,'Inhalation Exposure'!$D$6:$D$19,$C18),SUMIFS('Inhalation Exposure'!$N$6:$N$19,'Inhalation Exposure'!$B$6:$B$19,$B18,'Inhalation Exposure'!$D$6:$D$19,$C18)),IF($J18="Central Tendency",VLOOKUP($B18,'Dermal Crosswalk'!$A$6:$R$16,18,FALSE),VLOOKUP($B18,'Dermal Crosswalk'!$A$6:$R$16,14,FALSE))),"--") -> 0.0001754118879 | N18: =K18*R18 -> 305.8980878 | O18: =L18*S18 -> 276.2928653 | P18: =M18/T18 -> 1.754118879e-05 | R18: 10 | S18: 10 | T18: 10
B19: 2a | C19: Worker | D19: Inhalation | N19: =CONCATENATE("(APF ",R18,")") -> (APF 10) | O19: =CONCATENATE("(APF ",S18,")") -> (APF 10) | P19: =CONCATENATE("(APF ",T18,")") -> (APF 10) | R19: APF | S19: APF | T19: APF
B20: 2a | C20: Worker | D20: Inhalation | F20: Repackaging | J20: High-End | K20: =IFERROR(VLOOKUP($D20,$V$8:$Y$9,2,FALSE)/IF($D20="Inhalation",IF($J20="Central Tendency",SUMIFS('Inhalation Exposure'!$I$6:$I$19,'Inhalation Exposure'!$B$6:$B$19,$B20,'Inhalation Exposure'!$D$6:$D$19,$C20),SUMIFS('Inhalation Exposure'!$H$6:$H$19,'Inhalation Exposure'!$B$6:$B$19,$B20,'Inhalation Exposure'!$D$6:$D$19,$C20)),IF($J20="Central Tendency",VLOOKUP($B20,'Dermal Crosswalk'!$A$6:$R$16,16,FALSE),VLOOKUP($B20,'Dermal Crosswalk'!$A$6:$R$16,12,FALSE))),"--") -> 8.577234046 | L20: =IFERROR(VLOOKUP($D20,$V$8:$Y$9,3,FALSE)/IF($D20="Inhalation",IF($J20="Central Tendency",SUMIFS('Inhalation Exposure'!$M$6:$M$19,'Inhalation Exposure'!$B$6:$B$19,$B20,'Inhalation Exposure'!$D$6:$D$19,$C20),SUMIFS('Inhalation Exposure'!$L$6:$L$19,'Inhalation Exposure'!$B$6:$B$19,$B20,'Inhalation Exposure'!$D$6:$D$19,$C20)),IF($J20="Central Tendency",VLOOKUP($B20,'Dermal Crosswalk'!$A$6:$R$16,17,FALSE),VLOOKUP($B20,'Dermal Crosswalk'!$A$6:$R$16,13,FALSE))),"--") -> 3.770745392 | M20: =IFERROR(VLOOKUP(D20,$V$8:$Y$9,4,FALSE)*IF($D20="Inhalation",IF($J20="Central Tendency",SUMIFS('Inhalation Exposure'!$O$6:$O$19,'Inhalation Exposure'!$B$6:$B$19,$B20,'Inhalation Exposure'!$D$6:$D$19,$C20),SUMIFS('Inhalation Exposure'!$N$6:$N$19,'Inhalation Exposure'!$B$6:$B$19,$B20,'Inhalation Exposure'!$D$6:$D$19,$C20)),IF($J20="Central Tendency",VLOOKUP($B20,'Dermal Crosswalk'!$A$6:$R$16,18,FALSE),VLOOKUP($B20,'Dermal Crosswalk'!$A$6:$R$16,14,FALSE))),"--") -> 0.001319318871 | N20: =K20*R20 -> 428.8617023 | O20: =L20*S20 -> 37.70745392 | P20: =M20/T20 -> 2.638637742e-05 | R20: 50 | S20: 10 | T20: 50
B21: 2a | C21: Worker | D21: Inhalation | N21: =CONCATENATE("(APF ",R20,")") -> (APF 50) | O21: =CONCATENATE("(APF ",S20,")") -> (APF 10) | P21: =CONCATENATE("(APF ",T20,")") -> (APF 50) | R21: APF | S21: APF | T21: APF
B22: 2a | C22: Worker | D22: Dermal | H22: Worker | I22: Dermal | J22: Central Tendency | K22: =IFERROR(VLOOKUP($D22,$V$8:$Y$9,2,FALSE)/IF($D22="Inhalation",IF($J22="Central Tendency",SUMIFS('Inhalation Exposure'!$I$6:$I$19,'Inhalation Exposure'!$B$6:$B$19,$B22,'Inhalation Exposure'!$D$6:$D$19,$C22),SUMIFS('Inhalation Exposure'!$H$6:$H$19,'Inhalation Exposure'!$B$6:$B$19,$B22,'Inhalation Exposure'!$D$6:$D$19,$C22)),IF($J22="Central Tendency",VLOOKUP($B22,'Dermal Crosswalk'!$A$6:$R$16,16,FALSE),VLOOKUP($B22,'Dermal Crosswalk'!$A$6:$R$16,12,FALSE))),"--") -> 4.829877653 | L22: =IFERROR(VLOOKUP($D22,$V$8:$Y$9,3,FALSE)/IF($D22="Inhalation",IF($J22="Central Tendency",SUMIFS('Inhalation Exposure'!$M$6:$M$19,'Inhalation Exposure'!$B$6:$B$19,$B22,'Inhalation Exposure'!$D$6:$D$19,$C22),SUMIFS('Inhalation Exposure'!$L$6:$L$19,'Inhalation Exposure'!$B$6:$B$19,$B22,'Inhalation Exposure'!$D$6:$D$19,$C22)),IF($J22="Central Tendency",VLOOKUP($B22,'Dermal Crosswalk'!$A$6:$R$16,17,FALSE),VLOOKUP($B22,'Dermal Crosswalk'!$A$6:$R$16,13,FALSE))),"--") -> 18.91929476 | M22: =IFERROR(VLOOKUP(D22,$V$8:$Y$9,4,FALSE)*IF($D22="Inhalation",IF($J22="Central Tendency",SUMIFS('Inhalation Exposure'!$O$6:$O$19,'Inhalation Exposure'!$B$6:$B$19,$B22,'Inhalation Exposure'!$D$6:$D$19,$C22),SUMIFS('Inhalation Exposure'!$N$6:$N$19,'Inhalation Exposure'!$B$6:$B$19,$B22,'Inhalation Exposure'!$D$6:$D$19,$C22)),IF($J22="Central Tendency",VLOOKUP($B22,'Dermal Crosswalk'!$A$6:$R$16,18,FALSE),VLOOKUP($B22,'Dermal Crosswalk'!$A$6:$R$16,14,FALSE))),"--") -> 0.004134159629 | N22: =K22*R22 -> 96.59755306 | O22: =L22*S22 -> 94.59647381 | P22: =M22/T22 -> 0.0002067079815 | R22: 20 | S22: 5 | T22: 20
B23: 2a | C23: Worker | D23: Dermal | N23: =CONCATENATE("(PF ",R22,")") -> (PF 20) | O23: =CONCATENATE("(PF ",S22,")") -> (PF 5) | P23: =CONCATENATE("(PF ",T22,")") -> (PF 20) | R23: PF | S23: PF | T23: PF
B24: 2a | C24: Worker | D24: Dermal | J24: High-End | K24: =IFERROR(VLOOKUP($D24,$V$8:$Y$9,2,FALSE)/IF($D24="Inhalation",IF($J24="Central Tendency",SUMIFS('Inhalation Exposure'!$I$6:$I$19,'Inhalation Exposure'!$B$6:$B$19,$B24,'Inhalation Exposure'!$D$6:$D$19,$C24),SUMIFS('Inhalation Exposure'!$H$6:$H$19,'Inhalation Exposure'!$B$6:$B$19,$B24,'Inhalation Exposure'!$D$6:$D$19,$C24)),IF($J24="Central Tendency",VLOOKUP($B24,'Dermal Crosswalk'!$A$6:$R$16,16,FALSE),VLOOKUP($B24,'Dermal Crosswalk'!$A$6:$R$16,12,FALSE))),"--") -> 1.609959218 | L24: =IFERROR(VLOOKUP($D24,$V$8:$Y$9,3,FALSE)/IF($D24="Inhalation",IF($J24="Central Tendency",SUMIFS('Inhalation Exposure'!$M$6:$M$19,'Inhalation Exposure'!$B$6:$B$19,$B24,'Inhalation Exposure'!$D$6:$D$19,$C24),SUMIFS('Inhalation Exposure'!$L$6:$L$19,'Inhalation Exposure'!$B$6:$B$19,$B24,'Inhalation Exposure'!$D$6:$D$19,$C24)),IF($J24="Central Tendency",VLOOKUP($B24,'Dermal Crosswalk'!$A$6:$R$16,17,FALSE),VLOOKUP($B24,'Dermal Crosswalk'!$A$6:$R$16,13,FALSE))),"--") -> 0.5912279613 | M24: =IFERROR(VLOOKUP(D24,$V$8:$Y$9,4,FALSE)*IF($D24="Inhalation",IF($J24="Central Tendency",SUMIFS('Inhalation Exposure'!$O$6:$O$19,'Inhalation Exposure'!$B$6:$B$19,$B24,'Inhalation Exposure'!$D$6:$D$19,$C24),SUMIFS('Inhalation Exposure'!$N$6:$N$19,'Inhalation Exposure'!$B$6:$B$19,$B24,'Inhalation Exposure'!$D$6:$D$19,$C24)),IF($J24="Central Tendency",VLOOKUP($B24,'Dermal Crosswalk'!$A$6:$R$16,18,FALSE),VLOOKUP($B24,'Dermal Crosswalk'!$A$6:$R$16,14,FALSE))),"--") -> 0.1707007847 | N24: =K24*R24 -> 32.19918435 | O24: =L24*S24 -> 11.82455923 | P24: =M24/T24 -> 0.008535039234 | R24: 20 | S24: 20 | T24: 20
B25: 2a | C25: Worker | D25: Dermal | N25: =CONCATENATE("(PF ",R24,")") -> (PF 20) | O25: =CONCATENATE("(PF ",S24,")") -> (PF 20) | P25: =CONCATENATE("(PF ",T24,")") -> (PF 20) | R25: PF | S25: PF | T25: PF
B26: 2a | C26: ONU | D26: Inhalation | H26: ONU | I26: Inhalation 8-hr TWA | J26: Central Tendency | K26: =IFERROR(VLOOKUP($D26,$V$8:$Y$9,2,FALSE)/IF($D26="Inhalation",IF($J26="Central Tendency",SUMIFS('Inhalation Exposure'!$I$6:$I$19,'Inhalation Exposure'!$B$6:$B$19,$B26,'Inhalation Exposure'!$D$6:$D$19,$C26),SUMIFS('Inhalation Exposure'!$H$6:$H$19,'Inhalation Exposure'!$B$6:$B$19,$B26,'Inhalation Exposure'!$D$6:$D$19,$C26)),IF($J26="Central Tendency",VLOOKUP($B26,'Dermal Crosswalk'!$A$6:$R$16,16,FALSE),VLOOKUP($B26,'Dermal Crosswalk'!$A$6:$R$16,12,FALSE))),"--") -> -- | L26: =IFERROR(VLOOKUP($D26,$V$8:$Y$9,3,FALSE)/IF($D26="Inhalation",IF($J26="Central Tendency",SUMIFS('Inhalation Exposure'!$M$6:$M$19,'Inhalation Exposure'!$B$6:$B$19,$B26,'Inhalation Exposure'!$D$6:$D$19,$C26),SUMIFS('Inhalation Exposure'!$L$6:$L$19,'Inhalation Exposure'!$B$6:$B$19,$B26,'Inhalation Exposure'!$D$6:$D$19,$C26)),IF($J26="Central Tendency",VLOOKUP($B26,'Dermal Crosswalk'!$A$6:$R$16,17,FALSE),VLOOKUP($B26,'Dermal Crosswalk'!$A$6:$R$16,13,FALSE))),"--") -> -- | M26: -- | N26: N/A | O26: N/A | P26: N/A | R26: N/A | S26: N/A | T26: N/A
B27: 2a | C27: ONU | D27: Inhalation | J27: High-End | K27: =IFERROR(VLOOKUP($D27,$V$8:$Y$9,2,FALSE)/IF($D27="Inhalation",IF($J27="Central Tendency",SUMIFS('Inhalation Exposure'!$I$6:$I$19,'Inhalation Exposure'!$B$6:$B$19,$B27,'Inhalation Exposure'!$D$6:$D$19,$C27),SUMIFS('Inhalation Exposure'!$H$6:$H$19,'Inhalation Exposure'!$B$6:$B$19,$B27,'Inhalation Exposure'!$D$6:$D$19,$C27)),IF($J27="Central Tendency",VLOOKUP($B27,'Dermal Crosswalk'!$A$6:$R$16,16,FALSE),VLOOKUP($B27,'Dermal Crosswalk'!$A$6:$R$16,12,FALSE))),"--") -> -- | L27: =IFERROR(VLOOKUP($D27,$V$8:$Y$9,3,FALSE)/IF($D27="Inhalation",IF($J27="Central Tendency",SUMIFS('Inhalation Exposure'!$M$6:$M$19,'Inhalation Exposure'!$B$6:$B$19,$B27,'Inhalation Exposure'!$D$6:$D$19,$C27),SUMIFS('Inhalation Exposure'!$L$6:$L$19,'Inhalation Exposure'!$B$6:$B$19,$B27,'Inhalation Exposure'!$D$6:$D$19,$C27)),IF($J27="Central Tendency",VLOOKUP($B27,'Dermal Crosswalk'!$A$6:$R$16,17,FALSE),VLOOKUP($B27,'Dermal Crosswalk'!$A$6:$R$16,13,FALSE))),"--") -> -- | M27: -- | N27: N/A | O27: N/A | P27: N/A | R27: N/A | S27: N/A | T27: N/A
B28: 2b | C28: Worker | D28: Inhalation | E28: Manufacture/ Import | F28: Import | G28: Section 3.4.1.3 and 5.2 – Import/‌Repackaging (Drum) | H28: Worker | I28: Inhalation 8-hr TWA | J28: Central Tendency | K28: =IFERROR(VLOOKUP($D28,$V$8:$Y$9,2,FALSE)/IF($D28="Inhalation",IF($J28="Central Tendency",SUMIFS('Inhalation Exposure'!$I$6:$I$19,'Inhalation Exposure'!$B$6:$B$19,$B28,'Inhalation Exposure'!$D$6:$D$19,$C28),SUMIFS('Inhalation Exposure'!$H$6:$H$19,'Inhalation Exposure'!$B$6:$B$19,$B28,'Inhalation Exposure'!$D$6:$D$19,$C28)),IF($J28="Central Tendency",VLOOKUP($B28,'Dermal Crosswalk'!$A$6:$R$16,16,FALSE),VLOOKUP($B28,'Dermal Crosswalk'!$A$6:$R$16,12,FALSE))),"--") -> 26.67341122 | L28: =IFERROR(VLOOKUP($D28,$V$8:$Y$9,3,FALSE)/IF($D28="Inhalation",IF($J28="Central Tendency",SUMIFS('Inhalation Exposure'!$M$6:$M$19,'Inhalation Exposure'!$B$6:$B$19,$B28,'Inhalation Exposure'!$D$6:$D$19,$C28),SUMIFS('Inhalation Exposure'!$L$6:$L$19,'Inhalation Exposure'!$B$6:$B$19,$B28,'Inhalation Exposure'!$D$6:$D$19,$C28)),IF($J28="Central Tendency",VLOOKUP($B28,'Dermal Crosswalk'!$A$6:$R$16,17,FALSE),VLOOKUP($B28,'Dermal Crosswalk'!$A$6:$R$16,13,FALSE))),"--") -> 27.62928653 | M28: =IFERROR(VLOOKUP(D28,$V$8:$Y$9,4,FALSE)*IF($D28="Inhalation",IF($J28="Central Tendency",SUMIFS('Inhalation Exposure'!$O$6:$O$19,'Inhalation Exposure'!$B$6:$B$19,$B28,'Inhalation Exposure'!$D$6:$D$19,$C28),SUMIFS('Inhalation Exposure'!$N$6:$N$19,'Inhalation Exposure'!$B$6:$B$19,$B28,'Inhalation Exposure'!$D$6:$D$19,$C28)),IF($J28="Central Tendency",VLOOKUP($B28,'Dermal Crosswalk'!$A$6:$R$16,18,FALSE),VLOOKUP($B28,'Dermal Crosswalk'!$A$6:$R$16,14,FALSE))),"--") -> 0.0001754118879 | N28: =K28*R28 -> 1333.670561 | O28: =L28*S28 -> 276.2928653 | P28: =M28/T28 -> 1.754118879e-05 | R28: 50 | S28: 10 | T28: 10
B29: 2b | C29: Worker | D29: Inhalation | N29: =CONCATENATE("(APF ",R28,")") -> (APF 50) | O29: =CONCATENATE("(APF ",S28,")") -> (APF 10) | P29: =CONCATENATE("(APF ",T28,")") -> (APF 10) | R29: APF | S29: APF | T29: APF
B30: 2b | C30: Worker | D30: Inhalation | F30: Repackaging | J30: High-End | K30: =IFERROR(VLOOKUP($D30,$V$8:$Y$9,2,FALSE)/IF($D30="Inhalation",IF($J30="Central Tendency",SUMIFS('Inhalation Exposure'!$I$6:$I$19,'Inhalation Exposure'!$B$6:$B$19,$B30,'Inhalation Exposure'!$D$6:$D$19,$C30),SUMIFS('Inhalation Exposure'!$H$6:$H$19,'Inhalation Exposure'!$B$6:$B$19,$B30,'Inhalation Exposure'!$D$6:$D$19,$C30)),IF($J30="Central Tendency",VLOOKUP($B30,'Dermal Crosswalk'!$A$6:$R$16,16,FALSE),VLOOKUP($B30,'Dermal Crosswalk'!$A$6:$R$16,12,FALSE))),"--") -> 7.443704305 | L30: =IFERROR(VLOOKUP($D30,$V$8:$Y$9,3,FALSE)/IF($D30="Inhalation",IF($J30="Central Tendency",SUMIFS('Inhalation Exposure'!$M$6:$M$19,'Inhalation Exposure'!$B$6:$B$19,$B30,'Inhalation Exposure'!$D$6:$D$19,$C30),SUMIFS('Inhalation Exposure'!$L$6:$L$19,'Inhalation Exposure'!$B$6:$B$19,$B30,'Inhalation Exposure'!$D$6:$D$19,$C30)),IF($J30="Central Tendency",VLOOKUP($B30,'Dermal Crosswalk'!$A$6:$R$16,17,FALSE),VLOOKUP($B30,'Dermal Crosswalk'!$A$6:$R$16,13,FALSE))),"--") -> 3.770745392 | M30: =IFERROR(VLOOKUP(D30,$V$8:$Y$9,4,FALSE)*IF($D30="Inhalation",IF($J30="Central Tendency",SUMIFS('Inhalation Exposure'!$O$6:$O$19,'Inhalation Exposure'!$B$6:$B$19,$B30,'Inhalation Exposure'!$D$6:$D$19,$C30),SUMIFS('Inhalation Exposure'!$N$6:$N$19,'Inhalation Exposure'!$B$6:$B$19,$B30,'Inhalation Exposure'!$D$6:$D$19,$C30)),IF($J30="Central Tendency",VLOOKUP($B30,'Dermal Crosswalk'!$A$6:$R$16,18,FALSE),VLOOKUP($B30,'Dermal Crosswalk'!$A$6:$R$16,14,FALSE))),"--") -> 0.001319318871 | N30: =K30*R30 -> 372.1852152 | O30: =L30*S30 -> 37.70745392 | P30: =M30/T30 -> 2.638637742e-05 | R30: 50 | S30: 10 | T30: 50
B31: 2b | C31: Worker | D31: Inhalation | N31: =CONCATENATE("(APF ",R30,")") -> (APF 50) | O31: =CONCATENATE("(APF ",S30,")") -> (APF 10) | P31: =CONCATENATE("(APF ",T30,")") -> (APF 50) | R31: APF | S31: APF | T31: APF
B32: 2b | C32: Worker | D32: Dermal | H32: Worker | I32: Dermal | J32: Central Tendency | K32: =IFERROR(VLOOKUP($D32,$V$8:$Y$9,2,FALSE)/IF($D32="Inhalation",IF($J32="Central Tendency",SUMIFS('Inhalation Exposure'!$I$6:$I$19,'Inhalation Exposure'!$B$6:$B$19,$B32,'Inhalation Exposure'!$D$6:$D$19,$C32),SUMIFS('Inhalation Exposure'!$H$6:$H$19,'Inhalation Exposure'!$B$6:$B$19,$B32,'Inhalation Exposure'!$D$6:$D$19,$C32)),IF($J32="Central Tendency",VLOOKUP($B32,'Dermal Crosswalk'!$A$6:$R$16,16,FALSE),VLOOKUP($B32,'Dermal Crosswalk'!$A$6:$R$16,12,FALSE))),"--") -> 4.829877653 | L32: =IFERROR(VLOOKUP($D32,$V$8:$Y$9,3,FALSE)/IF($D32="Inhalation",IF($J32="Central Tendency",SUMIFS('Inhalation Exposure'!$M$6:$M$19,'Inhalation Exposure'!$B$6:$B$19,$B32,'Inhalation Exposure'!$D$6:$D$19,$C32),SUMIFS('Inhalation Exposure'!$L$6:$L$19,'Inhalation Exposure'!$B$6:$B$19,$B32,'Inhalation Exposure'!$D$6:$D$19,$C32)),IF($J32="Central Tendency",VLOOKUP($B32,'Dermal Crosswalk'!$A$6:$R$16,17,FALSE),VLOOKUP($B32,'Dermal Crosswalk'!$A$6:$R$16,13,FALSE))),"--") -> 9.459647381 | M32: =IFERROR(VLOOKUP(D32,$V$8:$Y$9,4,FALSE)*IF($D32="Inhalation",IF($J32="Central Tendency",SUMIFS('Inhalation Exposure'!$O$6:$O$19,'Inhalation Exposure'!$B$6:$B$19,$B32,'Inhalation Exposure'!$D$6:$D$19,$C32),SUMIFS('Inhalation Exposure'!$N$6:$N$19,'Inhalation Exposure'!$B$6:$B$19,$B32,'Inhalation Exposure'!$D$6:$D$19,$C32)),IF($J32="Central Tendency",VLOOKUP($B32,'Dermal Crosswalk'!$A$6:$R$16,18,FALSE),VLOOKUP($B32,'Dermal Crosswalk'!$A$6:$R$16,14,FALSE))),"--") -> 0.008268319258 | N32: =K32*R32 -> 96.59755306 | O32: =L32*S32 -> 47.2982369 | P32: =M32/T32 -> 0.0004134159629 | R32: 20 | S32: 5 | T32: 20
B33: 2b | C33: Worker | D33: Dermal | N33: =CONCATENATE("(PF ",R32,")") -> (PF 20) | O33: =CONCATENATE("(PF ",S32,")") -> (PF 5) | P33: =CONCATENATE("(PF ",T32,")") -> (PF 20) | R33: PF | S33: PF | T33: PF
B34: 2b | C34: Worker | D34: Dermal | J34: High-End | K34: =IFERROR(VLOOKUP($D34,$V$8:$Y$9,2,FALSE)/IF($D34="Inhalation",IF($J34="Central Tendency",SUMIFS('Inhalation Exposure'!$I$6:$I$19,'Inhalation Exposure'!$B$6:$B$19,$B34,'Inhalation Exposure'!$D$6:$D$19,$C34),SUMIFS('Inhalation Exposure'!$H$6:$H$19,'Inhalation Exposure'!$B$6:$B$19,$B34,'Inhalation Exposure'!$D$6:$D$19,$C34)),IF($J34="Central Tendency",VLOOKUP($B34,'Dermal Crosswalk'!$A$6:$R$16,16,FALSE),VLOOKUP($B34,'Dermal Crosswalk'!$A$6:$R$16,12,FALSE))),"--") -> 1.609959218 | L34: =IFERROR(VLOOKUP($D34,$V$8:$Y$9,3,FALSE)/IF($D34="Inhalation",IF($J34="Central Tendency",SUMIFS('Inhalation Exposure'!$M$6:$M$19,'Inhalation Exposure'!$B$6:$B$19,$B34,'Inhalation Exposure'!$D$6:$D$19,$C34),SUMIFS('Inhalation Exposure'!$L$6:$L$19,'Inhalation Exposure'!$B$6:$B$19,$B34,'Inhalation Exposure'!$D$6:$D$19,$C34)),IF($J34="Central Tendency",VLOOKUP($B34,'Dermal Crosswalk'!$A$6:$R$16,17,FALSE),VLOOKUP($B34,'Dermal Crosswalk'!$A$6:$R$16,13,FALSE))),"--") -> 0.3261947373 | M34: =IFERROR(VLOOKUP(D34,$V$8:$Y$9,4,FALSE)*IF($D34="Inhalation",IF($J34="Central Tendency",SUMIFS('Inhalation Exposure'!$O$6:$O$19,'Inhalation Exposure'!$B$6:$B$19,$B34,'Inhalation Exposure'!$D$6:$D$19,$C34),SUMIFS('Inhalation Exposure'!$N$6:$N$19,'Inhalation Exposure'!$B$6:$B$19,$B34,'Inhalation Exposure'!$D$6:$D$19,$C34)),IF($J34="Central Tendency",VLOOKUP($B34,'Dermal Crosswalk'!$A$6:$R$16,18,FALSE),VLOOKUP($B34,'Dermal Crosswalk'!$A$6:$R$16,14,FALSE))),"--") -> 0.3093951722 | N34: =K34*R34 -> 32.19918435 | O34: =L34*S34 -> 6.523894746 | P34: =M34/T34 -> 0.01546975861 | R34: 20 | S34: 20 | T34: 20
B35: 2b | C35: Worker | D35: Dermal | N35: =CONCATENATE("(PF ",R34,")") -> (PF 20) | O35: =CONCATENATE("(PF ",S34,")") -> (PF 20) | P35: =CONCATENATE("(PF ",T34,")") -> (PF 20) | R35: PF | S35: PF | T35: PF
B36: 2b | C36: ONU | D36: Inhalation | H36: ONU | I36: Inhalation 8-hr TWA | J36: Central Tendency | K36: =IFERROR(VLOOKUP($D36,$V$8:$Y$9,2,FALSE)/IF($D36="Inhalation",IF($J36="Central Tendency",SUMIFS('Inhalation Exposure'!$I$6:$I$19,'Inhalation Exposure'!$B$6:$B$19,$B36,'Inhalation Exposure'!$D$6:$D$19,$C36),SUMIFS('Inhalation Exposure'!$H$6:$H$19,'Inhalation Exposure'!$B$6:$B$19,$B36,'Inhalation Exposure'!$D$6:$D$19,$C36)),IF($J36="Central Tendency",VLOOKUP($B36,'Dermal Crosswalk'!$A$6:$R$16,16,FALSE),VLOOKUP($B36,'Dermal Crosswalk'!$A$6:$R$16,12,FALSE))),"--") -> -- | L36: =IFERROR(VLOOKUP($D36,$V$8:$Y$9,3,FALSE)/IF($D36="Inhalation",IF($J36="Central Tendency",SUMIFS('Inhalation Exposure'!$M$6:$M$19,'Inhalation Exposure'!$B$6:$B$19,$B36,'Inhalation Exposure'!$D$6:$D$19,$C36),SUMIFS('Inhalation Exposure'!$L$6:$L$19,'Inhalation Exposure'!$B$6:$B$19,$B36,'Inhalation Exposure'!$D$6:$D$19,$C36)),IF($J36="Central Tendency",VLOOKUP($B36,'Dermal Crosswalk'!$A$6:$R$16,17,FALSE),VLOOKUP($B36,'Dermal Crosswalk'!$A$6:$R$16,13,FALSE))),"--") -> -- | M36: -- | N36: N/A | O36: N/A | P36: N/A | R36: N/A | S36: N/A | T36: N/A
B37: 2b | C37: ONU | D37: Inhalation | J37: High-End | K37: =IFERROR(VLOOKUP($D37,$V$8:$Y$9,2,FALSE)/IF($D37="Inhalation",IF($J37="Central Tendency",SUMIFS('Inhalation Exposure'!$I$6:$I$19,'Inhalation Exposure'!$B$6:$B$19,$B37,'Inhalation Exposure'!$D$6:$D$19,$C37),SUMIFS('Inhalation Exposure'!$H$6:$H$19,'Inhalation Exposure'!$B$6:$B$19,$B37,'Inhalation Exposure'!$D$6:$D$19,$C37)),IF($J37="Central Tendency",VLOOKUP($B37,'Dermal Crosswalk'!$A$6:$R$16,16,FALSE),VLOOKUP($B37,'Dermal Crosswalk'!$A$6:$R$16,12,FALSE))),"--") -> -- | L37: =IFERROR(VLOOKUP($D37,$V$8:$Y$9,3,FALSE)/IF($D37="Inhalation",IF($J37="Central Tendency",SUMIFS('Inhalation Exposure'!$M$6:$M$19,'Inhalation Exposure'!$B$6:$B$19,$B37,'Inhalation Exposure'!$D$6:$D$19,$C37),SUMIFS('Inhalation Exposure'!$L$6:$L$19,'Inhalation Exposure'!$B$6:$B$19,$B37,'Inhalation Exposure'!$D$6:$D$19,$C37)),IF($J37="Central Tendency",VLOOKUP($B37,'Dermal Crosswalk'!$A$6:$R$16,17,FALSE),VLOOKUP($B37,'Dermal Crosswalk'!$A$6:$R$16,13,FALSE))),"--") -> -- | M37: -- | N37: N/A | O37: N/A | P37: N/A | R37: N/A | S37: N/A | T37: N/A
B38: 3 | C38: Worker | D38: Inhalation | E38: Processing/ Recycling | F38: Recycling | G38: Section 3.4.1.5 and 5.2 – Industrial Use | H38: Worker | I38: Inhalation 8-hr TWA | J38: Central Tendency | K38: =IFERROR(VLOOKUP($D38,$V$8:$Y$9,2,FALSE)/IF($D38="Inhalation",IF($J38="Central Tendency",SUMIFS('Inhalation Exposure'!$I$6:$I$19,'Inhalation Exposure'!$B$6:$B$19,$B38,'Inhalation Exposure'!$D$6:$D$19,$C38),SUMIFS('Inhalation Exposure'!$H$6:$H$19,'Inhalation Exposure'!$B$6:$B$19,$B38,'Inhalation Exposure'!$D$6:$D$19,$C38)),IF($J38="Central Tendency",VLOOKUP($B38,'Dermal Crosswalk'!$A$6:$R$16,16,FALSE),VLOOKUP($B38,'Dermal Crosswalk'!$A$6:$R$16,12,FALSE))),"--") -> 56.8 | L38: =IFERROR(VLOOKUP($D38,$V$8:$Y$9,3,FALSE)/IF($D38="Inhalation",IF($J38="Central Tendency",SUMIFS('Inhalation Exposure'!$M$6:$M$19,'Inhalation Exposure'!$B$6:$B$19,$B38,'Inhalation Exposure'!$D$6:$D$19,$C38),SUMIFS('Inhalation Exposure'!$L$6:$L$19,'Inhalation Exposure'!$B$6:$B$19,$B38,'Inhalation Exposure'!$D$6:$D$19,$C38)),IF($J38="Central Tendency",VLOOKUP($B38,'Dermal Crosswalk'!$A$6:$R$16,17,FALSE),VLOOKUP($B38,'Dermal Crosswalk'!$A$6:$R$16,13,FALSE))),"--") -> 2.6624 | M38: =IFERROR(VLOOKUP(D38,$V$8:$Y$9,4,FALSE)*IF($D38="Inhalation",IF($J38="Central Tendency",SUMIFS('Inhalation Exposure'!$O$6:$O$19,'Inhalation Exposure'!$B$6:$B$19,$B38,'Inhalation Exposure'!$D$6:$D$19,$C38),SUMIFS('Inhalation Exposure'!$N$6:$N$19,'Inhalation Exposure'!$B$6:$B$19,$B38,'Inhalation Exposure'!$D$6:$D$19,$C38)),IF($J38="Central Tendency",VLOOKUP($B38,'Dermal Crosswalk'!$A$6:$R$16,18,FALSE),VLOOKUP($B38,'Dermal Crosswalk'!$A$6:$R$16,14,FALSE))),"--") -> 0.001910749507 | N38: =K38*R38 -> 568 | O38: =L38*S38 -> 133.12 | P38: =M38/T38 -> 3.821499014e-05 | R38: 10 | S38: 50 | T38: 50
B39: 3 | C39: Worker | D39: Inhalation | N39: =CONCATENATE("(APF ",R38,")") -> (APF 10) | O39: =CONCATENATE("(APF ",S38,")") -> (APF 50) | P39: =CONCATENATE("(APF ",T38,")") -> (APF 50) | R39: APF | S39: APF | T39: APF
B40: 3 | C40: Worker | D40: Inhalation | J40: High-End | K40: =IFERROR(VLOOKUP($D40,$V$8:$Y$9,2,FALSE)/IF($D40="Inhalation",IF($J40="Central Tendency",SUMIFS('Inhalation Exposure'!$I$6:$I$19,'Inhalation Exposure'!$B$6:$B$19,$B40,'Inhalation Exposure'!$D$6:$D$19,$C40),SUMIFS('Inhalation Exposure'!$H$6:$H$19,'Inhalation Exposure'!$B$6:$B$19,$B40,'Inhalation Exposure'!$D$6:$D$19,$C40)),IF($J40="Central Tendency",VLOOKUP($B40,'Dermal Crosswalk'!$A$6:$R$16,16,FALSE),VLOOKUP($B40,'Dermal Crosswalk'!$A$6:$R$16,12,FALSE))),"--") -> 14.2 | L40: =IFERROR(VLOOKUP($D40,$V$8:$Y$9,3,FALSE)/IF($D40="Inhalation",IF($J40="Central Tendency",SUMIFS('Inhalation Exposure'!$M$6:$M$19,'Inhalation Exposure'!$B$6:$B$19,$B40,'Inhalation Exposure'!$D$6:$D$19,$C40),SUMIFS('Inhalation Exposure'!$L$6:$L$19,'Inhalation Exposure'!$B$6:$B$19,$B40,'Inhalation Exposure'!$D$6:$D$19,$C40)),IF($J40="Central Tendency",VLOOKUP($B40,'Dermal Crosswalk'!$A$6:$R$16,17,FALSE),VLOOKUP($B40,'Dermal Crosswalk'!$A$6:$R$16,13,FALSE))),"--") -> 0.6656 | M40: =IFERROR(VLOOKUP(D40,$V$8:$Y$9,4,FALSE)*IF($D40="Inhalation",IF($J40="Central Tendency",SUMIFS('Inhalation Exposure'!$O$6:$O$19,'Inhalation Exposure'!$B$6:$B$19,$B40,'Inhalation Exposure'!$D$6:$D$19,$C40),SUMIFS('Inhalation Exposure'!$N$6:$N$19,'Inhalation Exposure'!$B$6:$B$19,$B40,'Inhalation Exposure'!$D$6:$D$19,$C40)),IF($J40="Central Tendency",VLOOKUP($B40,'Dermal Crosswalk'!$A$6:$R$16,18,FALSE),VLOOKUP($B40,'Dermal Crosswalk'!$A$6:$R$16,14,FALSE))),"--") -> 0.009861932939 | N40: =K40*R40 -> 710 | O40: =L40*S40 -> 33.28 | P40: =M40/T40 -> 0.0001972386588 | R40: 50 | S40: 50 | T40: 50
B41: 3 | C41: Worker | D41: Inhalation | N41: =CONCATENATE("(APF ",R40,")") -> (APF 50) | O41: =CONCATENATE("(APF ",S40,")") -> (APF 50) | P41: =CONCATENATE("(APF ",T40,")") -> (APF 50) | R41: APF | S41: APF | T41: APF
B42: 3 | C42: Worker | D42: Dermal | H42: Worker | I42: Dermal | J42: Central Tendency | K42: =IFERROR(VLOOKUP($D42,$V$8:$Y$9,2,FALSE)/IF($D42="Inhalation",IF($J42="Central Tendency",SUMIFS('Inhalation Exposure'!$I$6:$I$19,'Inhalation Exposure'!$B$6:$B$19,$B42,'Inhalation Exposure'!$D$6:$D$19,$C42),SUMIFS('Inhalation Exposure'!$H$6:$H$19,'Inhalation Exposure'!$B$6:$B$19,$B42,'Inhalation Exposure'!$D$6:$D$19,$C42)),IF($J42="Central Tendency",VLOOKUP($B42,'Dermal Crosswalk'!$A$6:$R$16,16,FALSE),VLOOKUP($B42,'Dermal Crosswalk'!$A$6:$R$16,12,FALSE))),"--") -> 4.829877653 | L42: =IFERROR(VLOOKUP($D42,$V$8:$Y$9,3,FALSE)/IF($D42="Inhalation",IF($J42="Central Tendency",SUMIFS('Inhalation Exposure'!$M$6:$M$19,'Inhalation Exposure'!$B$6:$B$19,$B42,'Inhalation Exposure'!$D$6:$D$19,$C42),SUMIFS('Inhalation Exposure'!$L$6:$L$19,'Inhalation Exposure'!$B$6:$B$19,$B42,'Inhalation Exposure'!$D$6:$D$19,$C42)),IF($J42="Central Tendency",VLOOKUP($B42,'Dermal Crosswalk'!$A$6:$R$16,17,FALSE),VLOOKUP($B42,'Dermal Crosswalk'!$A$6:$R$16,13,FALSE))),"--") -> 0.2270315371 | M42: =IFERROR(VLOOKUP(D42,$V$8:$Y$9,4,FALSE)*IF($D42="Inhalation",IF($J42="Central Tendency",SUMIFS('Inhalation Exposure'!$O$6:$O$19,'Inhalation Exposure'!$B$6:$B$19,$B42,'Inhalation Exposure'!$D$6:$D$19,$C42),SUMIFS('Inhalation Exposure'!$N$6:$N$19,'Inhalation Exposure'!$B$6:$B$19,$B42,'Inhalation Exposure'!$D$6:$D$19,$C42)),IF($J42="Central Tendency",VLOOKUP($B42,'Dermal Crosswalk'!$A$6:$R$16,18,FALSE),VLOOKUP($B42,'Dermal Crosswalk'!$A$6:$R$16,14,FALSE))),"--") -> 0.3445133024 | N42: =K42*R42 -> 96.59755306 | O42: =L42*S42 -> 4.540630743 | P42: =M42/T42 -> 0.01722566512 | R42: 20 | S42: 20 | T42: 20
B43: 3 | C43: Worker | D43: Dermal | N43: =CONCATENATE("(PF ",R42,")") -> (PF 20) | O43: =CONCATENATE("(PF ",S42,")") -> (PF 20) | P43: =CONCATENATE("(PF ",T42,")") -> (PF 20) | R43: PF | S43: PF | T43: PF
B44: 3 | C44: Worker | D44: Dermal | J44: High-End | K44: =IFERROR(VLOOKUP($D44,$V$8:$Y$9,2,FALSE)/IF($D44="Inhalation",IF($J44="Central Tendency",SUMIFS('Inhalation Exposure'!$I$6:$I$19,'Inhalation Exposure'!$B$6:$B$19,$B44,'Inhalation Exposure'!$D$6:$D$19,$C44),SUMIFS('Inhalation Exposure'!$H$6:$H$19,'Inhalation Exposure'!$B$6:$B$19,$B44,'Inhalation Exposure'!$D$6:$D$19,$C44)),IF($J44="Central Tendency",VLOOKUP($B44,'Dermal Crosswalk'!$A$6:$R$16,16,FALSE),VLOOKUP($B44,'Dermal Crosswalk'!$A$6:$R$16,12,FALSE))),"--") -> 1.609959218 | L44: =IFERROR(VLOOKUP($D44,$V$8:$Y$9,3,FALSE)/IF($D44="Inhalation",IF($J44="Central Tendency",SUMIFS('Inhalation Exposure'!$M$6:$M$19,'Inhalation Exposure'!$B$6:$B$19,$B44,'Inhalation Exposure'!$D$6:$D$19,$C44),SUMIFS('Inhalation Exposure'!$L$6:$L$19,'Inhalation Exposure'!$B$6:$B$19,$B44,'Inhalation Exposure'!$D$6:$D$19,$C44)),IF($J44="Central Tendency",VLOOKUP($B44,'Dermal Crosswalk'!$A$6:$R$16,17,FALSE),VLOOKUP($B44,'Dermal Crosswalk'!$A$6:$R$16,13,FALSE))),"--") -> 0.07567717905 | M44: =IFERROR(VLOOKUP(D44,$V$8:$Y$9,4,FALSE)*IF($D44="Inhalation",IF($J44="Central Tendency",SUMIFS('Inhalation Exposure'!$O$6:$O$19,'Inhalation Exposure'!$B$6:$B$19,$B44,'Inhalation Exposure'!$D$6:$D$19,$C44),SUMIFS('Inhalation Exposure'!$N$6:$N$19,'Inhalation Exposure'!$B$6:$B$19,$B44,'Inhalation Exposure'!$D$6:$D$19,$C44)),IF($J44="Central Tendency",VLOOKUP($B44,'Dermal Crosswalk'!$A$6:$R$16,18,FALSE),VLOOKUP($B44,'Dermal Crosswalk'!$A$6:$R$16,14,FALSE))),"--") -> 1.33359988 | N44: =K44*R44 -> 32.19918435 | O44: =L44*S44 -> 1.513543581 | P44: =M44/T44 -> 0.06667999402 | R44: 20 | S44: 20 | T44: 20
B45: 3 | C45: Worker | D45: Dermal | N45: =CONCATENATE("(PF ",R44,")") -> (PF 20) | O45: =CONCATENATE("(PF ",S44,")") -> (PF 20) | P45: =CONCATENATE("(PF ",T44,")") -> (PF 20) | R45: PF | S45: PF | T45: PF
B46: 3 | C46: ONU | D46: Inhalation | H46: ONU | I46: Inhalation 8-hr TWA | J46: Central Tendency | K46: =IFERROR(VLOOKUP($D46,$V$8:$Y$9,2,FALSE)/IF($D46="Inhalation",IF($J46="Central Tendency",SUMIFS('Inhalation Exposure'!$I$6:$I$19,'Inhalation Exposure'!$B$6:$B$19,$B46,'Inhalation Exposure'!$D$6:$D$19,$C46),SUMIFS('Inhalation Exposure'!$H$6:$H$19,'Inhalation Exposure'!$B$6:$B$19,$B46,'Inhalation Exposure'!$D$6:$D$19,$C46)),IF($J46="Central Tendency",VLOOKUP($B46,'Dermal Crosswalk'!$A$6:$R$16,16,FALSE),VLOOKUP($B46,'Dermal Crosswalk'!$A$6:$R$16,12,FALSE))),"--") -> -- | L46: =IFERROR(VLOOKUP($D46,$V$8:$Y$9,3,FALSE)/IF($D46="Inhalation",IF($J46="Central Tendency",SUMIFS('Inhalation Exposure'!$M$6:$M$19,'Inhalation Exposure'!$B$6:$B$19,$B46,'Inhalation Exposure'!$D$6:$D$19,$C46),SUMIFS('Inhalation Exposure'!$L$6:$L$19,'Inhalation Exposure'!$B$6:$B$19,$B46,'Inhalation Exposure'!$D$6:$D$19,$C46)),IF($J46="Central Tendency",VLOOKUP($B46,'Dermal Crosswalk'!$A$6:$R$16,17,FALSE),VLOOKUP($B46,'Dermal Crosswalk'!$A$6:$R$16,13,FALSE))),"--") -> -- | M46: -- | N46: N/A | O46: N/A | P46: N/A | R46: N/A | S46: N/A | T46: N/A
B47: 3 | C47: ONU | D47: Inhalation | J47: High-End | K47: =IFERROR(VLOOKUP($D47,$V$8:$Y$9,2,FALSE)/IF($D47="Inhalation",IF($J47="Central Tendency",SUMIFS('Inhalation Exposure'!$I$6:$I$19,'Inhalation Exposure'!$B$6:$B$19,$B47,'Inhalation Exposure'!$D$6:$D$19,$C47),SUMIFS('Inhalation Exposure'!$H$6:$H$19,'Inhalation Exposure'!$B$6:$B$19,$B47,'Inhalation Exposure'!$D$6:$D$19,$C47)),IF($J47="Central Tendency",VLOOKUP($B47,'Dermal Crosswalk'!$A$6:$R$16,16,FALSE),VLOOKUP($B47,'Dermal Crosswalk'!$A$6:$R$16,12,FALSE))),"--") -> -- | L47: =IFERROR(VLOOKUP($D47,$V$8:$Y$9,3,FALSE)/IF($D47="Inhalation",IF($J47="Central Tendency",SUMIFS('Inhalation Exposure'!$M$6:$M$19,'Inhalation Exposure'!$B$6:$B$19,$B47,'Inhalation Exposure'!$D$6:$D$19,$C47),SUMIFS('Inhalation Exposure'!$L$6:$L$19,'Inhalation Exposure'!$B$6:$B$19,$B47,'Inhalation Exposure'!$D$6:$D$19,$C47)),IF($J47="Central Tendency",VLOOKUP($B47,'Dermal Crosswalk'!$A$6:$R$16,17,FALSE),VLOOKUP($B47,'Dermal Crosswalk'!$A$6:$R$16,13,FALSE))),"--") -> -- | M47: -- | N47: N/A | O47: N/A | P47: N/A | R47: N/A | S47: N/A | T47: N/A
B48: 3 | C48: Worker | D48: Inhalation | E48: Processing/ Non-Incorporative | F48: Pharmaceutical and medicine manufacturing (process solvent) | G48: Section 3.4.1.5 and 5.2 – Industrial Use | H48: Worker | I48: Inhalation 8-hr TWA | J48: Central Tendency | K48: =IFERROR(VLOOKUP($D48,$V$8:$Y$9,2,FALSE)/IF($D48="Inhalation",IF($J48="Central Tendency",SUMIFS('Inhalation Exposure'!$I$6:$I$19,'Inhalation Exposure'!$B$6:$B$19,$B48,'Inhalation Exposure'!$D$6:$D$19,$C48),SUMIFS('Inhalation Exposure'!$H$6:$H$19,'Inhalation Exposure'!$B$6:$B$19,$B48,'Inhalation Exposure'!$D$6:$D$19,$C48)),IF($J48="Central Tendency",VLOOKUP($B48,'Dermal Crosswalk'!$A$6:$R$16,16,FALSE),VLOOKUP($B48,'Dermal Crosswalk'!$A$6:$R$16,12,FALSE))),"--") -> 56.8 | L48: =IFERROR(VLOOKUP($D48,$V$8:$Y$9,3,FALSE)/IF($D48="Inhalation",IF($J48="Central Tendency",SUMIFS('Inhalation Exposure'!$M$6:$M$19,'Inhalation Exposure'!$B$6:$B$19,$B48,'Inhalation Exposure'!$D$6:$D$19,$C48),SUMIFS('Inhalation Exposure'!$L$6:$L$19,'Inhalation Exposure'!$B$6:$B$19,$B48,'Inhalation Exposure'!$D$6:$D$19,$C48)),IF($J48="Central Tendency",VLOOKUP($B48,'Dermal Crosswalk'!$A$6:$R$16,17,FALSE),VLOOKUP($B48,'Dermal Crosswalk'!$A$6:$R$16,13,FALSE))),"--") -> 2.6624 | M48: =IFERROR(VLOOKUP(D48,$V$8:$Y$9,4,FALSE)*IF($D48="Inhalation",IF($J48="Central Tendency",SUMIFS('Inhalation Exposure'!$O$6:$O$19,'Inhalation Exposure'!$B$6:$B$19,$B48,'Inhalation Exposure'!$D$6:$D$19,$C48),SUMIFS('Inhalation Exposure'!$N$6:$N$19,'Inhalation Exposure'!$B$6:$B$19,$B48,'Inhalation Exposure'!$D$6:$D$19,$C48)),IF($J48="Central Tendency",VLOOKUP($B48,'Dermal Crosswalk'!$A$6:$R$16,18,FALSE),VLOOKUP($B48,'Dermal Crosswalk'!$A$6:$R$16,14,FALSE))),"--") -> 0.001910749507 | N48: =K48*R48 -> 568 | O48: =L48*S48 -> 133.12 | P48: =M48/T48 -> 3.821499014e-05 | R48: 10 | S48: 50 | T48: 50
B49: 3 | C49: Worker | D49: Inhalation | N49: =CONCATENATE("(APF ",R48,")") -> (APF 10) | O49: =CONCATENATE("(APF ",S48,")") -> (APF 50) | P49: =CONCATENATE("(APF ",T48,")") -> (APF 50) | R49: APF | S49: APF | T49: APF
B50: 3 | C50: Worker | D50: Inhalation | F50: Basic organic chemical manufacturing (process solvent) | J50: High-End | K50: =IFERROR(VLOOKUP($D50,$V$8:$Y$9,2,FALSE)/IF($D50="Inhalation",IF($J50="Central Tendency",SUMIFS('Inhalation Exposure'!$I$6:$I$19,'Inhalation Exposure'!$B$6:$B$19,$B50,'Inhalation Exposure'!$D$6:$D$19,$C50),SUMIFS('Inhalation Exposure'!$H$6:$H$19,'Inhalation Exposure'!$B$6:$B$19,$B50,'Inhalation Exposure'!$D$6:$D$19,$C50)),IF($J50="Central Tendency",VLOOKUP($B50,'Dermal Crosswalk'!$A$6:$R$16,16,FALSE),VLOOKUP($B50,'Dermal Crosswalk'!$A$6:$R$16,12,FALSE))),"--") -> 14.2 | L50: =IFERROR(VLOOKUP($D50,$V$8:$Y$9,3,FALSE)/IF($D50="Inhalation",IF($J50="Central Tendency",SUMIFS('Inhalation Exposure'!$M$6:$M$19,'Inhalation Exposure'!$B$6:$B$19,$B50,'Inhalation Exposure'!$D$6:$D$19,$C50),SUMIFS('Inhalation Exposure'!$L$6:$L$19,'Inhalation Exposure'!$B$6:$B$19,$B50,'Inhalation Exposure'!$D$6:$D$19,$C50)),IF($J50="Central Tendency",VLOOKUP($B50,'Dermal Crosswalk'!$A$6:$R$16,17,FALSE),VLOOKUP($B50,'Dermal Crosswalk'!$A$6:$R$16,13,FALSE))),"--") -> 0.6656 | M50: =IFERROR(VLOOKUP(D50,$V$8:$Y$9,4,FALSE)*IF($D50="Inhalation",IF($J50="Central Tendency",SUMIFS('Inhalation Exposure'!$O$6:$O$19,'Inhalation Exposure'!$B$6:$B$19,$B50,'Inhalation Exposure'!$D$6:$D$19,$C50),SUMIFS('Inhalation Exposure'!$N$6:$N$19,'Inhalation Exposure'!$B$6:$B$19,$B50,'Inhalation Exposure'!$D$6:$D$19,$C50)),IF($J50="Central Tendency",VLOOKUP($B50,'Dermal Crosswalk'!$A$6:$R$16,18,FALSE),VLOOKUP($B50,'Dermal Crosswalk'!$A$6:$R$16,14,FALSE))),"--") -> 0.009861932939 | N50: =K50*R50 -> 710 | O50: =L50*S50 -> 33.28 | P50: =M50/T50 -> 0.0001972386588 | R50: 50 | S50: 50 | T50: 50
B51: 3 | C51: Worker | D51: Inhalation | N51: =CONCATENATE("(APF ",R50,")") -> (APF 50) | O51: =CONCATENATE("(APF ",S50,")") -> (APF 50) | P51: =CONCATENATE("(APF ",T50,")") -> (APF 50) | R51: APF | S51: APF | T51: APF
B52: 3 | C52: Worker | D52: Dermal | H52: Worker | I52: Dermal | J52: Central Tendency | K52: =IFERROR(VLOOKUP($D52,$V$8:$Y$9,2,FALSE)/IF($D52="Inhalation",IF($J52="Central Tendency",SUMIFS('Inhalation Exposure'!$I$6:$I$19,'Inhalation Exposure'!$B$6:$B$19,$B52,'Inhalation Exposure'!$D$6:$D$19,$C52),SUMIFS('Inhalation Exposure'!$H$6:$H$19,'Inhalation Exposure'!$B$6:$B$19,$B52,'Inhalation Exposure'!$D$6:$D$19,$C52)),IF($J52="Central Tendency",VLOOKUP($B52,'Dermal Crosswalk'!$A$6:$R$16,16,FALSE),VLOOKUP($B52,'Dermal Crosswalk'!$A$6:$R$16,12,FALSE))),"--") -> 4.829877653 | L52: =IFERROR(VLOOKUP($D52,$V$8:$Y$9,3,FALSE)/IF($D52="Inhalation",IF($J52="Central Tendency",SUMIFS('Inhalation Exposure'!$M$6:$M$19,'Inhalation Exposure'!$B$6:$B$19,$B52,'Inhalation Exposure'!$D$6:$D$19,$C52),SUMIFS('Inhalation Exposure'!$L$6:$L$19,'Inhalation Exposure'!$B$6:$B$19,$B52,'Inhalation Exposure'!$D$6:$D$19,$C52)),IF($J52="Central Tendency",VLOOKUP($B52,'Dermal Crosswalk'!$A$6:$R$16,17,FALSE),VLOOKUP($B52,'Dermal Crosswalk'!$A$6:$R$16,13,FALSE))),"--") -> 0.2270315371 | M52: =IFERROR(VLOOKUP(D52,$V$8:$Y$9,4,FALSE)*IF($D52="Inhalation",IF($J52="Central Tendency",SUMIFS('Inhalation Exposure'!$O$6:$O$19,'Inhalation Exposure'!$B$6:$B$19,$B52,'Inhalation Exposure'!$D$6:$D$19,$C52),SUMIFS('Inhalation Exposure'!$N$6:$N$19,'Inhalation Exposure'!$B$6:$B$19,$B52,'Inhalation Exposure'!$D$6:$D$19,$C52)),IF($J52="Central Tendency",VLOOKUP($B52,'Dermal Crosswalk'!$A$6:$R$16,18,FALSE),VLOOKUP($B52,'Dermal Crosswalk'!$A$6:$R$16,14,FALSE))),"--") -> 0.3445133024 | N52: =K52*R52 -> 96.59755306 | O52: =L52*S52 -> 4.540630743 | P52: =M52/T52 -> 0.01722566512 | R52: 20 | S52: 20 | T52: 20
B53: 3 | C53: Worker | D53: Dermal | N53: =CONCATENATE("(PF ",R52,")") -> (PF 20) | O53: =CONCATENATE("(PF ",S52,")") -> (PF 20) | P53: =CONCATENATE("(PF ",T52,")") -> (PF 20) | R53: PF | S53: PF | T53: PF
B54: 3 | C54: Worker | D54: Dermal | J54: High-End | K54: =IFERROR(VLOOKUP($D54,$V$8:$Y$9,2,FALSE)/IF($D54="Inhalation",IF($J54="Central Tendency",SUMIFS('Inhalation Exposure'!$I$6:$I$19,'Inhalation Exposure'!$B$6:$B$19,$B54,'Inhalation Exposure'!$D$6:$D$19,$C54),SUMIFS('Inhalation Exposure'!$H$6:$H$19,'Inhalation Exposure'!$B$6:$B$19,$B54,'Inhalation Exposure'!$D$6:$D$19,$C54)),IF($J54="Central Tendency",VLOOKUP($B54,'Dermal Crosswalk'!$A$6:$R$16,16,FALSE),VLOOKUP($B54,'Dermal Crosswalk'!$A$6:$R$16,12,FALSE))),"--") -> 1.609959218 | L54: =IFERROR(VLOOKUP($D54,$V$8:$Y$9,3,FALSE)/IF($D54="Inhalation",IF($J54="Central Tendency",SUMIFS('Inhalation Exposure'!$M$6:$M$19,'Inhalation Exposure'!$B$6:$B$19,$B54,'Inhalation Exposure'!$D$6:$D$19,$C54),SUMIFS('Inhalation Exposure'!$L$6:$L$19,'Inhalation Exposure'!$B$6:$B$19,$B54,'Inhalation Exposure'!$D$6:$D$19,$C54)),IF($J54="Central Tendency",VLOOKUP($B54,'Dermal Crosswalk'!$A$6:$R$16,17,FALSE),VLOOKUP($B54,'Dermal Crosswalk'!$A$6:$R$16,13,FALSE))),"--") -> 0.07567717905 | M54: =IFERROR(VLOOKUP(D54,$V$8:$Y$9,4,FALSE)*IF($D54="Inhalation",IF($J54="Central Tendency",SUMIFS('Inhalation Exposure'!$O$6:$O$19,'Inhalation Exposure'!$B$6:$B$19,$B54,'Inhalation Exposure'!$D$6:$D$19,$C54),SUMIFS('Inhalation Exposure'!$N$6:$N$19,'Inhalation Exposure'!$B$6:$B$19,$B54,'Inhalation Exposure'!$D$6:$D$19,$C54)),IF($J54="Central Tendency",VLOOKUP($B54,'Dermal Crosswalk'!$A$6:$R$16,18,FALSE),VLOOKUP($B54,'Dermal Crosswalk'!$A$6:$R$16,14,FALSE))),"--") -> 1.33359988 | N54: =K54*R54 -> 32.19918435 | O54: =L54*S54 -> 1.513543581 | P54: =M54/T54 -> 0.06667999402 | R54: 20 | S54: 20 | T54: 20
B55: 3 | C55: Worker | D55: Dermal | N55: =CONCATENATE("(PF ",R54,")") -> (PF 20) | O55: =CONCATENATE("(PF ",S54,")") -> (PF 20) | P55: =CONCATENATE("(PF ",T54,")") -> (PF 20) | R55: PF | S55: PF | T55: PF
B56: 3 | C56: ONU | D56: Inhalation | H56: ONU | I56: Inhalation | J56: Central Tendency | K56: =IFERROR(VLOOKUP($D56,$V$8:$Y$9,2,FALSE)/IF($D56="Inhalation",IF($J56="Central Tendency",SUMIFS('Inhalation Exposure'!$I$6:$I$19,'Inhalation Exposure'!$B$6:$B$19,$B56,'Inhalation Exposure'!$D$6:$D$19,$C56),SUMIFS('Inhalation Exposure'!$H$6:$H$19,'Inhalation Exposure'!$B$6:$B$19,$B56,'Inhalation Exposure'!$D$6:$D$19,$C56)),IF($J56="Central Tendency",VLOOKUP($B56,'Dermal Crosswalk'!$A$6:$R$16,16,FALSE),VLOOKUP($B56,'Dermal Crosswalk'!$A$6:$R$16,12,FALSE))),"--") -> -- | L56: =IFERROR(VLOOKUP($D56,$V$8:$Y$9,3,FALSE)/IF($D56="Inhalation",IF($J56="Central Tendency",SUMIFS('Inhalation Exposure'!$M$6:$M$19,'Inhalation Exposure'!$B$6:$B$19,$B56,'Inhalation Exposure'!$D$6:$D$19,$C56),SUMIFS('Inhalation Exposure'!$L$6:$L$19,'Inhalation Exposure'!$B$6:$B$19,$B56,'Inhalation Exposure'!$D$6:$D$19,$C56)),IF($J56="Central Tendency",VLOOKUP($B56,'Dermal Crosswalk'!$A$6:$R$16,17,FALSE),VLOOKUP($B56,'Dermal Crosswalk'!$A$6:$R$16,13,FALSE))),"--") -> -- | M56: -- | N56: N/A | O56: N/A | P56: N/A | R56: N/A | S56: N/A | T56: N/A
B57: 3 | C57: ONU | D57: Inhalation | I57: 8-hr TWA | J57: High-End | K57: =IFERROR(VLOOKUP($D57,$V$8:$Y$9,2,FALSE)/IF($D57="Inhalation",IF($J57="Central Tendency",SUMIFS('Inhalation Exposure'!$I$6:$I$19,'Inhalation Exposure'!$B$6:$B$19,$B57,'Inhalation Exposure'!$D$6:$D$19,$C57),SUMIFS('Inhalation Exposure'!$H$6:$H$19,'Inhalation Exposure'!$B$6:$B$19,$B57,'Inhalation Exposure'!$D$6:$D$19,$C57)),IF($J57="Central Tendency",VLOOKUP($B57,'Dermal Crosswalk'!$A$6:$R$16,16,FALSE),VLOOKUP($B57,'Dermal Crosswalk'!$A$6:$R$16,12,FALSE))),"--") -> -- | L57: =IFERROR(VLOOKUP($D57,$V$8:$Y$9,3,FALSE)/IF($D57="Inhalation",IF($J57="Central Tendency",SUMIFS('Inhalation Exposure'!$M$6:$M$19,'Inhalation Exposure'!$B$6:$B$19,$B57,'Inhalation Exposure'!$D$6:$D$19,$C57),SUMIFS('Inhalation Exposure'!$L$6:$L$19,'Inhalation Exposure'!$B$6:$B$19,$B57,'Inhalation Exposure'!$D$6:$D$19,$C57)),IF($J57="Central Tendency",VLOOKUP($B57,'Dermal Crosswalk'!$A$6:$R$16,17,FALSE),VLOOKUP($B57,'Dermal Crosswalk'!$A$6:$R$16,13,FALSE))),"--") -> -- | M57: -- | N57: N/A | O57: N/A | P57: N/A | R57: N/A | S57: N/A | T57: N/A
B58: 3 | C58: Worker | D58: Inhalation | E58: Processing/ Processing as a reactant | F58: Pharmaceutical intermediate | G58: Section 3.4.1.5 and 5.2 – Industrial Use | H58: Worker | I58: Inhalation 8-hr TWA | J58: Central Tendency | K58: =IFERROR(VLOOKUP($D58,$V$8:$Y$9,2,FALSE)/IF($D58="Inhalation",IF($J58="Central Tendency",SUMIFS('Inhalation Exposure'!$I$6:$I$19,'Inhalation Exposure'!$B$6:$B$19,$B58,'Inhalation Exposure'!$D$6:$D$19,$C58),SUMIFS('Inhalation Exposure'!$H$6:$H$19,'Inhalation Exposure'!$B$6:$B$19,$B58,'Inhalation Exposure'!$D$6:$D$19,$C58)),IF($J58="Central Tendency",VLOOKUP($B58,'Dermal Crosswalk'!$A$6:$R$16,16,FALSE),VLOOKUP($B58,'Dermal Crosswalk'!$A$6:$R$16,12,FALSE))),"--") -> 56.8 | L58: =IFERROR(VLOOKUP($D58,$V$8:$Y$9,3,FALSE)/IF($D58="Inhalation",IF($J58="Central Tendency",SUMIFS('Inhalation Exposure'!$M$6:$M$19,'Inhalation Exposure'!$B$6:$B$19,$B58,'Inhalation Exposure'!$D$6:$D$19,$C58),SUMIFS('Inhalation Exposure'!$L$6:$L$19,'Inhalation Exposure'!$B$6:$B$19,$B58,'Inhalation Exposure'!$D$6:$D$19,$C58)),IF($J58="Central Tendency",VLOOKUP($B58,'Dermal Crosswalk'!$A$6:$R$16,17,FALSE),VLOOKUP($B58,'Dermal Crosswalk'!$A$6:$R$16,13,FALSE))),"--") -> 2.6624 | M58: =IFERROR(VLOOKUP(D58,$V$8:$Y$9,4,FALSE)*IF($D58="Inhalation",IF($J58="Central Tendency",SUMIFS('Inhalation Exposure'!$O$6:$O$19,'Inhalation Exposure'!$B$6:$B$19,$B58,'Inhalation Exposure'!$D$6:$D$19,$C58),SUMIFS('Inhalation Exposure'!$N$6:$N$19,'Inhalation Exposure'!$B$6:$B$19,$B58,'Inhalation Exposure'!$D$6:$D$19,$C58)),IF($J58="Central Tendency",VLOOKUP($B58,'Dermal Crosswalk'!$A$6:$R$16,18,FALSE),VLOOKUP($B58,'Dermal Crosswalk'!$A$6:$R$16,14,FALSE))),"--") -> 0.001910749507 | N58: =K58*R58 -> 568 | O58: =L58*S58 -> 133.12 | P58: =M58/T58 -> 3.821499014e-05 | R58: 10 | S58: 50 | T58: 50
B59: 3 | C59: Worker | D59: Inhalation | N59: =CONCATENATE("(APF ",R58,")") -> (APF 10) | O59: =CONCATENATE("(APF ",S58,")") -> (APF 50) | P59: =CONCATENATE("(APF ",T58,")") -> (APF 50) | R59: APF | S59: APF | T59: APF
B60: 3 | C60: Worker | D60: Inhalation | F60: Polymerization catalyst | J60: High-End | K60: =IFERROR(VLOOKUP($D60,$V$8:$Y$9,2,FALSE)/IF($D60="Inhalation",IF($J60="Central Tendency",SUMIFS('Inhalation Exposure'!$I$6:$I$19,'Inhalation Exposure'!$B$6:$B$19,$B60,'Inhalation Exposure'!$D$6:$D$19,$C60),SUMIFS('Inhalation Exposure'!$H$6:$H$19,'Inhalation Exposure'!$B$6:$B$19,$B60,'Inhalation Exposure'!$D$6:$D$19,$C60)),IF($J60="Central Tendency",VLOOKUP($B60,'Dermal Crosswalk'!$A$6:$R$16,16,FALSE),VLOOKUP($B60,'Dermal Crosswalk'!$A$6:$R$16,12,FALSE))),"--") -> 14.2 | L60: =IFERROR(VLOOKUP($D60,$V$8:$Y$9,3,FALSE)/IF($D60="Inhalation",IF($J60="Central Tendency",SUMIFS('Inhalation Exposure'!$M$6:$M$19,'Inhalation Exposure'!$B$6:$B$19,$B60,'Inhalation Exposure'!$D$6:$D$19,$C60),SUMIFS('Inhalation Exposure'!$L$6:$L$19,'Inhalation Exposure'!$B$6:$B$19,$B60,'Inhalation Exposure'!$D$6:$D$19,$C60)),IF($J60="Central Tendency",VLOOKUP($B60,'Dermal Crosswalk'!$A$6:$R$16,17,FALSE),VLOOKUP($B60,'Dermal Crosswalk'!$A$6:$R$16,13,FALSE))),"--") -> 0.6656 | M60: =IFERROR(VLOOKUP(D60,$V$8:$Y$9,4,FALSE)*IF($D60="Inhalation",IF($J60="Central Tendency",SUMIFS('Inhalation Exposure'!$O$6:$O$19,'Inhalation Exposure'!$B$6:$B$19,$B60,'Inhalation Exposure'!$D$6:$D$19,$C60),SUMIFS('Inhalation Exposure'!$N$6:$N$19,'Inhalation Exposure'!$B$6:$B$19,$B60,'Inhalation Exposure'!$D$6:$D$19,$C60)),IF($J60="Central Tendency",VLOOKUP($B60,'Dermal Crosswalk'!$A$6:$R$16,18,FALSE),VLOOKUP($B60,'Dermal Crosswalk'!$A$6:$R$16,14,FALSE))),"--") -> 0.009861932939 | N60: =K60*R60 -> 710 | O60: =L60*S60 -> 33.28 | P60: =M60/T60 -> 0.0001972386588 | R60: 50 | S60: 50 | T60: 50
B61: 3 | C61: Worker | D61: Inhalation | N61: =CONCATENATE("(APF ",R60,")") -> (APF 50) | O61: =CONCATENATE("(APF ",S60,")") -> (APF 50) | P61: =CONCATENATE("(APF ",T60,")") -> (APF 50) | R61: APF | S61: APF | T61: APF
B62: 3 | C62: Worker | D62: Dermal | H62: Worker | I62: Dermal | J62: Central Tendency | K62: =IFERROR(VLOOKUP($D62,$V$8:$Y$9,2,FALSE)/IF($D62="Inhalation",IF($J62="Central Tendency",SUMIFS('Inhalation Exposure'!$I$6:$I$19,'Inhalation Exposure'!$B$6:$B$19,$B62,'Inhalation Exposure'!$D$6:$D$19,$C62),SUMIFS('Inhalation Exposure'!$H$6:$H$19,'Inhalation Exposure'!$B$6:$B$19,$B62,'Inhalation Exposure'!$D$6:$D$19,$C62)),IF($J62="Central Tendency",VLOOKUP($B62,'Dermal Crosswalk'!$A$6:$R$16,16,FALSE),VLOOKUP($B62,'Dermal Crosswalk'!$A$6:$R$16,12,FALSE))),"--") -> 4.829877653 | L62: =IFERROR(VLOOKUP($D62,$V$8:$Y$9,3,FALSE)/IF($D62="Inhalation",IF($J62="Central Tendency",SUMIFS('Inhalation Exposure'!$M$6:$M$19,'Inhalation Exposure'!$B$6:$B$19,$B62,'Inhalation Exposure'!$D$6:$D$19,$C62),SUMIFS('Inhalation Exposure'!$L$6:$L$19,'Inhalation Exposure'!$B$6:$B$19,$B62,'Inhalation Exposure'!$D$6:$D$19,$C62)),IF($J62="Central Tendency",VLOOKUP($B62,'Dermal Crosswalk'!$A$6:$R$16,17,FALSE),VLOOKUP($B62,'Dermal Crosswalk'!$A$6:$R$16,13,FALSE))),"--") -> 0.2270315371 | M62: =IFERROR(VLOOKUP(D62,$V$8:$Y$9,4,FALSE)*IF($D62="Inhalation",IF($J62="Central Tendency",SUMIFS('Inhalation Exposure'!$O$6:$O$19,'Inhalation Exposure'!$B$6:$B$19,$B62,'Inhalation Exposure'!$D$6:$D$19,$C62),SUMIFS('Inhalation Exposure'!$N$6:$N$19,'Inhalation Exposure'!$B$6:$B$19,$B62,'Inhalation Exposure'!$D$6:$D$19,$C62)),IF($J62="Central Tendency",VLOOKUP($B62,'Dermal Crosswalk'!$A$6:$R$16,18,FALSE),VLOOKUP($B62,'Dermal Crosswalk'!$A$6:$R$16,14,FALSE))),"--") -> 0.3445133024 | N62: =K62*R62 -> 96.59755306 | O62: =L62*S62 -> 4.540630743 | P62: =M62/T62 -> 0.01722566512 | R62: 20 | S62: 20 | T62: 20
B63: 3 | C63: Worker | D63: Dermal | N63: =CONCATENATE("(PF ",R62,")") -> (PF 20) | O63: =CONCATENATE("(PF ",S62,")") -> (PF 20) | P63: =CONCATENATE("(PF ",T62,")") -> (PF 20) | R63: PF | S63: PF | T63: PF
B64: 3 | C64: Worker | D64: Dermal | J64: High-End | K64: =IFERROR(VLOOKUP($D64,$V$8:$Y$9,2,FALSE)/IF($D64="Inhalation",IF($J64="Central Tendency",SUMIFS('Inhalation Exposure'!$I$6:$I$19,'Inhalation Exposure'!$B$6:$B$19,$B64,'Inhalation Exposure'!$D$6:$D$19,$C64),SUMIFS('Inhalation Exposure'!$H$6:$H$19,'Inhalation Exposure'!$B$6:$B$19,$B64,'Inhalation Exposure'!$D$6:$D$19,$C64)),IF($J64="Central Tendency",VLOOKUP($B64,'Dermal Crosswalk'!$A$6:$R$16,16,FALSE),VLOOKUP($B64,'Dermal Crosswalk'!$A$6:$R$16,12,FALSE))),"--") -> 1.609959218 | L64: =IFERROR(VLOOKUP($D64,$V$8:$Y$9,3,FALSE)/IF($D64="Inhalation",IF($J64="Central Tendency",SUMIFS('Inhalation Exposure'!$M$6:$M$19,'Inhalation Exposure'!$B$6:$B$19,$B64,'Inhalation Exposure'!$D$6:$D$19,$C64),SUMIFS('Inhalation Exposure'!$L$6:$L$19,'Inhalation Exposure'!$B$6:$B$19,$B64,'Inhalation Exposure'!$D$6:$D$19,$C64)),IF($J64="Central Tendency",VLOOKUP($B64,'Dermal Crosswalk'!$A$6:$R$16,17,FALSE),VLOOKUP($B64,'Dermal Crosswalk'!$A$6:$R$16,13,FALSE))),"--") -> 0.07567717905 | M64: =IFERROR(VLOOKUP(D64,$V$8:$Y$9,4,FALSE)*IF($D64="Inhalation",IF($J64="Central Tendency",SUMIFS('Inhalation Exposure'!$O$6:$O$19,'Inhalation Exposure'!$B$6:$B$19,$B64,'Inhalation Exposure'!$D$6:$D$19,$C64),SUMIFS('Inhalation Exposure'!$N$6:$N$19,'Inhalation Exposure'!$B$6:$B$19,$B64,'Inhalation Exposure'!$D$6:$D$19,$C64)),IF($J64="Central Tendency",VLOOKUP($B64,'Dermal Crosswalk'!$A$6:$R$16,18,FALSE),VLOOKUP($B64,'Dermal Crosswalk'!$A$6:$R$16,14,FALSE))),"--") -> 1.33359988 | N64: =K64*R64 -> 32.19918435 | O64: =L64*S64 -> 1.513543581 | P64: =M64/T64 -> 0.06667999402 | R64: 20 | S64: 20 | T64: 20
B65: 3 | C65: Worker | D65: Dermal | N65: =CONCATENATE("(PF ",R64,")") -> (PF 20) | O65: =CONCATENATE("(PF ",S64,")") -> (PF 20) | P65: =CONCATENATE("(PF ",T64,")") -> (PF 20) | R65: PF | S65: PF | T65: PF
B66: 3 | C66: ONU | D66: Inhalation | H66: ONU | I66: Inhalation 8-hr TWA | J66: Central Tendency | K66: =IFERROR(VLOOKUP($D66,$V$8:$Y$9,2,FALSE)/IF($D66="Inhalation",IF($J66="Central Tendency",SUMIFS('Inhalation Exposure'!$I$6:$I$19,'Inhalation Exposure'!$B$6:$B$19,$B66,'Inhalation Exposure'!$D$6:$D$19,$C66),SUMIFS('Inhalation Exposure'!$H$6:$H$19,'Inhalation Exposure'!$B$6:$B$19,$B66,'Inhalation Exposure'!$D$6:$D$19,$C66)),IF($J66="Central Tendency",VLOOKUP($B66,'Dermal Crosswalk'!$A$6:$R$16,16,FALSE),VLOOKUP($B66,'Dermal Crosswalk'!$A$6:$R$16,12,FALSE))),"--") -> -- | L66: =IFERROR(VLOOKUP($D66,$V$8:$Y$9,3,FALSE)/IF($D66="Inhalation",IF($J66="Central Tendency",SUMIFS('Inhalation Exposure'!$M$6:$M$19,'Inhalation Exposure'!$B$6:$B$19,$B66,'Inhalation Exposure'!$D$6:$D$19,$C66),SUMIFS('Inhalation Exposure'!$L$6:$L$19,'Inhalation Exposure'!$B$6:$B$19,$B66,'Inhalation Exposure'!$D$6:$D$19,$C66)),IF($J66="Central Tendency",VLOOKUP($B66,'Dermal Crosswalk'!$A$6:$R$16,17,FALSE),VLOOKUP($B66,'Dermal Crosswalk'!$A$6:$R$16,13,FALSE))),"--") -> -- | M66: -- | N66: N/A | O66: N/A | P66: N/A | R66: N/A | S66: N/A | T66: N/A
B67: 3 | C67: ONU | D67: Inhalation | J67: High-End | K67: =IFERROR(VLOOKUP($D67,$V$8:$Y$9,2,FALSE)/IF($D67="Inhalation",IF($J67="Central Tendency",SUMIFS('Inhalation Exposure'!$I$6:$I$19,'Inhalation Exposure'!$B$6:$B$19,$B67,'Inhalation Exposure'!$D$6:$D$19,$C67),SUMIFS('Inhalation Exposure'!$H$6:$H$19,'Inhalation Exposure'!$B$6:$B$19,$B67,'Inhalation Exposure'!$D$6:$D$19,$C67)),IF($J67="Central Tendency",VLOOKUP($B67,'Dermal Crosswalk'!$A$6:$R$16,16,FALSE),VLOOKUP($B67,'Dermal Crosswalk'!$A$6:$R$16,12,FALSE))),"--") -> -- | L67: =IFERROR(VLOOKUP($D67,$V$8:$Y$9,3,FALSE)/IF($D67="Inhalation",IF($J67="Central Tendency",SUMIFS('Inhalation Exposure'!$M$6:$M$19,'Inhalation Exposure'!$B$6:$B$19,$B67,'Inhalation Exposure'!$D$6:$D$19,$C67),SUMIFS('Inhalation Exposure'!$L$6:$L$19,'Inhalation Exposure'!$B$6:$B$19,$B67,'Inhalation Exposure'!$D$6:$D$19,$C67)),IF($J67="Central Tendency",VLOOKUP($B67,'Dermal Crosswalk'!$A$6:$R$16,17,FALSE),VLOOKUP($B67,'Dermal Crosswalk'!$A$6:$R$16,13,FALSE))),"--") -> -- | M67: -- | N67: N/A | O67: N/A | P67: N/A | R67: N/A | S67: N/A | T67: N/A
B68: 3 | C68: Worker | D68: Inhalation | E68: Industrial Use/ Intermediate Use | F68: Agricultural chemical intermediate | G68: Section 3.4.1.5 and 5.2 – Industrial Use | H68: Worker | I68: Inhalation 8-hr TWA | J68: Central Tendency | K68: =IFERROR(VLOOKUP($D68,$V$8:$Y$9,2,FALSE)/IF($D68="Inhalation",IF($J68="Central Tendency",SUMIFS('Inhalation Exposure'!$I$6:$I$19,'Inhalation Exposure'!$B$6:$B$19,$B68,'Inhalation Exposure'!$D$6:$D$19,$C68),SUMIFS('Inhalation Exposure'!$H$6:$H$19,'Inhalation Exposure'!$B$6:$B$19,$B68,'Inhalation Exposure'!$D$6:$D$19,$C68)),IF($J68="Central Tendency",VLOOKUP($B68,'Dermal Crosswalk'!$A$6:$R$16,16,FALSE),VLOOKUP($B68,'Dermal Crosswalk'!$A$6:$R$16,12,FALSE))),"--") -> 56.8 | L68: =IFERROR(VLOOKUP($D68,$V$8:$Y$9,3,FALSE)/IF($D68="Inhalation",IF($J68="Central Tendency",SUMIFS('Inhalation Exposure'!$M$6:$M$19,'Inhalation Exposure'!$B$6:$B$19,$B68,'Inhalation Exposure'!$D$6:$D$19,$C68),SUMIFS('Inhalation Exposure'!$L$6:$L$19,'Inhalation Exposure'!$B$6:$B$19,$B68,'Inhalation Exposure'!$D$6:$D$19,$C68)),IF($J68="Central Tendency",VLOOKUP($B68,'Dermal Crosswalk'!$A$6:$R$16,17,FALSE),VLOOKUP($B68,'Dermal Crosswalk'!$A$6:$R$16,13,FALSE))),"--") -> 2.6624 | M68: =IFERROR(VLOOKUP(D68,$V$8:$Y$9,4,FALSE)*IF($D68="Inhalation",IF($J68="Central Tendency",SUMIFS('Inhalation Exposure'!$O$6:$O$19,'Inhalation Exposure'!$B$6:$B$19,$B68,'Inhalation Exposure'!$D$6:$D$19,$C68),SUMIFS('Inhalation Exposure'!$N$6:$N$19,'Inhalation Exposure'!$B$6:$B$19,$B68,'Inhalation Exposure'!$D$6:$D$19,$C68)),IF($J68="Central Tendency",VLOOKUP($B68,'Dermal Crosswalk'!$A$6:$R$16,18,FALSE),VLOOKUP($B68,'Dermal Crosswalk'!$A$6:$R$16,14,FALSE))),"--") -> 0.001910749507 | N68: =K68*R68 -> 568 | O68: =L68*S68 -> 133.12 | P68: =M68/T68 -> 3.821499014e-05 | R68: 10 | S68: 50 | T68: 50
B69: 3 | C69: Worker | D69: Inhalation | N69: =CONCATENATE("(APF ",R68,")") -> (APF 10) | O69: =CONCATENATE("(APF ",S68,")") -> (APF 50) | P69: =CONCATENATE("(APF ",T68,")") -> (APF 50) | R69: APF | S69: APF | T69: APF
B70: 3 | C70: Worker | D70: Inhalation | F70: Plasticizer intermediate | J70: High-End | K70: =IFERROR(VLOOKUP($D70,$V$8:$Y$9,2,FALSE)/IF($D70="Inhalation",IF($J70="Central Tendency",SUMIFS('Inhalation Exposure'!$I$6:$I$19,'Inhalation Exposure'!$B$6:$B$19,$B70,'Inhalation Exposure'!$D$6:$D$19,$C70),SUMIFS('Inhalation Exposure'!$H$6:$H$19,'Inhalation Exposure'!$B$6:$B$19,$B70,'Inhalation Exposure'!$D$6:$D$19,$C70)),IF($J70="Central Tendency",VLOOKUP($B70,'Dermal Crosswalk'!$A$6:$R$16,16,FALSE),VLOOKUP($B70,'Dermal Crosswalk'!$A$6:$R$16,12,FALSE))),"--") -> 14.2 | L70: =IFERROR(VLOOKUP($D70,$V$8:$Y$9,3,FALSE)/IF($D70="Inhalation",IF($J70="Central Tendency",SUMIFS('Inhalation Exposure'!$M$6:$M$19,'Inhalation Exposure'!$B$6:$B$19,$B70,'Inhalation Exposure'!$D$6:$D$19,$C70),SUMIFS('Inhalation Exposure'!$L$6:$L$19,'Inhalation Exposure'!$B$6:$B$19,$B70,'Inhalation Exposure'!$D$6:$D$19,$C70)),IF($J70="Central Tendency",VLOOKUP($B70,'Dermal Crosswalk'!$A$6:$R$16,17,FALSE),VLOOKUP($B70,'Dermal Crosswalk'!$A$6:$R$16,13,FALSE))),"--") -> 0.6656 | M70: =IFERROR(VLOOKUP(D70,$V$8:$Y$9,4,FALSE)*IF($D70="Inhalation",IF($J70="Central Tendency",SUMIFS('Inhalation Exposure'!$O$6:$O$19,'Inhalation Exposure'!$B$6:$B$19,$B70,'Inhalation Exposure'!$D$6:$D$19,$C70),SUMIFS('Inhalation Exposure'!$N$6:$N$19,'Inhalation Exposure'!$B$6:$B$19,$B70,'Inhalation Exposure'!$D$6:$D$19,$C70)),IF($J70="Central Tendency",VLOOKUP($B70,'Dermal Crosswalk'!$A$6:$R$16,18,FALSE),VLOOKUP($B70,'Dermal Crosswalk'!$A$6:$R$16,14,FALSE))),"--") -> 0.009861932939 | N70: =K70*R70 -> 710 | O70: =L70*S70 -> 33.28 | P70: =M70/T70 -> 0.0001972386588 | R70: 50 | S70: 50 | T70: 50
B71: 3 | C71: Worker | D71: Inhalation | N71: =CONCATENATE("(APF ",R70,")") -> (APF 50) | O71: =CONCATENATE("(APF ",S70,")") -> (APF 50) | P71: =CONCATENATE("(APF ",T70,")") -> (APF 50) | R71: APF | S71: APF | T71: APF
B72: 3 | C72: Worker | D72: Dermal | F72: Catalysts and reagents for anhydrous acid reactions, brominations and sulfonations | H72: Worker | I72: Dermal | J72: Central Tendency | K72: =IFERROR(VLOOKUP($D72,$V$8:$Y$9,2,FALSE)/IF($D72="Inhalation",IF($J72="Central Tendency",SUMIFS('Inhalation Exposure'!$I$6:$I$19,'Inhalation Exposure'!$B$6:$B$19,$B72,'Inhalation Exposure'!$D$6:$D$19,$C72),SUMIFS('Inhalation Exposure'!$H$6:$H$19,'Inhalation Exposure'!$B$6:$B$19,$B72,'Inhalation Exposure'!$D$6:$D$19,$C72)),IF($J72="Central Tendency",VLOOKUP($B72,'Dermal Crosswalk'!$A$6:$R$16,16,FALSE),VLOOKUP($B72,'Dermal Crosswalk'!$A$6:$R$16,12,FALSE))),"--") -> 4.829877653 | L72: =IFERROR(VLOOKUP($D72,$V$8:$Y$9,3,FALSE)/IF($D72="Inhalation",IF($J72="Central Tendency",SUMIFS('Inhalation Exposure'!$M$6:$M$19,'Inhalation Exposure'!$B$6:$B$19,$B72,'Inhalation Exposure'!$D$6:$D$19,$C72),SUMIFS('Inhalation Exposure'!$L$6:$L$19,'Inhalation Exposure'!$B$6:$B$19,$B72,'Inhalation Exposure'!$D$6:$D$19,$C72)),IF($J72="Central Tendency",VLOOKUP($B72,'Dermal Crosswalk'!$A$6:$R$16,17,FALSE),VLOOKUP($B72,'Dermal Crosswalk'!$A$6:$R$16,13,FALSE))),"--") -> 0.2270315371 | M72: =IFERROR(VLOOKUP(D72,$V$8:$Y$9,4,FALSE)*IF($D72="Inhalation",IF($J72="Central Tendency",SUMIFS('Inhalation Exposure'!$O$6:$O$19,'Inhalation Exposure'!$B$6:$B$19,$B72,'Inhalation Exposure'!$D$6:$D$19,$C72),SUMIFS('Inhalation Exposure'!$N$6:$N$19,'Inhalation Exposure'!$B$6:$B$19,$B72,'Inhalation Exposure'!$D$6:$D$19,$C72)),IF($J72="Central Tendency",VLOOKUP($B72,'Dermal Crosswalk'!$A$6:$R$16,18,FALSE),VLOOKUP($B72,'Dermal Crosswalk'!$A$6:$R$16,14,FALSE))),"--") -> 0.3445133024 | N72: =K72*R72 -> 96.59755306 | O72: =L72*S72 -> 4.540630743 | P72: =M72/T72 -> 0.01722566512 | R72: 20 | S72: 20 | T72: 20
B73: 3 | C73: Worker | D73: Dermal | N73: =CONCATENATE("(PF ",R72,")") -> (PF 20) | O73: =CONCATENATE("(PF ",S72,")") -> (PF 20) | P73: =CONCATENATE("(PF ",T72,")") -> (PF 20) | R73: PF | S73: PF | T73: PF
B74: 3 | C74: Worker | D74: Dermal | J74: High-End | K74: =IFERROR(VLOOKUP($D74,$V$8:$Y$9,2,FALSE)/IF($D74="Inhalation",IF($J74="Central Tendency",SUMIFS('Inhalation Exposure'!$I$6:$I$19,'Inhalation Exposure'!$B$6:$B$19,$B74,'Inhalation Exposure'!$D$6:$D$19,$C74),SUMIFS('Inhalation Exposure'!$H$6:$H$19,'Inhalation Exposure'!$B$6:$B$19,$B74,'Inhalation Exposure'!$D$6:$D$19,$C74)),IF($J74="Central Tendency",VLOOKUP($B74,'Dermal Crosswalk'!$A$6:$R$16,16,FALSE),VLOOKUP($B74,'Dermal Crosswalk'!$A$6:$R$16,12,FALSE))),"--") -> 1.609959218 | L74: =IFERROR(VLOOKUP($D74,$V$8:$Y$9,3,FALSE)/IF($D74="Inhalation",IF($J74="Central Tendency",SUMIFS('Inhalation Exposure'!$M$6:$M$19,'Inhalation Exposure'!$B$6:$B$19,$B74,'Inhalation Exposure'!$D$6:$D$19,$C74),SUMIFS('Inhalation Exposure'!$L$6:$L$19,'Inhalation Exposure'!$B$6:$B$19,$B74,'Inhalation Exposure'!$D$6:$D$19,$C74)),IF($J74="Central Tendency",VLOOKUP($B74,'Dermal Crosswalk'!$A$6:$R$16,17,FALSE),VLOOKUP($B74,'Dermal Crosswalk'!$A$6:$R$16,13,FALSE))),"--") -> 0.07567717905 | M74: =IFERROR(VLOOKUP(D74,$V$8:$Y$9,4,FALSE)*IF($D74="Inhalation",IF($J74="Central Tendency",SUMIFS('Inhalation Exposure'!$O$6:$O$19,'Inhalation Exposure'!$B$6:$B$19,$B74,'Inhalation Exposure'!$D$6:$D$19,$C74),SUMIFS('Inhalation Exposure'!$N$6:$N$19,'Inhalation Exposure'!$B$6:$B$19,$B74,'Inhalation Exposure'!$D$6:$D$19,$C74)),IF($J74="Central Tendency",VLOOKUP($B74,'Dermal Crosswalk'!$A$6:$R$16,18,FALSE),VLOOKUP($B74,'Dermal Crosswalk'!$A$6:$R$16,14,FALSE))),"--") -> 1.33359988 | N74: =K74*R74 -> 32.19918435 | O74: =L74*S74 -> 1.513543581 | P74: =M74/T74 -> 0.06667999402 | R74: 20 | S74: 20 | T74: 20
B75: 3 | C75: Worker | D75: Dermal | N75: =CONCATENATE("(PF ",R74,")") -> (PF 20) | O75: =CONCATENATE("(PF ",S74,")") -> (PF 20) | P75: =CONCATENATE("(PF ",T74,")") -> (PF 20) | R75: PF | S75: PF | T75: PF
B76: 3 | C76: ONU | D76: Inhalation | H76: ONU | I76: Inhalation 8-hr TWA | J76: Central Tendency | K76: =IFERROR(VLOOKUP($D76,$V$8:$Y$9,2,FALSE)/IF($D76="Inhalation",IF($J76="Central Tendency",SUMIFS('Inhalation Exposure'!$I$6:$I$19,'Inhalation Exposure'!$B$6:$B$19,$B76,'Inhalation Exposure'!$D$6:$D$19,$C76),SUMIFS('Inhalation Exposure'!$H$6:$H$19,'Inhalation Exposure'!$B$6:$B$19,$B76,'Inhalation Exposure'!$D$6:$D$19,$C76)),IF($J76="Central Tendency",VLOOKUP($B76,'Dermal Crosswalk'!$A$6:$R$16,16,FALSE),VLOOKUP($B76,'Dermal Crosswalk'!$A$6:$R$16,12,FALSE))),"--") -> -- | L76: =IFERROR(VLOOKUP($D76,$V$8:$Y$9,3,FALSE)/IF($D76="Inhalation",IF($J76="Central Tendency",SUMIFS('Inhalation Exposure'!$M$6:$M$19,'Inhalation Exposure'!$B$6:$B$19,$B76,'Inhalation Exposure'!$D$6:$D$19,$C76),SUMIFS('Inhalation Exposure'!$L$6:$L$19,'Inhalation Exposure'!$B$6:$B$19,$B76,'Inhalation Exposure'!$D$6:$D$19,$C76)),IF($J76="Central Tendency",VLOOKUP($B76,'Dermal Crosswalk'!$A$6:$R$16,17,FALSE),VLOOKUP($B76,'Dermal Crosswalk'!$A$6:$R$16,13,FALSE))),"--") -> -- | M76: -- | N76: N/A | O76: N/A | P76: N/A | R76: N/A | S76: N/A | T76: N/A
B77: 3 | C77: ONU | D77: Inhalation | J77: High-End | K77: =IFERROR(VLOOKUP($D77,$V$8:$Y$9,2,FALSE)/IF($D77="Inhalation",IF($J77="Central Tendency",SUMIFS('Inhalation Exposure'!$I$6:$I$19,'Inhalation Exposure'!$B$6:$B$19,$B77,'Inhalation Exposure'!$D$6:$D$19,$C77),SUMIFS('Inhalation Exposure'!$H$6:$H$19,'Inhalation Exposure'!$B$6:$B$19,$B77,'Inhalation Exposure'!$D$6:$D$19,$C77)),IF($J77="Central Tendency",VLOOKUP($B77,'Dermal Crosswalk'!$A$6:$R$16,16,FALSE),VLOOKUP($B77,'Dermal Crosswalk'!$A$6:$R$16,12,FALSE))),"--") -> -- | L77: =IFERROR(VLOOKUP($D77,$V$8:$Y$9,3,FALSE)/IF($D77="Inhalation",IF($J77="Central Tendency",SUMIFS('Inhalation Exposure'!$M$6:$M$19,'Inhalation Exposure'!$B$6:$B$19,$B77,'Inhalation Exposure'!$D$6:$D$19,$C77),SUMIFS('Inhalation Exposure'!$L$6:$L$19,'Inhalation Exposure'!$B$6:$B$19,$B77,'Inhalation Exposure'!$D$6:$D$19,$C77)),IF($J77="Central Tendency",VLOOKUP($B77,'Dermal Crosswalk'!$A$6:$R$16,17,FALSE),VLOOKUP($B77,'Dermal Crosswalk'!$A$6:$R$16,13,FALSE))),"--") -> -- | M77: -- | N77: N/A | O77: N/A | P77: N/A | R77: N/A | S77: N/A | T77: N/A
B78: 3 | C78: Worker | D78: Inhalation | E78: Industrial Use/ Processing aids, not otherwise listed | F78: Wood pulping | G78: Section 3.4.1.5 and 5.2 – Industrial Use | H78: Worker | I78: Inhalation 8-hr TWA | J78: Central Tendency | K78: =IFERROR(VLOOKUP($D78,$V$8:$Y$9,2,FALSE)/IF($D78="Inhalation",IF($J78="Central Tendency",SUMIFS('Inhalation Exposure'!$I$6:$I$19,'Inhalation Exposure'!$B$6:$B$19,$B78,'Inhalation Exposure'!$D$6:$D$19,$C78),SUMIFS('Inhalation Exposure'!$H$6:$H$19,'Inhalation Exposure'!$B$6:$B$19,$B78,'Inhalation Exposure'!$D$6:$D$19,$C78)),IF($J78="Central Tendency",VLOOKUP($B78,'Dermal Crosswalk'!$A$6:$R$16,16,FALSE),VLOOKUP($B78,'Dermal Crosswalk'!$A$6:$R$16,12,FALSE))),"--") -> 56.8 | L78: =IFERROR(VLOOKUP($D78,$V$8:$Y$9,3,FALSE)/IF($D78="Inhalation",IF($J78="Central Tendency",SUMIFS('Inhalation Exposure'!$M$6:$M$19,'Inhalation Exposure'!$B$6:$B$19,$B78,'Inhalation Exposure'!$D$6:$D$19,$C78),SUMIFS('Inhalation Exposure'!$L$6:$L$19,'Inhalation Exposure'!$B$6:$B$19,$B78,'Inhalation Exposure'!$D$6:$D$19,$C78)),IF($J78="Central Tendency",VLOOKUP($B78,'Dermal Crosswalk'!$A$6:$R$16,17,FALSE),VLOOKUP($B78,'Dermal Crosswalk'!$A$6:$R$16,13,FALSE))),"--") -> 2.6624 | M78: =IFERROR(VLOOKUP(D78,$V$8:$Y$9,4,FALSE)*IF($D78="Inhalation",IF($J78="Central Tendency",SUMIFS('Inhalation Exposure'!$O$6:$O$19,'Inhalation Exposure'!$B$6:$B$19,$B78,'Inhalation Exposure'!$D$6:$D$19,$C78),SUMIFS('Inhalation Exposure'!$N$6:$N$19,'Inhalation Exposure'!$B$6:$B$19,$B78,'Inhalation Exposure'!$D$6:$D$19,$C78)),IF($J78="Central Tendency",VLOOKUP($B78,'Dermal Crosswalk'!$A$6:$R$16,18,FALSE),VLOOKUP($B78,'Dermal Crosswalk'!$A$6:$R$16,14,FALSE))),"--") -> 0.001910749507 | N78: =K78*R78 -> 568 | O78: =L78*S78 -> 133.12 | P78: =M78/T78 -> 3.821499014e-05 | R78: 10 | S78: 50 | T78: 50
B79: 3 | C79: Worker | D79: Inhalation | N79: =CONCATENATE("(APF ",R78,")") -> (APF 10) | O79: =CONCATENATE("(APF ",S78,")") -> (APF 50) | P79: =CONCATENATE("(APF ",T78,")") -> (APF 50) | R79: APF | S79: APF | T79: APF
B80: 3 | C80: Worker | D80: Inhalation | F80: Extraction of animal and vegetable oils | J80: High-End | K80: =IFERROR(VLOOKUP($D80,$V$8:$Y$9,2,FALSE)/IF($D80="Inhalation",IF($J80="Central Tendency",SUMIFS('Inhalation Exposure'!$I$6:$I$19,'Inhalation Exposure'!$B$6:$B$19,$B80,'Inhalation Exposure'!$D$6:$D$19,$C80),SUMIFS('Inhalation Exposure'!$H$6:$H$19,'Inhalation Exposure'!$B$6:$B$19,$B80,'Inhalation Exposure'!$D$6:$D$19,$C80)),IF($J80="Central Tendency",VLOOKUP($B80,'Dermal Crosswalk'!$A$6:$R$16,16,FALSE),VLOOKUP($B80,'Dermal Crosswalk'!$A$6:$R$16,12,FALSE))),"--") -> 14.2 | L80: =IFERROR(VLOOKUP($D80,$V$8:$Y$9,3,FALSE)/IF($D80="Inhalation",IF($J80="Central Tendency",SUMIFS('Inhalation Exposure'!$M$6:$M$19,'Inhalation Exposure'!$B$6:$B$19,$B80,'Inhalation Exposure'!$D$6:$D$19,$C80),SUMIFS('Inhalation Exposure'!$L$6:$L$19,'Inhalation Exposure'!$B$6:$B$19,$B80,'Inhalation Exposure'!$D$6:$D$19,$C80)),IF($J80="Central Tendency",VLOOKUP($B80,'Dermal Crosswalk'!$A$6:$R$16,17,FALSE),VLOOKUP($B80,'Dermal Crosswalk'!$A$6:$R$16,13,FALSE))),"--") -> 0.6656 | M80: =IFERROR(VLOOKUP(D80,$V$8:$Y$9,4,FALSE)*IF($D80="Inhalation",IF($J80="Central Tendency",SUMIFS('Inhalation Exposure'!$O$6:$O$19,'Inhalation Exposure'!$B$6:$B$19,$B80,'Inhalation Exposure'!$D$6:$D$19,$C80),SUMIFS('Inhalation Exposure'!$N$6:$N$19,'Inhalation Exposure'!$B$6:$B$19,$B80,'Inhalation Exposure'!$D$6:$D$19,$C80)),IF($J80="Central Tendency",VLOOKUP($B80,'Dermal Crosswalk'!$A$6:$R$16,18,FALSE),VLOOKUP($B80,'Dermal Crosswalk'!$A$6:$R$16,14,FALSE))),"--") -> 0.009861932939 | N80: =K80*R80 -> 710 | O80: =L80*S80 -> 33.28 | P80: =M80/T80 -> 0.0001972386588 | R80: 50 | S80: 50 | T80: 50
B81: 3 | C81: Worker | D81: Inhalation | N81: =CONCATENATE("(APF ",R80,")") -> (APF 50) | O81: =CONCATENATE("(APF ",S80,")") -> (APF 50) | P81: =CONCATENATE("(APF ",T80,")") -> (APF 50) | R81: APF | S81: APF | T81: APF
B82: 3 | C82: Worker | D82: Dermal | F82: Wetting and dispersing agent in textile processing | H82: Worker | I82: Dermal | J82: Central Tendency | K82: =IFERROR(VLOOKUP($D82,$V$8:$Y$9,2,FALSE)/IF($D82="Inhalation",IF($J82="Central Tendency",SUMIFS('Inhalation Exposure'!$I$6:$I$19,'Inhalation Exposure'!$B$6:$B$19,$B82,'Inhalation Exposure'!$D$6:$D$19,$C82),SUMIFS('Inhalation Exposure'!$H$6:$H$19,'Inhalation Exposure'!$B$6:$B$19,$B82,'Inhalation Exposure'!$D$6:$D$19,$C82)),IF($J82="Central Tendency",VLOOKUP($B82,'Dermal Crosswalk'!$A$6:$R$16,16,FALSE),VLOOKUP($B82,'Dermal Crosswalk'!$A$6:$R$16,12,FALSE))),"--") -> 4.829877653 | L82: =IFERROR(VLOOKUP($D82,$V$8:$Y$9,3,FALSE)/IF($D82="Inhalation",IF($J82="Central Tendency",SUMIFS('Inhalation Exposure'!$M$6:$M$19,'Inhalation Exposure'!$B$6:$B$19,$B82,'Inhalation Exposure'!$D$6:$D$19,$C82),SUMIFS('Inhalation Exposure'!$L$6:$L$19,'Inhalation Exposure'!$B$6:$B$19,$B82,'Inhalation Exposure'!$D$6:$D$19,$C82)),IF($J82="Central Tendency",VLOOKUP($B82,'Dermal Crosswalk'!$A$6:$R$16,17,FALSE),VLOOKUP($B82,'Dermal Crosswalk'!$A$6:$R$16,13,FALSE))),"--") -> 0.2270315371 | M82: =IFERROR(VLOOKUP(D82,$V$8:$Y$9,4,FALSE)*IF($D82="Inhalation",IF($J82="Central Tendency",SUMIFS('Inhalation Exposure'!$O$6:$O$19,'Inhalation Exposure'!$B$6:$B$19,$B82,'Inhalation Exposure'!$D$6:$D$19,$C82),SUMIFS('Inhalation Exposure'!$N$6:$N$19,'Inhalation Exposure'!$B$6:$B$19,$B82,'Inhalation Exposure'!$D$6:$D$19,$C82)),IF($J82="Central Tendency",VLOOKUP($B82,'Dermal Crosswalk'!$A$6:$R$16,18,FALSE),VLOOKUP($B82,'Dermal Crosswalk'!$A$6:$R$16,14,FALSE))),"--") -> 0.3445133024 | N82: =K82*R82 -> 96.59755306 | O82: =L82*S82 -> 4.540630743 | P82: =M82/T82 -> 0.01722566512 | R82: 20 | S82: 20 | T82: 20
B83: 3 | C83: Worker | D83: Dermal | N83: =CONCATENATE("(PF ",R82,")") -> (PF 20) | O83: =CONCATENATE("(PF ",S82,")") -> (PF 20) | P83: =CONCATENATE("(PF ",T82,")") -> (PF 20) | R83: PF | S83: PF | T83: PF
B84: 3 | C84: Worker | D84: Dermal | J84: High-End | K84: =IFERROR(VLOOKUP($D84,$V$8:$Y$9,2,FALSE)/IF($D84="Inhalation",IF($J84="Central Tendency",SUMIFS('Inhalation Exposure'!$I$6:$I$19,'Inhalation Exposure'!$B$6:$B$19,$B84,'Inhalation Exposure'!$D$6:$D$19,$C84),SUMIFS('Inhalation Exposure'!$H$6:$H$19,'Inhalation Exposure'!$B$6:$B$19,$B84,'Inhalation Exposure'!$D$6:$D$19,$C84)),IF($J84="Central Tendency",VLOOKUP($B84,'Dermal Crosswalk'!$A$6:$R$16,16,FALSE),VLOOKUP($B84,'Dermal Crosswalk'!$A$6:$R$16,12,FALSE))),"--") -> 1.609959218 | L84: =IFERROR(VLOOKUP($D84,$V$8:$Y$9,3,FALSE)/IF($D84="Inhalation",IF($J84="Central Tendency",SUMIFS('Inhalation Exposure'!$M$6:$M$19,'Inhalation Exposure'!$B$6:$B$19,$B84,'Inhalation Exposure'!$D$6:$D$19,$C84),SUMIFS('Inhalation Exposure'!$L$6:$L$19,'Inhalation Exposure'!$B$6:$B$19,$B84,'Inhalation Exposure'!$D$6:$D$19,$C84)),IF($J84="Central Tendency",VLOOKUP($B84,'Dermal Crosswalk'!$A$6:$R$16,17,FALSE),VLOOKUP($B84,'Dermal Crosswalk'!$A$6:$R$16,13,FALSE))),"--") -> 0.07567717905 | M84: =IFERROR(VLOOKUP(D84,$V$8:$Y$9,4,FALSE)*IF($D84="Inhalation",IF($J84="Central Tendency",SUMIFS('Inhalation Exposure'!$O$6:$O$19,'Inhalation Exposure'!$B$6:$B$19,$B84,'Inhalation Exposure'!$D$6:$D$19,$C84),SUMIFS('Inhalation Exposure'!$N$6:$N$19,'Inhalation Exposure'!$B$6:$B$19,$B84,'Inhalation Exposure'!$D$6:$D$19,$C84)),IF($J84="Central Tendency",VLOOKUP($B84,'Dermal Crosswalk'!$A$6:$R$16,18,FALSE),VLOOKUP($B84,'Dermal Crosswalk'!$A$6:$R$16,14,FALSE))),"--") -> 1.33359988 | N84: =K84*R84 -> 32.19918435 | O84: =L84*S84 -> 1.513543581 | P84: =M84/T84 -> 0.06667999402 | R84: 20 | S84: 20 | T84: 20
B85: 3 | C85: Worker | D85: Dermal | N85: =CONCATENATE("(PF ",R84,")") -> (PF 20) | O85: =CONCATENATE("(PF ",S84,")") -> (PF 20) | P85: =CONCATENATE("(PF ",T84,")") -> (PF 20) | R85: PF | S85: PF | T85: PF
B86: 3 | C86: ONU | D86: Inhalation | F86: Purification of pharmaceuticals | H86: ONU | I86: Inhalation 8-hr TWA | J86: Central Tendency | K86: =IFERROR(VLOOKUP($D86,$V$8:$Y$9,2,FALSE)/IF($D86="Inhalation",IF($J86="Central Tendency",SUMIFS('Inhalation Exposure'!$I$6:$I$19,'Inhalation Exposure'!$B$6:$B$19,$B86,'Inhalation Exposure'!$D$6:$D$19,$C86),SUMIFS('Inhalation Exposure'!$H$6:$H$19,'Inhalation Exposure'!$B$6:$B$19,$B86,'Inhalation Exposure'!$D$6:$D$19,$C86)),IF($J86="Central Tendency",VLOOKUP($B86,'Dermal Crosswalk'!$A$6:$R$16,16,FALSE),VLOOKUP($B86,'Dermal Crosswalk'!$A$6:$R$16,12,FALSE))),"--") -> -- | L86: =IFERROR(VLOOKUP($D86,$V$8:$Y$9,3,FALSE)/IF($D86="Inhalation",IF($J86="Central Tendency",SUMIFS('Inhalation Exposure'!$M$6:$M$19,'Inhalation Exposure'!$B$6:$B$19,$B86,'Inhalation Exposure'!$D$6:$D$19,$C86),SUMIFS('Inhalation Exposure'!$L$6:$L$19,'Inhalation Exposure'!$B$6:$B$19,$B86,'Inhalation Exposure'!$D$6:$D$19,$C86)),IF($J86="Central Tendency",VLOOKUP($B86,'Dermal Crosswalk'!$A$6:$R$16,17,FALSE),VLOOKUP($B86,'Dermal Crosswalk'!$A$6:$R$16,13,FALSE))),"--") -> -- | M86: -- | N86: N/A | O86: N/A | P86: N/A | R86: N/A | S86: N/A | T86: N/A
B87: 3 | C87: ONU | D87: Inhalation | F87: Etching of fluoropolymers | J87: High-End | K87: =IFERROR(VLOOKUP($D87,$V$8:$Y$9,2,FALSE)/IF($D87="Inhalation",IF($J87="Central Tendency",SUMIFS('Inhalation Exposure'!$I$6:$I$19,'Inhalation Exposure'!$B$6:$B$19,$B87,'Inhalation Exposure'!$D$6:$D$19,$C87),SUMIFS('Inhalation Exposure'!$H$6:$H$19,'Inhalation Exposure'!$B$6:$B$19,$B87,'Inhalation Exposure'!$D$6:$D$19,$C87)),IF($J87="Central Tendency",VLOOKUP($B87,'Dermal Crosswalk'!$A$6:$R$16,16,FALSE),VLOOKUP($B87,'Dermal Crosswalk'!$A$6:$R$16,12,FALSE))),"--") -> -- | L87: =IFERROR(VLOOKUP($D87,$V$8:$Y$9,3,FALSE)/IF($D87="Inhalation",IF($J87="Central Tendency",SUMIFS('Inhalation Exposure'!$M$6:$M$19,'Inhalation Exposure'!$B$6:$B$19,$B87,'Inhalation Exposure'!$D$6:$D$19,$C87),SUMIFS('Inhalation Exposure'!$L$6:$L$19,'Inhalation Exposure'!$B$6:$B$19,$B87,'Inhalation Exposure'!$D$6:$D$19,$C87)),IF($J87="Central Tendency",VLOOKUP($B87,'Dermal Crosswalk'!$A$6:$R$16,17,FALSE),VLOOKUP($B87,'Dermal Crosswalk'!$A$6:$R$16,13,FALSE))),"--") -> -- | M87: -- | N87: N/A | O87: N/A | P87: N/A | R87: N/A | S87: N/A | T87: N/A
B88: 4 | C88: Worker | D88: Inhalation | E88: Industrial Use/ Functional Fluids, Open System | F88: Metalworking fluid | G88: Section 3.4.1.6 and 5.2 – Functional Fluids, Open System | H88: Worker | I88: Inhalation 8-hr TWA | J88: Central Tendency | K88: =IFERROR(VLOOKUP($D88,$V$8:$Y$9,2,FALSE)/IF($D88="Inhalation",IF($J88="Central Tendency",SUMIFS('Inhalation Exposure'!$I$6:$I$19,'Inhalation Exposure'!$B$6:$B$19,$B88,'Inhalation Exposure'!$D$6:$D$19,$C88),SUMIFS('Inhalation Exposure'!$H$6:$H$19,'Inhalation Exposure'!$B$6:$B$19,$B88,'Inhalation Exposure'!$D$6:$D$19,$C88)),IF($J88="Central Tendency",VLOOKUP($B88,'Dermal Crosswalk'!$A$6:$R$16,16,FALSE),VLOOKUP($B88,'Dermal Crosswalk'!$A$6:$R$16,12,FALSE))),"--") -> 266475.3329 | L88: =IFERROR(VLOOKUP($D88,$V$8:$Y$9,3,FALSE)/IF($D88="Inhalation",IF($J88="Central Tendency",SUMIFS('Inhalation Exposure'!$M$6:$M$19,'Inhalation Exposure'!$B$6:$B$19,$B88,'Inhalation Exposure'!$D$6:$D$19,$C88),SUMIFS('Inhalation Exposure'!$L$6:$L$19,'Inhalation Exposure'!$B$6:$B$19,$B88,'Inhalation Exposure'!$D$6:$D$19,$C88)),IF($J88="Central Tendency",VLOOKUP($B88,'Dermal Crosswalk'!$A$6:$R$16,17,FALSE),VLOOKUP($B88,'Dermal Crosswalk'!$A$6:$R$16,13,FALSE))),"--") -> 12490.56208 | M88: =IFERROR(VLOOKUP(D88,$V$8:$Y$9,4,FALSE)*IF($D88="Inhalation",IF($J88="Central Tendency",SUMIFS('Inhalation Exposure'!$O$6:$O$19,'Inhalation Exposure'!$B$6:$B$19,$B88,'Inhalation Exposure'!$D$6:$D$19,$C88),SUMIFS('Inhalation Exposure'!$N$6:$N$19,'Inhalation Exposure'!$B$6:$B$19,$B88,'Inhalation Exposure'!$D$6:$D$19,$C88)),IF($J88="Central Tendency",VLOOKUP($B88,'Dermal Crosswalk'!$A$6:$R$16,18,FALSE),VLOOKUP($B88,'Dermal Crosswalk'!$A$6:$R$16,14,FALSE))),"--") -> 3.875929123e-07 | N88: =K88*R88 -> 2664753.329 | O88: =L88*S88 -> 124905.6208 | P88: =M88/T88 -> 3.875929123e-08 | R88: 10 | S88: 10 | T88: 10
B89: 4 | C89: Worker | D89: Inhalation | N89: =CONCATENATE("(APF ",R88,")") -> (APF 10) | O89: =CONCATENATE("(APF ",S88,")") -> (APF 10) | P89: =CONCATENATE("(APF ",T88,")") -> (APF 10) | R89: APF | S89: APF | T89: APF
B90: 4 | C90: Worker | D90: Inhalation | F90: Cutting and tapping fluid | J90: High-End | K90: =IFERROR(VLOOKUP($D90,$V$8:$Y$9,2,FALSE)/IF($D90="Inhalation",IF($J90="Central Tendency",SUMIFS('Inhalation Exposure'!$I$6:$I$19,'Inhalation Exposure'!$B$6:$B$19,$B90,'Inhalation Exposure'!$D$6:$D$19,$C90),SUMIFS('Inhalation Exposure'!$H$6:$H$19,'Inhalation Exposure'!$B$6:$B$19,$B90,'Inhalation Exposure'!$D$6:$D$19,$C90)),IF($J90="Central Tendency",VLOOKUP($B90,'Dermal Crosswalk'!$A$6:$R$16,16,FALSE),VLOOKUP($B90,'Dermal Crosswalk'!$A$6:$R$16,12,FALSE))),"--") -> 74906.48316 | L90: =IFERROR(VLOOKUP($D90,$V$8:$Y$9,3,FALSE)/IF($D90="Inhalation",IF($J90="Central Tendency",SUMIFS('Inhalation Exposure'!$M$6:$M$19,'Inhalation Exposure'!$B$6:$B$19,$B90,'Inhalation Exposure'!$D$6:$D$19,$C90),SUMIFS('Inhalation Exposure'!$L$6:$L$19,'Inhalation Exposure'!$B$6:$B$19,$B90,'Inhalation Exposure'!$D$6:$D$19,$C90)),IF($J90="Central Tendency",VLOOKUP($B90,'Dermal Crosswalk'!$A$6:$R$16,17,FALSE),VLOOKUP($B90,'Dermal Crosswalk'!$A$6:$R$16,13,FALSE))),"--") -> 3511.10952 | M90: =IFERROR(VLOOKUP(D90,$V$8:$Y$9,4,FALSE)*IF($D90="Inhalation",IF($J90="Central Tendency",SUMIFS('Inhalation Exposure'!$O$6:$O$19,'Inhalation Exposure'!$B$6:$B$19,$B90,'Inhalation Exposure'!$D$6:$D$19,$C90),SUMIFS('Inhalation Exposure'!$N$6:$N$19,'Inhalation Exposure'!$B$6:$B$19,$B90,'Inhalation Exposure'!$D$6:$D$19,$C90)),IF($J90="Central Tendency",VLOOKUP($B90,'Dermal Crosswalk'!$A$6:$R$16,18,FALSE),VLOOKUP($B90,'Dermal Crosswalk'!$A$6:$R$16,14,FALSE))),"--") -> 1.45319589e-06 | N90: =K90*R90 -> 749064.8316 | O90: =L90*S90 -> 35111.0952 | P90: =M90/T90 -> 1.45319589e-07 | R90: 10 | S90: 10 | T90: 10
B91: 4 | C91: Worker | D91: Inhalation | N91: =CONCATENATE("(APF ",R90,")") -> (APF 10) | O91: =CONCATENATE("(APF ",S90,")") -> (APF 10) | P91: =CONCATENATE("(APF ",T90,")") -> (APF 10) | R91: APF | S91: APF | T91: APF
B92: 4 | C92: Worker | D92: Dermal | F92: Polyalkylene glycol fluid | H92: Worker | I92: Dermal | J92: Central Tendency | K92: =IFERROR(VLOOKUP($D92,$V$8:$Y$9,2,FALSE)/IF($D92="Inhalation",IF($J92="Central Tendency",SUMIFS('Inhalation Exposure'!$I$6:$I$19,'Inhalation Exposure'!$B$6:$B$19,$B92,'Inhalation Exposure'!$D$6:$D$19,$C92),SUMIFS('Inhalation Exposure'!$H$6:$H$19,'Inhalation Exposure'!$B$6:$B$19,$B92,'Inhalation Exposure'!$D$6:$D$19,$C92)),IF($J92="Central Tendency",VLOOKUP($B92,'Dermal Crosswalk'!$A$6:$R$16,16,FALSE),VLOOKUP($B92,'Dermal Crosswalk'!$A$6:$R$16,12,FALSE))),"--") -> 4829.877653 | L92: =IFERROR(VLOOKUP($D92,$V$8:$Y$9,3,FALSE)/IF($D92="Inhalation",IF($J92="Central Tendency",SUMIFS('Inhalation Exposure'!$M$6:$M$19,'Inhalation Exposure'!$B$6:$B$19,$B92,'Inhalation Exposure'!$D$6:$D$19,$C92),SUMIFS('Inhalation Exposure'!$L$6:$L$19,'Inhalation Exposure'!$B$6:$B$19,$B92,'Inhalation Exposure'!$D$6:$D$19,$C92)),IF($J92="Central Tendency",VLOOKUP($B92,'Dermal Crosswalk'!$A$6:$R$16,17,FALSE),VLOOKUP($B92,'Dermal Crosswalk'!$A$6:$R$16,13,FALSE))),"--") -> 227.0315371 | M92: =IFERROR(VLOOKUP(D92,$V$8:$Y$9,4,FALSE)*IF($D92="Inhalation",IF($J92="Central Tendency",SUMIFS('Inhalation Exposure'!$O$6:$O$19,'Inhalation Exposure'!$B$6:$B$19,$B92,'Inhalation Exposure'!$D$6:$D$19,$C92),SUMIFS('Inhalation Exposure'!$N$6:$N$19,'Inhalation Exposure'!$B$6:$B$19,$B92,'Inhalation Exposure'!$D$6:$D$19,$C92)),IF($J92="Central Tendency",VLOOKUP($B92,'Dermal Crosswalk'!$A$6:$R$16,18,FALSE),VLOOKUP($B92,'Dermal Crosswalk'!$A$6:$R$16,14,FALSE))),"--") -> 0.0003445133024 | N92: =K92*R92 -> 24149.38827 | O92: =L92*S92 -> 1135.157686 | P92: =M92/T92 -> 6.890266048e-05 | R92: 5 | S92: 5 | T92: 5
B93: 4 | C93: Worker | D93: Dermal | N93: =CONCATENATE("(PF ",R92,")") -> (PF 5) | O93: =CONCATENATE("(PF ",S92,")") -> (PF 5) | P93: =CONCATENATE("(PF ",T92,")") -> (PF 5) | R93: PF | S93: PF | T93: PF
B94: 4 | C94: Worker | D94: Dermal | J94: High-End | K94: =IFERROR(VLOOKUP($D94,$V$8:$Y$9,2,FALSE)/IF($D94="Inhalation",IF($J94="Central Tendency",SUMIFS('Inhalation Exposure'!$I$6:$I$19,'Inhalation Exposure'!$B$6:$B$19,$B94,'Inhalation Exposure'!$D$6:$D$19,$C94),SUMIFS('Inhalation Exposure'!$H$6:$H$19,'Inhalation Exposure'!$B$6:$B$19,$B94,'Inhalation Exposure'!$D$6:$D$19,$C94)),IF($J94="Central Tendency",VLOOKUP($B94,'Dermal Crosswalk'!$A$6:$R$16,16,FALSE),VLOOKUP($B94,'Dermal Crosswalk'!$A$6:$R$16,12,FALSE))),"--") -> 1609.959218 | L94: =IFERROR(VLOOKUP($D94,$V$8:$Y$9,3,FALSE)/IF($D94="Inhalation",IF($J94="Central Tendency",SUMIFS('Inhalation Exposure'!$M$6:$M$19,'Inhalation Exposure'!$B$6:$B$19,$B94,'Inhalation Exposure'!$D$6:$D$19,$C94),SUMIFS('Inhalation Exposure'!$L$6:$L$19,'Inhalation Exposure'!$B$6:$B$19,$B94,'Inhalation Exposure'!$D$6:$D$19,$C94)),IF($J94="Central Tendency",VLOOKUP($B94,'Dermal Crosswalk'!$A$6:$R$16,17,FALSE),VLOOKUP($B94,'Dermal Crosswalk'!$A$6:$R$16,13,FALSE))),"--") -> 75.67717905 | M94: =IFERROR(VLOOKUP(D94,$V$8:$Y$9,4,FALSE)*IF($D94="Inhalation",IF($J94="Central Tendency",SUMIFS('Inhalation Exposure'!$O$6:$O$19,'Inhalation Exposure'!$B$6:$B$19,$B94,'Inhalation Exposure'!$D$6:$D$19,$C94),SUMIFS('Inhalation Exposure'!$N$6:$N$19,'Inhalation Exposure'!$B$6:$B$19,$B94,'Inhalation Exposure'!$D$6:$D$19,$C94)),IF($J94="Central Tendency",VLOOKUP($B94,'Dermal Crosswalk'!$A$6:$R$16,18,FALSE),VLOOKUP($B94,'Dermal Crosswalk'!$A$6:$R$16,14,FALSE))),"--") -> 0.00133359988 | N94: =K94*R94 -> 8049.796089 | O94: =L94*S94 -> 378.3858952 | P94: =M94/T94 -> 6.667999402e-05 | R94: 5 | S94: 5 | T94: 20
B95: 4 | C95: Worker | D95: Dermal | N95: =CONCATENATE("(PF ",R94,")") -> (PF 5) | O95: =CONCATENATE("(PF ",S94,")") -> (PF 5) | P95: =CONCATENATE("(PF ",T94,")") -> (PF 20) | R95: PF | S95: PF | T95: PF
B96: 4 | C96: ONU | D96: Inhalation | H96: ONU | I96: Inhalation 8-hr TWA | J96: Central Tendency | K96: =IFERROR(VLOOKUP($D96,$V$8:$Y$9,2,FALSE)/IF($D96="Inhalation",IF($J96="Central Tendency",SUMIFS('Inhalation Exposure'!$I$6:$I$19,'Inhalation Exposure'!$B$6:$B$19,$B96,'Inhalation Exposure'!$D$6:$D$19,$C96),SUMIFS('Inhalation Exposure'!$H$6:$H$19,'Inhalation Exposure'!$B$6:$B$19,$B96,'Inhalation Exposure'!$D$6:$D$19,$C96)),IF($J96="Central Tendency",VLOOKUP($B96,'Dermal Crosswalk'!$A$6:$R$16,16,FALSE),VLOOKUP($B96,'Dermal Crosswalk'!$A$6:$R$16,12,FALSE))),"--") -> 1903644.742 | L96: =IFERROR(VLOOKUP($D96,$V$8:$Y$9,3,FALSE)/IF($D96="Inhalation",IF($J96="Central Tendency",SUMIFS('Inhalation Exposure'!$M$6:$M$19,'Inhalation Exposure'!$B$6:$B$19,$B96,'Inhalation Exposure'!$D$6:$D$19,$C96),SUMIFS('Inhalation Exposure'!$L$6:$L$19,'Inhalation Exposure'!$B$6:$B$19,$B96,'Inhalation Exposure'!$D$6:$D$19,$C96)),IF($J96="Central Tendency",VLOOKUP($B96,'Dermal Crosswalk'!$A$6:$R$16,17,FALSE),VLOOKUP($B96,'Dermal Crosswalk'!$A$6:$R$16,13,FALSE))),"--") -> 89229.99581 | M96: =IFERROR(VLOOKUP(D96,$V$8:$Y$9,4,FALSE)*IF($D96="Inhalation",IF($J96="Central Tendency",SUMIFS('Inhalation Exposure'!$O$6:$O$19,'Inhalation Exposure'!$B$6:$B$19,$B96,'Inhalation Exposure'!$D$6:$D$19,$C96),SUMIFS('Inhalation Exposure'!$N$6:$N$19,'Inhalation Exposure'!$B$6:$B$19,$B96,'Inhalation Exposure'!$D$6:$D$19,$C96)),IF($J96="Central Tendency",VLOOKUP($B96,'Dermal Crosswalk'!$A$6:$R$16,18,FALSE),VLOOKUP($B96,'Dermal Crosswalk'!$A$6:$R$16,14,FALSE))),"--") -> 5.701198841e-08 | N96: N/A | O96: N/A | P96: N/A | R96: N/A | S96: N/A | T96: N/A
B97: 4 | C97: ONU | D97: Inhalation | J97: High-End | K97: =IFERROR(VLOOKUP($D97,$V$8:$Y$9,2,FALSE)/IF($D97="Inhalation",IF($J97="Central Tendency",SUMIFS('Inhalation Exposure'!$I$6:$I$19,'Inhalation Exposure'!$B$6:$B$19,$B97,'Inhalation Exposure'!$D$6:$D$19,$C97),SUMIFS('Inhalation Exposure'!$H$6:$H$19,'Inhalation Exposure'!$B$6:$B$19,$B97,'Inhalation Exposure'!$D$6:$D$19,$C97)),IF($J97="Central Tendency",VLOOKUP($B97,'Dermal Crosswalk'!$A$6:$R$16,16,FALSE),VLOOKUP($B97,'Dermal Crosswalk'!$A$6:$R$16,12,FALSE))),"--") -> 1128663.686 | L97: =IFERROR(VLOOKUP($D97,$V$8:$Y$9,3,FALSE)/IF($D97="Inhalation",IF($J97="Central Tendency",SUMIFS('Inhalation Exposure'!$M$6:$M$19,'Inhalation Exposure'!$B$6:$B$19,$B97,'Inhalation Exposure'!$D$6:$D$19,$C97),SUMIFS('Inhalation Exposure'!$L$6:$L$19,'Inhalation Exposure'!$B$6:$B$19,$B97,'Inhalation Exposure'!$D$6:$D$19,$C97)),IF($J97="Central Tendency",VLOOKUP($B97,'Dermal Crosswalk'!$A$6:$R$16,17,FALSE),VLOOKUP($B97,'Dermal Crosswalk'!$A$6:$R$16,13,FALSE))),"--") -> 52904.1232 | M97: =IFERROR(VLOOKUP(D97,$V$8:$Y$9,4,FALSE)*IF($D97="Inhalation",IF($J97="Central Tendency",SUMIFS('Inhalation Exposure'!$O$6:$O$19,'Inhalation Exposure'!$B$6:$B$19,$B97,'Inhalation Exposure'!$D$6:$D$19,$C97),SUMIFS('Inhalation Exposure'!$N$6:$N$19,'Inhalation Exposure'!$B$6:$B$19,$B97,'Inhalation Exposure'!$D$6:$D$19,$C97)),IF($J97="Central Tendency",VLOOKUP($B97,'Dermal Crosswalk'!$A$6:$R$16,18,FALSE),VLOOKUP($B97,'Dermal Crosswalk'!$A$6:$R$16,14,FALSE))),"--") -> 1.240754438e-07 | N97: N/A | O97: N/A | P97: N/A | R97: N/A | S97: N/A | T97: N/A
B98: 6 | C98: Worker | D98: Inhalation | E98: Industrial Use, Potential Commercial Use/ Laboratory Chemicals | F98: Chemical reagent Reference material | G98: Section 3.4.1.8 and 5.2 – Lab Chemicals | H98: Worker | I98: Inhalation 8-hr TWA | J98: Central Tendency | K98: =IFERROR(VLOOKUP($D98,$V$8:$Y$9,2,FALSE)/IF($D98="Inhalation",IF($J98="Central Tendency",SUMIFS('Inhalation Exposure'!$I$6:$I$19,'Inhalation Exposure'!$B$6:$B$19,$B98,'Inhalation Exposure'!$D$6:$D$19,$C98),SUMIFS('Inhalation Exposure'!$H$6:$H$19,'Inhalation Exposure'!$B$6:$B$19,$B98,'Inhalation Exposure'!$D$6:$D$19,$C98)),IF($J98="Central Tendency",VLOOKUP($B98,'Dermal Crosswalk'!$A$6:$R$16,16,FALSE),VLOOKUP($B98,'Dermal Crosswalk'!$A$6:$R$16,12,FALSE))),"--") -> 2581.818182 | L98: =IFERROR(VLOOKUP($D98,$V$8:$Y$9,3,FALSE)/IF($D98="Inhalation",IF($J98="Central Tendency",SUMIFS('Inhalation Exposure'!$M$6:$M$19,'Inhalation Exposure'!$B$6:$B$19,$B98,'Inhalation Exposure'!$D$6:$D$19,$C98),SUMIFS('Inhalation Exposure'!$L$6:$L$19,'Inhalation Exposure'!$B$6:$B$19,$B98,'Inhalation Exposure'!$D$6:$D$19,$C98)),IF($J98="Central Tendency",VLOOKUP($B98,'Dermal Crosswalk'!$A$6:$R$16,17,FALSE),VLOOKUP($B98,'Dermal Crosswalk'!$A$6:$R$16,13,FALSE))),"--") -> 121.0181818 | M98: =IFERROR(VLOOKUP(D98,$V$8:$Y$9,4,FALSE)*IF($D98="Inhalation",IF($J98="Central Tendency",SUMIFS('Inhalation Exposure'!$O$6:$O$19,'Inhalation Exposure'!$B$6:$B$19,$B98,'Inhalation Exposure'!$D$6:$D$19,$C98),SUMIFS('Inhalation Exposure'!$N$6:$N$19,'Inhalation Exposure'!$B$6:$B$19,$B98,'Inhalation Exposure'!$D$6:$D$19,$C98)),IF($J98="Central Tendency",VLOOKUP($B98,'Dermal Crosswalk'!$A$6:$R$16,18,FALSE),VLOOKUP($B98,'Dermal Crosswalk'!$A$6:$R$16,14,FALSE))),"--") -> 4.203648915e-05 | N98: =K98*R98 -> 25818.18182 | O98: =L98*S98 -> 1210.181818 | P98: =M98/T98 -> 4.203648915e-06 | R98: 10 | S98: 10 | T98: 10
B99: 6 | C99: Worker | D99: Inhalation | N99: =CONCATENATE("(APF ",R98,")") -> (APF 10) | O99: =CONCATENATE("(APF ",S98,")") -> (APF 10) | P99: =CONCATENATE("(APF ",T98,")") -> (APF 10) | R99: APF | S99: APF | T99: APF
B100: 6 | C100: Worker | D100: Inhalation | F100: Spectroscopic and photometric measurement Liquid scintillation counting medium | J100: High-End | K100: =IFERROR(VLOOKUP($D100,$V$8:$Y$9,2,FALSE)/IF($D100="Inhalation",IF($J100="Central Tendency",SUMIFS('Inhalation Exposure'!$I$6:$I$19,'Inhalation Exposure'!$B$6:$B$19,$B100,'Inhalation Exposure'!$D$6:$D$19,$C100),SUMIFS('Inhalation Exposure'!$H$6:$H$19,'Inhalation Exposure'!$B$6:$B$19,$B100,'Inhalation Exposure'!$D$6:$D$19,$C100)),IF($J100="Central Tendency",VLOOKUP($B100,'Dermal Crosswalk'!$A$6:$R$16,16,FALSE),VLOOKUP($B100,'Dermal Crosswalk'!$A$6:$R$16,12,FALSE))),"--") -> 49.39667355 | L100: =IFERROR(VLOOKUP($D100,$V$8:$Y$9,3,FALSE)/IF($D100="Inhalation",IF($J100="Central Tendency",SUMIFS('Inhalation Exposure'!$M$6:$M$19,'Inhalation Exposure'!$B$6:$B$19,$B100,'Inhalation Exposure'!$D$6:$D$19,$C100),SUMIFS('Inhalation Exposure'!$L$6:$L$19,'Inhalation Exposure'!$B$6:$B$19,$B100,'Inhalation Exposure'!$D$6:$D$19,$C100)),IF($J100="Central Tendency",VLOOKUP($B100,'Dermal Crosswalk'!$A$6:$R$16,17,FALSE),VLOOKUP($B100,'Dermal Crosswalk'!$A$6:$R$16,13,FALSE))),"--") -> 2.315382107 | M100: =IFERROR(VLOOKUP(D100,$V$8:$Y$9,4,FALSE)*IF($D100="Inhalation",IF($J100="Central Tendency",SUMIFS('Inhalation Exposure'!$O$6:$O$19,'Inhalation Exposure'!$B$6:$B$19,$B100,'Inhalation Exposure'!$D$6:$D$19,$C100),SUMIFS('Inhalation Exposure'!$N$6:$N$19,'Inhalation Exposure'!$B$6:$B$19,$B100,'Inhalation Exposure'!$D$6:$D$19,$C100)),IF($J100="Central Tendency",VLOOKUP($B100,'Dermal Crosswalk'!$A$6:$R$16,18,FALSE),VLOOKUP($B100,'Dermal Crosswalk'!$A$6:$R$16,14,FALSE))),"--") -> 0.002834997535 | N100: =K100*R100 -> 493.9667355 | O100: =L100*S100 -> 115.7691053 | P100: =M100/T100 -> 5.669995069e-05 | R100: 10 | S100: 50 | T100: 50
B101: 6 | C101: Worker | D101: Inhalation | N101: =CONCATENATE("(APF ",R100,")") -> (APF 10) | O101: =CONCATENATE("(APF ",S100,")") -> (APF 50) | P101: =CONCATENATE("(APF ",T100,")") -> (APF 50) | R101: APF | S101: APF | T101: APF
B102: 6 | C102: Worker | D102: Dermal | F102: Stable reaction medium Cryoscopic solvent for molecular mass determinations | H102: Worker | I102: Dermal | J102: Central Tendency | K102: =IFERROR(VLOOKUP($D102,$V$8:$Y$9,2,FALSE)/IF($D102="Inhalation",IF($J102="Central Tendency",SUMIFS('Inhalation Exposure'!$I$6:$I$19,'Inhalation Exposure'!$B$6:$B$19,$B102,'Inhalation Exposure'!$D$6:$D$19,$C102),SUMIFS('Inhalation Exposure'!$H$6:$H$19,'Inhalation Exposure'!$B$6:$B$19,$B102,'Inhalation Exposure'!$D$6:$D$19,$C102)),IF($J102="Central Tendency",VLOOKUP($B102,'Dermal Crosswalk'!$A$6:$R$16,16,FALSE),VLOOKUP($B102,'Dermal Crosswalk'!$A$6:$R$16,12,FALSE))),"--") -> 4.415063149 | L102: =IFERROR(VLOOKUP($D102,$V$8:$Y$9,3,FALSE)/IF($D102="Inhalation",IF($J102="Central Tendency",SUMIFS('Inhalation Exposure'!$M$6:$M$19,'Inhalation Exposure'!$B$6:$B$19,$B102,'Inhalation Exposure'!$D$6:$D$19,$C102),SUMIFS('Inhalation Exposure'!$L$6:$L$19,'Inhalation Exposure'!$B$6:$B$19,$B102,'Inhalation Exposure'!$D$6:$D$19,$C102)),IF($J102="Central Tendency",VLOOKUP($B102,'Dermal Crosswalk'!$A$6:$R$16,17,FALSE),VLOOKUP($B102,'Dermal Crosswalk'!$A$6:$R$16,13,FALSE))),"--") -> 0.2075329119 | M102: =IFERROR(VLOOKUP(D102,$V$8:$Y$9,4,FALSE)*IF($D102="Inhalation",IF($J102="Central Tendency",SUMIFS('Inhalation Exposure'!$O$6:$O$19,'Inhalation Exposure'!$B$6:$B$19,$B102,'Inhalation Exposure'!$D$6:$D$19,$C102),SUMIFS('Inhalation Exposure'!$N$6:$N$19,'Inhalation Exposure'!$B$6:$B$19,$B102,'Inhalation Exposure'!$D$6:$D$19,$C102)),IF($J102="Central Tendency",VLOOKUP($B102,'Dermal Crosswalk'!$A$6:$R$16,18,FALSE),VLOOKUP($B102,'Dermal Crosswalk'!$A$6:$R$16,14,FALSE))),"--") -> 0.3768818349 | N102: =K102*R102 -> 88.30126298 | O102: =L102*S102 -> 4.150658237 | P102: =M102/T102 -> 0.01884409174 | R102: 20 | S102: 20 | T102: 20
B103: 6 | C103: Worker | D103: Dermal | N103: =CONCATENATE("(PF ",R102,")") -> (PF 20) | O103: =CONCATENATE("(PF ",S102,")") -> (PF 20) | P103: =CONCATENATE("(PF ",T102,")") -> (PF 20) | R103: PF | S103: PF | T103: PF
B104: 6 | C104: Worker | D104: Dermal | J104: High-End | K104: =IFERROR(VLOOKUP($D104,$V$8:$Y$9,2,FALSE)/IF($D104="Inhalation",IF($J104="Central Tendency",SUMIFS('Inhalation Exposure'!$I$6:$I$19,'Inhalation Exposure'!$B$6:$B$19,$B104,'Inhalation Exposure'!$D$6:$D$19,$C104),SUMIFS('Inhalation Exposure'!$H$6:$H$19,'Inhalation Exposure'!$B$6:$B$19,$B104,'Inhalation Exposure'!$D$6:$D$19,$C104)),IF($J104="Central Tendency",VLOOKUP($B104,'Dermal Crosswalk'!$A$6:$R$16,16,FALSE),VLOOKUP($B104,'Dermal Crosswalk'!$A$6:$R$16,12,FALSE))),"--") -> 1.471687716 | L104: =IFERROR(VLOOKUP($D104,$V$8:$Y$9,3,FALSE)/IF($D104="Inhalation",IF($J104="Central Tendency",SUMIFS('Inhalation Exposure'!$M$6:$M$19,'Inhalation Exposure'!$B$6:$B$19,$B104,'Inhalation Exposure'!$D$6:$D$19,$C104),SUMIFS('Inhalation Exposure'!$L$6:$L$19,'Inhalation Exposure'!$B$6:$B$19,$B104,'Inhalation Exposure'!$D$6:$D$19,$C104)),IF($J104="Central Tendency",VLOOKUP($B104,'Dermal Crosswalk'!$A$6:$R$16,17,FALSE),VLOOKUP($B104,'Dermal Crosswalk'!$A$6:$R$16,13,FALSE))),"--") -> 0.06917763729 | M104: =IFERROR(VLOOKUP(D104,$V$8:$Y$9,4,FALSE)*IF($D104="Inhalation",IF($J104="Central Tendency",SUMIFS('Inhalation Exposure'!$O$6:$O$19,'Inhalation Exposure'!$B$6:$B$19,$B104,'Inhalation Exposure'!$D$6:$D$19,$C104),SUMIFS('Inhalation Exposure'!$N$6:$N$19,'Inhalation Exposure'!$B$6:$B$19,$B104,'Inhalation Exposure'!$D$6:$D$19,$C104)),IF($J104="Central Tendency",VLOOKUP($B104,'Dermal Crosswalk'!$A$6:$R$16,18,FALSE),VLOOKUP($B104,'Dermal Crosswalk'!$A$6:$R$16,14,FALSE))),"--") -> 1.458897425 | N104: =K104*R104 -> 29.43375433 | O104: =L104*S104 -> 1.383552746 | P104: =M104/T104 -> 0.07294487126 | R104: 20 | S104: 20 | T104: 20
B105: 6 | C105: Worker | D105: Dermal | N105: =CONCATENATE("(PF ",R104,")") -> (PF 20) | O105: =CONCATENATE("(PF ",S104,")") -> (PF 20) | P105: =CONCATENATE("(PF ",T104,")") -> (PF 20) | R105: PF | S105: PF | T105: PF
B106: 6 | C106: ONU | D106: Inhalation | F106: Preparation of histological sections for microscopic examination | H106: ONU | I106: Inhalation 8-hr TWA | J106: Central Tendency | K106: =IFERROR(VLOOKUP($D106,$V$8:$Y$9,2,FALSE)/IF($D106="Inhalation",IF($J106="Central Tendency",SUMIFS('Inhalation Exposure'!$I$6:$I$19,'Inhalation Exposure'!$B$6:$B$19,$B106,'Inhalation Exposure'!$D$6:$D$19,$C106),SUMIFS('Inhalation Exposure'!$H$6:$H$19,'Inhalation Exposure'!$B$6:$B$19,$B106,'Inhalation Exposure'!$D$6:$D$19,$C106)),IF($J106="Central Tendency",VLOOKUP($B106,'Dermal Crosswalk'!$A$6:$R$16,16,FALSE),VLOOKUP($B106,'Dermal Crosswalk'!$A$6:$R$16,12,FALSE))),"--") -> -- | L106: =IFERROR(VLOOKUP($D106,$V$8:$Y$9,3,FALSE)/IF($D106="Inhalation",IF($J106="Central Tendency",SUMIFS('Inhalation Exposure'!$M$6:$M$19,'Inhalation Exposure'!$B$6:$B$19,$B106,'Inhalation Exposure'!$D$6:$D$19,$C106),SUMIFS('Inhalation Exposure'!$L$6:$L$19,'Inhalation Exposure'!$B$6:$B$19,$B106,'Inhalation Exposure'!$D$6:$D$19,$C106)),IF($J106="Central Tendency",VLOOKUP($B106,'Dermal Crosswalk'!$A$6:$R$16,17,FALSE),VLOOKUP($B106,'Dermal Crosswalk'!$A$6:$R$16,13,FALSE))),"--") -> -- | M106: -- | N106: N/A | O106: N/A | P106: N/A | R106: N/A | S106: N/A | T106: N/A
B107: 6 | C107: ONU | D107: Inhalation | J107: High-End | K107: =IFERROR(VLOOKUP($D107,$V$8:$Y$9,2,FALSE)/IF($D107="Inhalation",IF($J107="Central Tendency",SUMIFS('Inhalation Exposure'!$I$6:$I$19,'Inhalation Exposure'!$B$6:$B$19,$B107,'Inhalation Exposure'!$D$6:$D$19,$C107),SUMIFS('Inhalation Exposure'!$H$6:$H$19,'Inhalation Exposure'!$B$6:$B$19,$B107,'Inhalation Exposure'!$D$6:$D$19,$C107)),IF($J107="Central Tendency",VLOOKUP($B107,'Dermal Crosswalk'!$A$6:$R$16,16,FALSE),VLOOKUP($B107,'Dermal Crosswalk'!$A$6:$R$16,12,FALSE))),"--") -> -- | L107: =IFERROR(VLOOKUP($D107,$V$8:$Y$9,3,FALSE)/IF($D107="Inhalation",IF($J107="Central Tendency",SUMIFS('Inhalation Exposure'!$M$6:$M$19,'Inhalation Exposure'!$B$6:$B$19,$B107,'Inhalation Exposure'!$D$6:$D$19,$C107),SUMIFS('Inhalation Exposure'!$L$6:$L$19,'Inhalation Exposure'!$B$6:$B$19,$B107,'Inhalation Exposure'!$D$6:$D$19,$C107)),IF($J107="Central Tendency",VLOOKUP($B107,'Dermal Crosswalk'!$A$6:$R$16,17,FALSE),VLOOKUP($B107,'Dermal Crosswalk'!$A$6:$R$16,13,FALSE))),"--") -> -- | M107: -- | N107: N/A | O107: N/A | P107: N/A | R107: N/A | S107: N/A | T107: N/A
B108: 7 | C108: Worker | D108: Inhalation | E108: Industrial Use, Potential Commercial Use/ Adhesives and Sealants | F108: Film cement | G108: Section 3.4.1.9 and 5.2 – Film Cement | H108: Worker | I108: Inhalation 8-hr TWA | J108: Central Tendency | K108: =IFERROR(VLOOKUP($D108,$V$8:$Y$9,2,FALSE)/IF($D108="Inhalation",IF($J108="Central Tendency",SUMIFS('Inhalation Exposure'!$I$6:$I$19,'Inhalation Exposure'!$B$6:$B$19,$B108,'Inhalation Exposure'!$D$6:$D$19,$C108),SUMIFS('Inhalation Exposure'!$H$6:$H$19,'Inhalation Exposure'!$B$6:$B$19,$B108,'Inhalation Exposure'!$D$6:$D$19,$C108)),IF($J108="Central Tendency",VLOOKUP($B108,'Dermal Crosswalk'!$A$6:$R$16,16,FALSE),VLOOKUP($B108,'Dermal Crosswalk'!$A$6:$R$16,12,FALSE))),"--") -> 186.6119097 | L108: =IFERROR(VLOOKUP($D108,$V$8:$Y$9,3,FALSE)/IF($D108="Inhalation",IF($J108="Central Tendency",SUMIFS('Inhalation Exposure'!$M$6:$M$19,'Inhalation Exposure'!$B$6:$B$19,$B108,'Inhalation Exposure'!$D$6:$D$19,$C108),SUMIFS('Inhalation Exposure'!$L$6:$L$19,'Inhalation Exposure'!$B$6:$B$19,$B108,'Inhalation Exposure'!$D$6:$D$19,$C108)),IF($J108="Central Tendency",VLOOKUP($B108,'Dermal Crosswalk'!$A$6:$R$16,17,FALSE),VLOOKUP($B108,'Dermal Crosswalk'!$A$6:$R$16,13,FALSE))),"--") -> 8.747104723 | M108: =IFERROR(VLOOKUP(D108,$V$8:$Y$9,4,FALSE)*IF($D108="Inhalation",IF($J108="Central Tendency",SUMIFS('Inhalation Exposure'!$O$6:$O$19,'Inhalation Exposure'!$B$6:$B$19,$B108,'Inhalation Exposure'!$D$6:$D$19,$C108),SUMIFS('Inhalation Exposure'!$N$6:$N$19,'Inhalation Exposure'!$B$6:$B$19,$B108,'Inhalation Exposure'!$D$6:$D$19,$C108)),IF($J108="Central Tendency",VLOOKUP($B108,'Dermal Crosswalk'!$A$6:$R$16,18,FALSE),VLOOKUP($B108,'Dermal Crosswalk'!$A$6:$R$16,14,FALSE))),"--") -> 0.0005815843812 | N108: =K108*R108 -> 1866.119097 | O108: =L108*S108 -> 87.47104723 | P108: =M108/T108 -> 5.815843812e-05 | R108: 10 | S108: 10 | T108: 10
B109: 7 | C109: Worker | D109: Inhalation | N109: =CONCATENATE("(APF ",R108,")") -> (APF 10) | O109: =CONCATENATE("(APF ",S108,")") -> (APF 10) | P109: =CONCATENATE("(APF ",T108,")") -> (APF 10) | R109: APF | S109: APF | T109: APF
B110: 7 | C110: Worker | D110: Inhalation | J110: High-End | K110: =IFERROR(VLOOKUP($D110,$V$8:$Y$9,2,FALSE)/IF($D110="Inhalation",IF($J110="Central Tendency",SUMIFS('Inhalation Exposure'!$I$6:$I$19,'Inhalation Exposure'!$B$6:$B$19,$B110,'Inhalation Exposure'!$D$6:$D$19,$C110),SUMIFS('Inhalation Exposure'!$H$6:$H$19,'Inhalation Exposure'!$B$6:$B$19,$B110,'Inhalation Exposure'!$D$6:$D$19,$C110)),IF($J110="Central Tendency",VLOOKUP($B110,'Dermal Crosswalk'!$A$6:$R$16,16,FALSE),VLOOKUP($B110,'Dermal Crosswalk'!$A$6:$R$16,12,FALSE))),"--") -> 101.1651206 | L110: =IFERROR(VLOOKUP($D110,$V$8:$Y$9,3,FALSE)/IF($D110="Inhalation",IF($J110="Central Tendency",SUMIFS('Inhalation Exposure'!$M$6:$M$19,'Inhalation Exposure'!$B$6:$B$19,$B110,'Inhalation Exposure'!$D$6:$D$19,$C110),SUMIFS('Inhalation Exposure'!$L$6:$L$19,'Inhalation Exposure'!$B$6:$B$19,$B110,'Inhalation Exposure'!$D$6:$D$19,$C110)),IF($J110="Central Tendency",VLOOKUP($B110,'Dermal Crosswalk'!$A$6:$R$16,17,FALSE),VLOOKUP($B110,'Dermal Crosswalk'!$A$6:$R$16,13,FALSE))),"--") -> 4.74193692 | M110: =IFERROR(VLOOKUP(D110,$V$8:$Y$9,4,FALSE)*IF($D110="Inhalation",IF($J110="Central Tendency",SUMIFS('Inhalation Exposure'!$O$6:$O$19,'Inhalation Exposure'!$B$6:$B$19,$B110,'Inhalation Exposure'!$D$6:$D$19,$C110),SUMIFS('Inhalation Exposure'!$N$6:$N$19,'Inhalation Exposure'!$B$6:$B$19,$B110,'Inhalation Exposure'!$D$6:$D$19,$C110)),IF($J110="Central Tendency",VLOOKUP($B110,'Dermal Crosswalk'!$A$6:$R$16,18,FALSE),VLOOKUP($B110,'Dermal Crosswalk'!$A$6:$R$16,14,FALSE))),"--") -> 0.001384266108 | N110: =K110*R110 -> 1011.651206 | O110: =L110*S110 -> 47.4193692 | P110: =M110/T110 -> 2.768532216e-05 | R110: 10 | S110: 10 | T110: 50
B111: 7 | C111: Worker | D111: Inhalation | N111: =CONCATENATE("(APF ",R110,")") -> (APF 10) | O111: =CONCATENATE("(APF ",S110,")") -> (APF 10) | P111: =CONCATENATE("(APF ",T110,")") -> (APF 50) | R111: APF | S111: APF | T111: APF
B112: 7 | C112: Worker | D112: Dermal | H112: Worker | I112: Dermal | J112: Central Tendency | K112: =IFERROR(VLOOKUP($D112,$V$8:$Y$9,2,FALSE)/IF($D112="Inhalation",IF($J112="Central Tendency",SUMIFS('Inhalation Exposure'!$I$6:$I$19,'Inhalation Exposure'!$B$6:$B$19,$B112,'Inhalation Exposure'!$D$6:$D$19,$C112),SUMIFS('Inhalation Exposure'!$H$6:$H$19,'Inhalation Exposure'!$B$6:$B$19,$B112,'Inhalation Exposure'!$D$6:$D$19,$C112)),IF($J112="Central Tendency",VLOOKUP($B112,'Dermal Crosswalk'!$A$6:$R$16,16,FALSE),VLOOKUP($B112,'Dermal Crosswalk'!$A$6:$R$16,12,FALSE))),"--") -> 8.830126298 | L112: =IFERROR(VLOOKUP($D112,$V$8:$Y$9,3,FALSE)/IF($D112="Inhalation",IF($J112="Central Tendency",SUMIFS('Inhalation Exposure'!$M$6:$M$19,'Inhalation Exposure'!$B$6:$B$19,$B112,'Inhalation Exposure'!$D$6:$D$19,$C112),SUMIFS('Inhalation Exposure'!$L$6:$L$19,'Inhalation Exposure'!$B$6:$B$19,$B112,'Inhalation Exposure'!$D$6:$D$19,$C112)),IF($J112="Central Tendency",VLOOKUP($B112,'Dermal Crosswalk'!$A$6:$R$16,17,FALSE),VLOOKUP($B112,'Dermal Crosswalk'!$A$6:$R$16,13,FALSE))),"--") -> 0.4150658237 | M112: =IFERROR(VLOOKUP(D112,$V$8:$Y$9,4,FALSE)*IF($D112="Inhalation",IF($J112="Central Tendency",SUMIFS('Inhalation Exposure'!$O$6:$O$19,'Inhalation Exposure'!$B$6:$B$19,$B112,'Inhalation Exposure'!$D$6:$D$19,$C112),SUMIFS('Inhalation Exposure'!$N$6:$N$19,'Inhalation Exposure'!$B$6:$B$19,$B112,'Inhalation Exposure'!$D$6:$D$19,$C112)),IF($J112="Central Tendency",VLOOKUP($B112,'Dermal Crosswalk'!$A$6:$R$16,18,FALSE),VLOOKUP($B112,'Dermal Crosswalk'!$A$6:$R$16,14,FALSE))),"--") -> 0.1884409174 | N112: =K112*R112 -> 176.602526 | O112: =L112*S112 -> 8.301316474 | P112: =M112/T112 -> 0.009422045871 | R112: 20 | S112: 20 | T112: 20
B113: 7 | C113: Worker | D113: Dermal | N113: =CONCATENATE("(PF ",R112,")") -> (PF 20) | O113: =CONCATENATE("(PF ",S112,")") -> (PF 20) | P113: =CONCATENATE("(PF ",T112,")") -> (PF 20) | R113: PF | S113: PF | T113: PF
B114: 7 | C114: Worker | D114: Dermal | J114: High-End | K114: =IFERROR(VLOOKUP($D114,$V$8:$Y$9,2,FALSE)/IF($D114="Inhalation",IF($J114="Central Tendency",SUMIFS('Inhalation Exposure'!$I$6:$I$19,'Inhalation Exposure'!$B$6:$B$19,$B114,'Inhalation Exposure'!$D$6:$D$19,$C114),SUMIFS('Inhalation Exposure'!$H$6:$H$19,'Inhalation Exposure'!$B$6:$B$19,$B114,'Inhalation Exposure'!$D$6:$D$19,$C114)),IF($J114="Central Tendency",VLOOKUP($B114,'Dermal Crosswalk'!$A$6:$R$16,16,FALSE),VLOOKUP($B114,'Dermal Crosswalk'!$A$6:$R$16,12,FALSE))),"--") -> 2.943375433 | L114: =IFERROR(VLOOKUP($D114,$V$8:$Y$9,3,FALSE)/IF($D114="Inhalation",IF($J114="Central Tendency",SUMIFS('Inhalation Exposure'!$M$6:$M$19,'Inhalation Exposure'!$B$6:$B$19,$B114,'Inhalation Exposure'!$D$6:$D$19,$C114),SUMIFS('Inhalation Exposure'!$L$6:$L$19,'Inhalation Exposure'!$B$6:$B$19,$B114,'Inhalation Exposure'!$D$6:$D$19,$C114)),IF($J114="Central Tendency",VLOOKUP($B114,'Dermal Crosswalk'!$A$6:$R$16,17,FALSE),VLOOKUP($B114,'Dermal Crosswalk'!$A$6:$R$16,13,FALSE))),"--") -> 0.1383552746 | M114: =IFERROR(VLOOKUP(D114,$V$8:$Y$9,4,FALSE)*IF($D114="Inhalation",IF($J114="Central Tendency",SUMIFS('Inhalation Exposure'!$O$6:$O$19,'Inhalation Exposure'!$B$6:$B$19,$B114,'Inhalation Exposure'!$D$6:$D$19,$C114),SUMIFS('Inhalation Exposure'!$N$6:$N$19,'Inhalation Exposure'!$B$6:$B$19,$B114,'Inhalation Exposure'!$D$6:$D$19,$C114)),IF($J114="Central Tendency",VLOOKUP($B114,'Dermal Crosswalk'!$A$6:$R$16,18,FALSE),VLOOKUP($B114,'Dermal Crosswalk'!$A$6:$R$16,14,FALSE))),"--") -> 0.7294487126 | N114: =K114*R114 -> 58.86750865 | O114: =L114*S114 -> 2.767105491 | P114: =M114/T114 -> 0.03647243563 | R114: 20 | S114: 20 | T114: 20
B115: 7 | C115: Worker | D115: Dermal | N115: =CONCATENATE("(PF ",R114,")") -> (PF 20) | O115: =CONCATENATE("(PF ",S114,")") -> (PF 20) | P115: =CONCATENATE("(PF ",T114,")") -> (PF 20) | R115: PF | S115: PF | T115: PF
B116: 7 | C116: ONU | D116: Inhalation | H116: ONU | I116: Inhalation 8-hr TWA | J116: Central Tendency | K116: =IFERROR(VLOOKUP($D116,$V$8:$Y$9,2,FALSE)/IF($D116="Inhalation",IF($J116="Central Tendency",SUMIFS('Inhalation Exposure'!$I$6:$I$19,'Inhalation Exposure'!$B$6:$B$19,$B116,'Inhalation Exposure'!$D$6:$D$19,$C116),SUMIFS('Inhalation Exposure'!$H$6:$H$19,'Inhalation Exposure'!$B$6:$B$19,$B116,'Inhalation Exposure'!$D$6:$D$19,$C116)),IF($J116="Central Tendency",VLOOKUP($B116,'Dermal Crosswalk'!$A$6:$R$16,16,FALSE),VLOOKUP($B116,'Dermal Crosswalk'!$A$6:$R$16,12,FALSE))),"--") -> 2726.4 | L116: =IFERROR(VLOOKUP($D116,$V$8:$Y$9,3,FALSE)/IF($D116="Inhalation",IF($J116="Central Tendency",SUMIFS('Inhalation Exposure'!$M$6:$M$19,'Inhalation Exposure'!$B$6:$B$19,$B116,'Inhalation Exposure'!$D$6:$D$19,$C116),SUMIFS('Inhalation Exposure'!$L$6:$L$19,'Inhalation Exposure'!$B$6:$B$19,$B116,'Inhalation Exposure'!$D$6:$D$19,$C116)),IF($J116="Central Tendency",VLOOKUP($B116,'Dermal Crosswalk'!$A$6:$R$16,17,FALSE),VLOOKUP($B116,'Dermal Crosswalk'!$A$6:$R$16,13,FALSE))),"--") -> 127.7952 | M116: =IFERROR(VLOOKUP(D116,$V$8:$Y$9,4,FALSE)*IF($D116="Inhalation",IF($J116="Central Tendency",SUMIFS('Inhalation Exposure'!$O$6:$O$19,'Inhalation Exposure'!$B$6:$B$19,$B116,'Inhalation Exposure'!$D$6:$D$19,$C116),SUMIFS('Inhalation Exposure'!$N$6:$N$19,'Inhalation Exposure'!$B$6:$B$19,$B116,'Inhalation Exposure'!$D$6:$D$19,$C116)),IF($J116="Central Tendency",VLOOKUP($B116,'Dermal Crosswalk'!$A$6:$R$16,18,FALSE),VLOOKUP($B116,'Dermal Crosswalk'!$A$6:$R$16,14,FALSE))),"--") -> 3.980728139e-05 | N116: N/A | O116: N/A | P116: N/A | R116: N/A | S116: N/A | T116: N/A
B117: 7 | C117: ONU | D117: Inhalation | J117: High-End | K117: =IFERROR(VLOOKUP($D117,$V$8:$Y$9,2,FALSE)/IF($D117="Inhalation",IF($J117="Central Tendency",SUMIFS('Inhalation Exposure'!$I$6:$I$19,'Inhalation Exposure'!$B$6:$B$19,$B117,'Inhalation Exposure'!$D$6:$D$19,$C117),SUMIFS('Inhalation Exposure'!$H$6:$H$19,'Inhalation Exposure'!$B$6:$B$19,$B117,'Inhalation Exposure'!$D$6:$D$19,$C117)),IF($J117="Central Tendency",VLOOKUP($B117,'Dermal Crosswalk'!$A$6:$R$16,16,FALSE),VLOOKUP($B117,'Dermal Crosswalk'!$A$6:$R$16,12,FALSE))),"--") -> 2726.4 | L117: =IFERROR(VLOOKUP($D117,$V$8:$Y$9,3,FALSE)/IF($D117="Inhalation",IF($J117="Central Tendency",SUMIFS('Inhalation Exposure'!$M$6:$M$19,'Inhalation Exposure'!$B$6:$B$19,$B117,'Inhalation Exposure'!$D$6:$D$19,$C117),SUMIFS('Inhalation Exposure'!$L$6:$L$19,'Inhalation Exposure'!$B$6:$B$19,$B117,'Inhalation Exposure'!$D$6:$D$19,$C117)),IF($J117="Central Tendency",VLOOKUP($B117,'Dermal Crosswalk'!$A$6:$R$16,17,FALSE),VLOOKUP($B117,'Dermal Crosswalk'!$A$6:$R$16,13,FALSE))),"--") -> 127.7952 | M117: =IFERROR(VLOOKUP(D117,$V$8:$Y$9,4,FALSE)*IF($D117="Inhalation",IF($J117="Central Tendency",SUMIFS('Inhalation Exposure'!$O$6:$O$19,'Inhalation Exposure'!$B$6:$B$19,$B117,'Inhalation Exposure'!$D$6:$D$19,$C117),SUMIFS('Inhalation Exposure'!$N$6:$N$19,'Inhalation Exposure'!$B$6:$B$19,$B117,'Inhalation Exposure'!$D$6:$D$19,$C117)),IF($J117="Central Tendency",VLOOKUP($B117,'Dermal Crosswalk'!$A$6:$R$16,18,FALSE),VLOOKUP($B117,'Dermal Crosswalk'!$A$6:$R$16,14,FALSE))),"--") -> 5.136423406e-05 | N117: N/A | O117: N/A | P117: N/A | R117: N/A | S117: N/A | T117: N/A
B118: 5 | C118: Worker | D118: Inhalation | E118: Industrial Use, Potential Commercial Use/ Other Uses | F118: Spray polyurethane foam | G118: Section 3.4.1.10 and 5.2 – Spray Foam Application | H118: Worker | I118: Inhalation 8-hr TWA | J118: Central Tendency | K118: =IFERROR(VLOOKUP($D118,$V$8:$Y$9,2,FALSE)/IF($D118="Inhalation",IF($J118="Central Tendency",SUMIFS('Inhalation Exposure'!$I$6:$I$19,'Inhalation Exposure'!$B$6:$B$19,$B118,'Inhalation Exposure'!$D$6:$D$19,$C118),SUMIFS('Inhalation Exposure'!$H$6:$H$19,'Inhalation Exposure'!$B$6:$B$19,$B118,'Inhalation Exposure'!$D$6:$D$19,$C118)),IF($J118="Central Tendency",VLOOKUP($B118,'Dermal Crosswalk'!$A$6:$R$16,16,FALSE),VLOOKUP($B118,'Dermal Crosswalk'!$A$6:$R$16,12,FALSE))),"--") -> 29193.91538 | L118: =IFERROR(VLOOKUP($D118,$V$8:$Y$9,3,FALSE)/IF($D118="Inhalation",IF($J118="Central Tendency",SUMIFS('Inhalation Exposure'!$M$6:$M$19,'Inhalation Exposure'!$B$6:$B$19,$B118,'Inhalation Exposure'!$D$6:$D$19,$C118),SUMIFS('Inhalation Exposure'!$L$6:$L$19,'Inhalation Exposure'!$B$6:$B$19,$B118,'Inhalation Exposure'!$D$6:$D$19,$C118)),IF($J118="Central Tendency",VLOOKUP($B118,'Dermal Crosswalk'!$A$6:$R$16,17,FALSE),VLOOKUP($B118,'Dermal Crosswalk'!$A$6:$R$16,13,FALSE))),"--") -> 1368.413386 | M118: =IFERROR(VLOOKUP(D118,$V$8:$Y$9,4,FALSE)*IF($D118="Inhalation",IF($J118="Central Tendency",SUMIFS('Inhalation Exposure'!$O$6:$O$19,'Inhalation Exposure'!$B$6:$B$19,$B118,'Inhalation Exposure'!$D$6:$D$19,$C118),SUMIFS('Inhalation Exposure'!$N$6:$N$19,'Inhalation Exposure'!$B$6:$B$19,$B118,'Inhalation Exposure'!$D$6:$D$19,$C118)),IF($J118="Central Tendency",VLOOKUP($B118,'Dermal Crosswalk'!$A$6:$R$16,18,FALSE),VLOOKUP($B118,'Dermal Crosswalk'!$A$6:$R$16,14,FALSE))),"--") -> 3.629666511e-06 | N118: =K118*R118 -> 291939.1538 | O118: =L118*S118 -> 13684.13386 | P118: =M118/T118 -> 3.629666511e-07 | R118: 10 | S118: 10 | T118: 10
B119: 5 | C119: Worker | D119: Inhalation | N119: =CONCATENATE("(APF ",R118,")") -> (APF 10) | O119: =CONCATENATE("(APF ",S118,")") -> (APF 10) | P119: =CONCATENATE("(APF ",T118,")") -> (APF 10) | R119: APF | S119: APF | T119: APF
B120: 5 | C120: Worker | D120: Inhalation | J120: High-End | K120: =IFERROR(VLOOKUP($D120,$V$8:$Y$9,2,FALSE)/IF($D120="Inhalation",IF($J120="Central Tendency",SUMIFS('Inhalation Exposure'!$I$6:$I$19,'Inhalation Exposure'!$B$6:$B$19,$B120,'Inhalation Exposure'!$D$6:$D$19,$C120),SUMIFS('Inhalation Exposure'!$H$6:$H$19,'Inhalation Exposure'!$B$6:$B$19,$B120,'Inhalation Exposure'!$D$6:$D$19,$C120)),IF($J120="Central Tendency",VLOOKUP($B120,'Dermal Crosswalk'!$A$6:$R$16,16,FALSE),VLOOKUP($B120,'Dermal Crosswalk'!$A$6:$R$16,12,FALSE))),"--") -> 24030.02719 | L120: =IFERROR(VLOOKUP($D120,$V$8:$Y$9,3,FALSE)/IF($D120="Inhalation",IF($J120="Central Tendency",SUMIFS('Inhalation Exposure'!$M$6:$M$19,'Inhalation Exposure'!$B$6:$B$19,$B120,'Inhalation Exposure'!$D$6:$D$19,$C120),SUMIFS('Inhalation Exposure'!$L$6:$L$19,'Inhalation Exposure'!$B$6:$B$19,$B120,'Inhalation Exposure'!$D$6:$D$19,$C120)),IF($J120="Central Tendency",VLOOKUP($B120,'Dermal Crosswalk'!$A$6:$R$16,17,FALSE),VLOOKUP($B120,'Dermal Crosswalk'!$A$6:$R$16,13,FALSE))),"--") -> 1126.365218 | M120: =IFERROR(VLOOKUP(D120,$V$8:$Y$9,4,FALSE)*IF($D120="Inhalation",IF($J120="Central Tendency",SUMIFS('Inhalation Exposure'!$O$6:$O$19,'Inhalation Exposure'!$B$6:$B$19,$B120,'Inhalation Exposure'!$D$6:$D$19,$C120),SUMIFS('Inhalation Exposure'!$N$6:$N$19,'Inhalation Exposure'!$B$6:$B$19,$B120,'Inhalation Exposure'!$D$6:$D$19,$C120)),IF($J120="Central Tendency",VLOOKUP($B120,'Dermal Crosswalk'!$A$6:$R$16,18,FALSE),VLOOKUP($B120,'Dermal Crosswalk'!$A$6:$R$16,14,FALSE))),"--") -> 5.254765396e-06 | N120: =K120*R120 -> 240300.2719 | O120: =L120*S120 -> 11263.65218 | P120: =M120/T120 -> 5.254765396e-07 | R120: 10 | S120: 10 | T120: 10
B121: 5 | C121: Worker | D121: Inhalation | N121: =CONCATENATE("(APF ",R120,")") -> (APF 10) | O121: =CONCATENATE("(APF ",S120,")") -> (APF 10) | P121: =CONCATENATE("(APF ",T120,")") -> (APF 10) | R121: APF | S121: APF | T121: APF
B122: 5 | C122: Worker | D122: Dermal | H122: Worker | I122: Dermal | J122: Central Tendency | K122: =IFERROR(VLOOKUP($D122,$V$8:$Y$9,2,FALSE)/IF($D122="Inhalation",IF($J122="Central Tendency",SUMIFS('Inhalation Exposure'!$I$6:$I$19,'Inhalation Exposure'!$B$6:$B$19,$B122,'Inhalation Exposure'!$D$6:$D$19,$C122),SUMIFS('Inhalation Exposure'!$H$6:$H$19,'Inhalation Exposure'!$B$6:$B$19,$B122,'Inhalation Exposure'!$D$6:$D$19,$C122)),IF($J122="Central Tendency",VLOOKUP($B122,'Dermal Crosswalk'!$A$6:$R$16,16,FALSE),VLOOKUP($B122,'Dermal Crosswalk'!$A$6:$R$16,12,FALSE))),"--") -> 4415.063149 | L122: =IFERROR(VLOOKUP($D122,$V$8:$Y$9,3,FALSE)/IF($D122="Inhalation",IF($J122="Central Tendency",SUMIFS('Inhalation Exposure'!$M$6:$M$19,'Inhalation Exposure'!$B$6:$B$19,$B122,'Inhalation Exposure'!$D$6:$D$19,$C122),SUMIFS('Inhalation Exposure'!$L$6:$L$19,'Inhalation Exposure'!$B$6:$B$19,$B122,'Inhalation Exposure'!$D$6:$D$19,$C122)),IF($J122="Central Tendency",VLOOKUP($B122,'Dermal Crosswalk'!$A$6:$R$16,17,FALSE),VLOOKUP($B122,'Dermal Crosswalk'!$A$6:$R$16,13,FALSE))),"--") -> 207.5329119 | M122: =IFERROR(VLOOKUP(D122,$V$8:$Y$9,4,FALSE)*IF($D122="Inhalation",IF($J122="Central Tendency",SUMIFS('Inhalation Exposure'!$O$6:$O$19,'Inhalation Exposure'!$B$6:$B$19,$B122,'Inhalation Exposure'!$D$6:$D$19,$C122),SUMIFS('Inhalation Exposure'!$N$6:$N$19,'Inhalation Exposure'!$B$6:$B$19,$B122,'Inhalation Exposure'!$D$6:$D$19,$C122)),IF($J122="Central Tendency",VLOOKUP($B122,'Dermal Crosswalk'!$A$6:$R$16,18,FALSE),VLOOKUP($B122,'Dermal Crosswalk'!$A$6:$R$16,14,FALSE))),"--") -> 0.0003768818349 | N122: =K122*R122 -> 22075.31574 | O122: =L122*S122 -> 1037.664559 | P122: =M122/T122 -> 7.537636697e-05 | R122: 5 | S122: 5 | T122: 5
B123: 5 | C123: Worker | D123: Dermal | N123: =CONCATENATE("(PF ",R122,")") -> (PF 5) | O123: =CONCATENATE("(PF ",S122,")") -> (PF 5) | P123: =CONCATENATE("(PF ",T122,")") -> (PF 5) | R123: PF | S123: PF | T123: PF
B124: 5 | C124: Worker | D124: Dermal | J124: High-End | K124: =IFERROR(VLOOKUP($D124,$V$8:$Y$9,2,FALSE)/IF($D124="Inhalation",IF($J124="Central Tendency",SUMIFS('Inhalation Exposure'!$I$6:$I$19,'Inhalation Exposure'!$B$6:$B$19,$B124,'Inhalation Exposure'!$D$6:$D$19,$C124),SUMIFS('Inhalation Exposure'!$H$6:$H$19,'Inhalation Exposure'!$B$6:$B$19,$B124,'Inhalation Exposure'!$D$6:$D$19,$C124)),IF($J124="Central Tendency",VLOOKUP($B124,'Dermal Crosswalk'!$A$6:$R$16,16,FALSE),VLOOKUP($B124,'Dermal Crosswalk'!$A$6:$R$16,12,FALSE))),"--") -> 1471.687716 | L124: =IFERROR(VLOOKUP($D124,$V$8:$Y$9,3,FALSE)/IF($D124="Inhalation",IF($J124="Central Tendency",SUMIFS('Inhalation Exposure'!$M$6:$M$19,'Inhalation Exposure'!$B$6:$B$19,$B124,'Inhalation Exposure'!$D$6:$D$19,$C124),SUMIFS('Inhalation Exposure'!$L$6:$L$19,'Inhalation Exposure'!$B$6:$B$19,$B124,'Inhalation Exposure'!$D$6:$D$19,$C124)),IF($J124="Central Tendency",VLOOKUP($B124,'Dermal Crosswalk'!$A$6:$R$16,17,FALSE),VLOOKUP($B124,'Dermal Crosswalk'!$A$6:$R$16,13,FALSE))),"--") -> 69.17763729 | M124: =IFERROR(VLOOKUP(D124,$V$8:$Y$9,4,FALSE)*IF($D124="Inhalation",IF($J124="Central Tendency",SUMIFS('Inhalation Exposure'!$O$6:$O$19,'Inhalation Exposure'!$B$6:$B$19,$B124,'Inhalation Exposure'!$D$6:$D$19,$C124),SUMIFS('Inhalation Exposure'!$N$6:$N$19,'Inhalation Exposure'!$B$6:$B$19,$B124,'Inhalation Exposure'!$D$6:$D$19,$C124)),IF($J124="Central Tendency",VLOOKUP($B124,'Dermal Crosswalk'!$A$6:$R$16,18,FALSE),VLOOKUP($B124,'Dermal Crosswalk'!$A$6:$R$16,14,FALSE))),"--") -> 0.001458897425 | N124: =K124*R124 -> 7358.438582 | O124: =L124*S124 -> 345.8881864 | P124: =M124/T124 -> 7.294487126e-05 | R124: 5 | S124: 5 | T124: 20
B125: 5 | C125: Worker | D125: Dermal | N125: =CONCATENATE("(PF ",R124,")") -> (PF 5) | O125: =CONCATENATE("(PF ",S124,")") -> (PF 5) | P125: =CONCATENATE("(PF ",T124,")") -> (PF 20) | R125: PF | S125: PF | T125: PF
B126: 5 | C126: ONU | D126: Inhalation | H126: ONU | I126: Inhalation 8-hr TWA | J126: Central Tendency | K126: =IFERROR(VLOOKUP($D126,$V$8:$Y$9,2,FALSE)/IF($D126="Inhalation",IF($J126="Central Tendency",SUMIFS('Inhalation Exposure'!$I$6:$I$19,'Inhalation Exposure'!$B$6:$B$19,$B126,'Inhalation Exposure'!$D$6:$D$19,$C126),SUMIFS('Inhalation Exposure'!$H$6:$H$19,'Inhalation Exposure'!$B$6:$B$19,$B126,'Inhalation Exposure'!$D$6:$D$19,$C126)),IF($J126="Central Tendency",VLOOKUP($B126,'Dermal Crosswalk'!$A$6:$R$16,16,FALSE),VLOOKUP($B126,'Dermal Crosswalk'!$A$6:$R$16,12,FALSE))),"--") -> 151466.6667 | L126: =IFERROR(VLOOKUP($D126,$V$8:$Y$9,3,FALSE)/IF($D126="Inhalation",IF($J126="Central Tendency",SUMIFS('Inhalation Exposure'!$M$6:$M$19,'Inhalation Exposure'!$B$6:$B$19,$B126,'Inhalation Exposure'!$D$6:$D$19,$C126),SUMIFS('Inhalation Exposure'!$L$6:$L$19,'Inhalation Exposure'!$B$6:$B$19,$B126,'Inhalation Exposure'!$D$6:$D$19,$C126)),IF($J126="Central Tendency",VLOOKUP($B126,'Dermal Crosswalk'!$A$6:$R$16,17,FALSE),VLOOKUP($B126,'Dermal Crosswalk'!$A$6:$R$16,13,FALSE))),"--") -> 7099.733333 | M126: =IFERROR(VLOOKUP(D126,$V$8:$Y$9,4,FALSE)*IF($D126="Inhalation",IF($J126="Central Tendency",SUMIFS('Inhalation Exposure'!$O$6:$O$19,'Inhalation Exposure'!$B$6:$B$19,$B126,'Inhalation Exposure'!$D$6:$D$19,$C126),SUMIFS('Inhalation Exposure'!$N$6:$N$19,'Inhalation Exposure'!$B$6:$B$19,$B126,'Inhalation Exposure'!$D$6:$D$19,$C126)),IF($J126="Central Tendency",VLOOKUP($B126,'Dermal Crosswalk'!$A$6:$R$16,18,FALSE),VLOOKUP($B126,'Dermal Crosswalk'!$A$6:$R$16,14,FALSE))),"--") -> 7.165310651e-07 | N126: N/A | O126: N/A | P126: N/A | R126: N/A | S126: N/A | T126: N/A
B127: 5 | C127: ONU | D127: Inhalation | J127: High-End | K127: =IFERROR(VLOOKUP($D127,$V$8:$Y$9,2,FALSE)/IF($D127="Inhalation",IF($J127="Central Tendency",SUMIFS('Inhalation Exposure'!$I$6:$I$19,'Inhalation Exposure'!$B$6:$B$19,$B127,'Inhalation Exposure'!$D$6:$D$19,$C127),SUMIFS('Inhalation Exposure'!$H$6:$H$19,'Inhalation Exposure'!$B$6:$B$19,$B127,'Inhalation Exposure'!$D$6:$D$19,$C127)),IF($J127="Central Tendency",VLOOKUP($B127,'Dermal Crosswalk'!$A$6:$R$16,16,FALSE),VLOOKUP($B127,'Dermal Crosswalk'!$A$6:$R$16,12,FALSE))),"--") -> 151466.6667 | L127: =IFERROR(VLOOKUP($D127,$V$8:$Y$9,3,FALSE)/IF($D127="Inhalation",IF($J127="Central Tendency",SUMIFS('Inhalation Exposure'!$M$6:$M$19,'Inhalation Exposure'!$B$6:$B$19,$B127,'Inhalation Exposure'!$D$6:$D$19,$C127),SUMIFS('Inhalation Exposure'!$L$6:$L$19,'Inhalation Exposure'!$B$6:$B$19,$B127,'Inhalation Exposure'!$D$6:$D$19,$C127)),IF($J127="Central Tendency",VLOOKUP($B127,'Dermal Crosswalk'!$A$6:$R$16,17,FALSE),VLOOKUP($B127,'Dermal Crosswalk'!$A$6:$R$16,13,FALSE))),"--") -> 7099.733333 | M127: =IFERROR(VLOOKUP(D127,$V$8:$Y$9,4,FALSE)*IF($D127="Inhalation",IF($J127="Central Tendency",SUMIFS('Inhalation Exposure'!$O$6:$O$19,'Inhalation Exposure'!$B$6:$B$19,$B127,'Inhalation Exposure'!$D$6:$D$19,$C127),SUMIFS('Inhalation Exposure'!$N$6:$N$19,'Inhalation Exposure'!$B$6:$B$19,$B127,'Inhalation Exposure'!$D$6:$D$19,$C127)),IF($J127="Central Tendency",VLOOKUP($B127,'Dermal Crosswalk'!$A$6:$R$16,18,FALSE),VLOOKUP($B127,'Dermal Crosswalk'!$A$6:$R$16,14,FALSE))),"--") -> 9.24556213e-07 | N127: N/A | O127: N/A | P127: N/A | R127: N/A | S127: N/A | T127: N/A
B128: 8 | C128: Worker | D128: Inhalation | E128: Industrial Use, Potential Commercial Use/ Other Uses | F128: Printing and printing compositions | G128: Section 3.4.1.11 and 5.2 – Use of Printing Inks (3D) | H128: Worker | I128: Inhalation 8-hr TWA | J128: Central Tendency | K128: =IFERROR(VLOOKUP($D128,$V$8:$Y$9,2,FALSE)/IF($D128="Inhalation",IF($J128="Central Tendency",SUMIFS('Inhalation Exposure'!$I$6:$I$19,'Inhalation Exposure'!$B$6:$B$19,$B128,'Inhalation Exposure'!$D$6:$D$19,$C128),SUMIFS('Inhalation Exposure'!$H$6:$H$19,'Inhalation Exposure'!$B$6:$B$19,$B128,'Inhalation Exposure'!$D$6:$D$19,$C128)),IF($J128="Central Tendency",VLOOKUP($B128,'Dermal Crosswalk'!$A$6:$R$16,16,FALSE),VLOOKUP($B128,'Dermal Crosswalk'!$A$6:$R$16,12,FALSE))),"--") -> 2921.8107 | L128: =IFERROR(VLOOKUP($D128,$V$8:$Y$9,3,FALSE)/IF($D128="Inhalation",IF($J128="Central Tendency",SUMIFS('Inhalation Exposure'!$M$6:$M$19,'Inhalation Exposure'!$B$6:$B$19,$B128,'Inhalation Exposure'!$D$6:$D$19,$C128),SUMIFS('Inhalation Exposure'!$L$6:$L$19,'Inhalation Exposure'!$B$6:$B$19,$B128,'Inhalation Exposure'!$D$6:$D$19,$C128)),IF($J128="Central Tendency",VLOOKUP($B128,'Dermal Crosswalk'!$A$6:$R$16,17,FALSE),VLOOKUP($B128,'Dermal Crosswalk'!$A$6:$R$16,13,FALSE))),"--") -> 136.9547325 | M128: =IFERROR(VLOOKUP(D128,$V$8:$Y$9,4,FALSE)*IF($D128="Inhalation",IF($J128="Central Tendency",SUMIFS('Inhalation Exposure'!$O$6:$O$19,'Inhalation Exposure'!$B$6:$B$19,$B128,'Inhalation Exposure'!$D$6:$D$19,$C128),SUMIFS('Inhalation Exposure'!$N$6:$N$19,'Inhalation Exposure'!$B$6:$B$19,$B128,'Inhalation Exposure'!$D$6:$D$19,$C128)),IF($J128="Central Tendency",VLOOKUP($B128,'Dermal Crosswalk'!$A$6:$R$16,18,FALSE),VLOOKUP($B128,'Dermal Crosswalk'!$A$6:$R$16,14,FALSE))),"--") -> 3.714497041e-05 | N128: =K128*R128 -> 29218.107 | O128: =L128*S128 -> 1369.547325 | P128: =M128/T128 -> 3.714497041e-06 | R128: 10 | S128: 10 | T128: 10
B129: 8 | C129: Worker | D129: Inhalation | N129: =CONCATENATE("(APF ",R128,")") -> (APF 10) | O129: =CONCATENATE("(APF ",S128,")") -> (APF 10) | P129: =CONCATENATE("(APF ",T128,")") -> (APF 10) | R129: APF | S129: APF | T129: APF
B130: 8 | C130: Worker | D130: Inhalation | J130: High-End | K130: =IFERROR(VLOOKUP($D130,$V$8:$Y$9,2,FALSE)/IF($D130="Inhalation",IF($J130="Central Tendency",SUMIFS('Inhalation Exposure'!$I$6:$I$19,'Inhalation Exposure'!$B$6:$B$19,$B130,'Inhalation Exposure'!$D$6:$D$19,$C130),SUMIFS('Inhalation Exposure'!$H$6:$H$19,'Inhalation Exposure'!$B$6:$B$19,$B130,'Inhalation Exposure'!$D$6:$D$19,$C130)),IF($J130="Central Tendency",VLOOKUP($B130,'Dermal Crosswalk'!$A$6:$R$16,16,FALSE),VLOOKUP($B130,'Dermal Crosswalk'!$A$6:$R$16,12,FALSE))),"--") -> 2921.8107 | L130: =IFERROR(VLOOKUP($D130,$V$8:$Y$9,3,FALSE)/IF($D130="Inhalation",IF($J130="Central Tendency",SUMIFS('Inhalation Exposure'!$M$6:$M$19,'Inhalation Exposure'!$B$6:$B$19,$B130,'Inhalation Exposure'!$D$6:$D$19,$C130),SUMIFS('Inhalation Exposure'!$L$6:$L$19,'Inhalation Exposure'!$B$6:$B$19,$B130,'Inhalation Exposure'!$D$6:$D$19,$C130)),IF($J130="Central Tendency",VLOOKUP($B130,'Dermal Crosswalk'!$A$6:$R$16,17,FALSE),VLOOKUP($B130,'Dermal Crosswalk'!$A$6:$R$16,13,FALSE))),"--") -> 136.9547325 | M130: =IFERROR(VLOOKUP(D130,$V$8:$Y$9,4,FALSE)*IF($D130="Inhalation",IF($J130="Central Tendency",SUMIFS('Inhalation Exposure'!$O$6:$O$19,'Inhalation Exposure'!$B$6:$B$19,$B130,'Inhalation Exposure'!$D$6:$D$19,$C130),SUMIFS('Inhalation Exposure'!$N$6:$N$19,'Inhalation Exposure'!$B$6:$B$19,$B130,'Inhalation Exposure'!$D$6:$D$19,$C130)),IF($J130="Central Tendency",VLOOKUP($B130,'Dermal Crosswalk'!$A$6:$R$16,18,FALSE),VLOOKUP($B130,'Dermal Crosswalk'!$A$6:$R$16,14,FALSE))),"--") -> 4.792899408e-05 | N130: =K130*R130 -> 29218.107 | O130: =L130*S130 -> 1369.547325 | P130: =M130/T130 -> 4.792899408e-06 | R130: 10 | S130: 10 | T130: 10
B131: 8 | C131: Worker | D131: Inhalation | N131: =CONCATENATE("(APF ",R130,")") -> (APF 10) | O131: =CONCATENATE("(APF ",S130,")") -> (APF 10) | P131: =CONCATENATE("(APF ",T130,")") -> (APF 10) | R131: APF | S131: APF | T131: APF
B132: 8 | C132: Worker | D132: Dermal | H132: Worker | I132: Dermal | J132: Central Tendency | K132: =IFERROR(VLOOKUP($D132,$V$8:$Y$9,2,FALSE)/IF($D132="Inhalation",IF($J132="Central Tendency",SUMIFS('Inhalation Exposure'!$I$6:$I$19,'Inhalation Exposure'!$B$6:$B$19,$B132,'Inhalation Exposure'!$D$6:$D$19,$C132),SUMIFS('Inhalation Exposure'!$H$6:$H$19,'Inhalation Exposure'!$B$6:$B$19,$B132,'Inhalation Exposure'!$D$6:$D$19,$C132)),IF($J132="Central Tendency",VLOOKUP($B132,'Dermal Crosswalk'!$A$6:$R$16,16,FALSE),VLOOKUP($B132,'Dermal Crosswalk'!$A$6:$R$16,12,FALSE))),"--") -> 4.415063149 | L132: =IFERROR(VLOOKUP($D132,$V$8:$Y$9,3,FALSE)/IF($D132="Inhalation",IF($J132="Central Tendency",SUMIFS('Inhalation Exposure'!$M$6:$M$19,'Inhalation Exposure'!$B$6:$B$19,$B132,'Inhalation Exposure'!$D$6:$D$19,$C132),SUMIFS('Inhalation Exposure'!$L$6:$L$19,'Inhalation Exposure'!$B$6:$B$19,$B132,'Inhalation Exposure'!$D$6:$D$19,$C132)),IF($J132="Central Tendency",VLOOKUP($B132,'Dermal Crosswalk'!$A$6:$R$16,17,FALSE),VLOOKUP($B132,'Dermal Crosswalk'!$A$6:$R$16,13,FALSE))),"--") -> 0.2075329119 | M132: =IFERROR(VLOOKUP(D132,$V$8:$Y$9,4,FALSE)*IF($D132="Inhalation",IF($J132="Central Tendency",SUMIFS('Inhalation Exposure'!$O$6:$O$19,'Inhalation Exposure'!$B$6:$B$19,$B132,'Inhalation Exposure'!$D$6:$D$19,$C132),SUMIFS('Inhalation Exposure'!$N$6:$N$19,'Inhalation Exposure'!$B$6:$B$19,$B132,'Inhalation Exposure'!$D$6:$D$19,$C132)),IF($J132="Central Tendency",VLOOKUP($B132,'Dermal Crosswalk'!$A$6:$R$16,18,FALSE),VLOOKUP($B132,'Dermal Crosswalk'!$A$6:$R$16,14,FALSE))),"--") -> 0.3768818349 | N132: =K132*R132 -> 88.30126298 | O132: =L132*S132 -> 4.150658237 | P132: =M132/T132 -> 0.01884409174 | R132: 20 | S132: 20 | T132: 20
B133: 8 | C133: Worker | D133: Dermal | N133: =CONCATENATE("(PF ",R132,")") -> (PF 20) | O133: =CONCATENATE("(PF ",S132,")") -> (PF 20) | P133: =CONCATENATE("(PF ",T132,")") -> (PF 20) | R133: PF | S133: PF | T133: PF
B134: 8 | C134: Worker | D134: Dermal | J134: High-End | K134: =IFERROR(VLOOKUP($D134,$V$8:$Y$9,2,FALSE)/IF($D134="Inhalation",IF($J134="Central Tendency",SUMIFS('Inhalation Exposure'!$I$6:$I$19,'Inhalation Exposure'!$B$6:$B$19,$B134,'Inhalation Exposure'!$D$6:$D$19,$C134),SUMIFS('Inhalation Exposure'!$H$6:$H$19,'Inhalation Exposure'!$B$6:$B$19,$B134,'Inhalation Exposure'!$D$6:$D$19,$C134)),IF($J134="Central Tendency",VLOOKUP($B134,'Dermal Crosswalk'!$A$6:$R$16,16,FALSE),VLOOKUP($B134,'Dermal Crosswalk'!$A$6:$R$16,12,FALSE))),"--") -> 1.471687716 | L134: =IFERROR(VLOOKUP($D134,$V$8:$Y$9,3,FALSE)/IF($D134="Inhalation",IF($J134="Central Tendency",SUMIFS('Inhalation Exposure'!$M$6:$M$19,'Inhalation Exposure'!$B$6:$B$19,$B134,'Inhalation Exposure'!$D$6:$D$19,$C134),SUMIFS('Inhalation Exposure'!$L$6:$L$19,'Inhalation Exposure'!$B$6:$B$19,$B134,'Inhalation Exposure'!$D$6:$D$19,$C134)),IF($J134="Central Tendency",VLOOKUP($B134,'Dermal Crosswalk'!$A$6:$R$16,17,FALSE),VLOOKUP($B134,'Dermal Crosswalk'!$A$6:$R$16,13,FALSE))),"--") -> 0.06917763729 | M134: =IFERROR(VLOOKUP(D134,$V$8:$Y$9,4,FALSE)*IF($D134="Inhalation",IF($J134="Central Tendency",SUMIFS('Inhalation Exposure'!$O$6:$O$19,'Inhalation Exposure'!$B$6:$B$19,$B134,'Inhalation Exposure'!$D$6:$D$19,$C134),SUMIFS('Inhalation Exposure'!$N$6:$N$19,'Inhalation Exposure'!$B$6:$B$19,$B134,'Inhalation Exposure'!$D$6:$D$19,$C134)),IF($J134="Central Tendency",VLOOKUP($B134,'Dermal Crosswalk'!$A$6:$R$16,18,FALSE),VLOOKUP($B134,'Dermal Crosswalk'!$A$6:$R$16,14,FALSE))),"--") -> 1.458897425 | N134: =K134*R134 -> 29.43375433 | O134: =L134*S134 -> 1.383552746 | P134: =M134/T134 -> 0.07294487126 | R134: 20 | S134: 20 | T134: 20
B135: 8 | C135: Worker | D135: Dermal | N135: =CONCATENATE("(PF ",R134,")") -> (PF 20) | O135: =CONCATENATE("(PF ",S134,")") -> (PF 20) | P135: =CONCATENATE("(PF ",T134,")") -> (PF 20) | R135: PF | S135: PF | T135: PF
B136: 8 | C136: ONU | D136: Inhalation | H136: ONU | I136: Inhalation 8-hr TWA | J136: Central Tendency | K136: =IFERROR(VLOOKUP($D136,$V$8:$Y$9,2,FALSE)/IF($D136="Inhalation",IF($J136="Central Tendency",SUMIFS('Inhalation Exposure'!$I$6:$I$19,'Inhalation Exposure'!$B$6:$B$19,$B136,'Inhalation Exposure'!$D$6:$D$19,$C136),SUMIFS('Inhalation Exposure'!$H$6:$H$19,'Inhalation Exposure'!$B$6:$B$19,$B136,'Inhalation Exposure'!$D$6:$D$19,$C136)),IF($J136="Central Tendency",VLOOKUP($B136,'Dermal Crosswalk'!$A$6:$R$16,16,FALSE),VLOOKUP($B136,'Dermal Crosswalk'!$A$6:$R$16,12,FALSE))),"--") -> -- | L136: =IFERROR(VLOOKUP($D136,$V$8:$Y$9,3,FALSE)/IF($D136="Inhalation",IF($J136="Central Tendency",SUMIFS('Inhalation Exposure'!$M$6:$M$19,'Inhalation Exposure'!$B$6:$B$19,$B136,'Inhalation Exposure'!$D$6:$D$19,$C136),SUMIFS('Inhalation Exposure'!$L$6:$L$19,'Inhalation Exposure'!$B$6:$B$19,$B136,'Inhalation Exposure'!$D$6:$D$19,$C136)),IF($J136="Central Tendency",VLOOKUP($B136,'Dermal Crosswalk'!$A$6:$R$16,17,FALSE),VLOOKUP($B136,'Dermal Crosswalk'!$A$6:$R$16,13,FALSE))),"--") -> -- | M136: -- | N136: N/A | O136: N/A | P136: N/A | R136: N/A | S136: N/A | T136: N/A
B137: 8 | C137: ONU | D137: Inhalation | J137: High-End | K137: =IFERROR(VLOOKUP($D137,$V$8:$Y$9,2,FALSE)/IF($D137="Inhalation",IF($J137="Central Tendency",SUMIFS('Inhalation Exposure'!$I$6:$I$19,'Inhalation Exposure'!$B$6:$B$19,$B137,'Inhalation Exposure'!$D$6:$D$19,$C137),SUMIFS('Inhalation Exposure'!$H$6:$H$19,'Inhalation Exposure'!$B$6:$B$19,$B137,'Inhalation Exposure'!$D$6:$D$19,$C137)),IF($J137="Central Tendency",VLOOKUP($B137,'Dermal Crosswalk'!$A$6:$R$16,16,FALSE),VLOOKUP($B137,'Dermal Crosswalk'!$A$6:$R$16,12,FALSE))),"--") -> -- | L137: =IFERROR(VLOOKUP($D137,$V$8:$Y$9,3,FALSE)/IF($D137="Inhalation",IF($J137="Central Tendency",SUMIFS('Inhalation Exposure'!$M$6:$M$19,'Inhalation Exposure'!$B$6:$B$19,$B137,'Inhalation Exposure'!$D$6:$D$19,$C137),SUMIFS('Inhalation Exposure'!$L$6:$L$19,'Inhalation Exposure'!$B$6:$B$19,$B137,'Inhalation Exposure'!$D$6:$D$19,$C137)),IF($J137="Central Tendency",VLOOKUP($B137,'Dermal Crosswalk'!$A$6:$R$16,17,FALSE),VLOOKUP($B137,'Dermal Crosswalk'!$A$6:$R$16,13,FALSE))),"--") -> -- | M137: -- | N137: N/A | O137: N/A | P137: N/A | R137: N/A | S137: N/A | T137: N/A
B138: 9 | C138: Worker | D138: Inhalation | E138: Industrial Use, Potential Commercial Use/ Other Uses | F138: Dry film lubricant | G138: Section 3.4.1.12 and 5.2 – Dry Film Lubricant | H138: Worker | I138: Inhalation 8-hr TWA | J138: Central Tendency | K138: =IFERROR(VLOOKUP($D138,$V$8:$Y$9,2,FALSE)/IF($D138="Inhalation",IF($J138="Central Tendency",SUMIFS('Inhalation Exposure'!$I$6:$I$19,'Inhalation Exposure'!$B$6:$B$19,$B138,'Inhalation Exposure'!$D$6:$D$19,$C138),SUMIFS('Inhalation Exposure'!$H$6:$H$19,'Inhalation Exposure'!$B$6:$B$19,$B138,'Inhalation Exposure'!$D$6:$D$19,$C138)),IF($J138="Central Tendency",VLOOKUP($B138,'Dermal Crosswalk'!$A$6:$R$16,16,FALSE),VLOOKUP($B138,'Dermal Crosswalk'!$A$6:$R$16,12,FALSE))),"--") -> 606.8376068 | L138: =IFERROR(VLOOKUP($D138,$V$8:$Y$9,3,FALSE)/IF($D138="Inhalation",IF($J138="Central Tendency",SUMIFS('Inhalation Exposure'!$M$6:$M$19,'Inhalation Exposure'!$B$6:$B$19,$B138,'Inhalation Exposure'!$D$6:$D$19,$C138),SUMIFS('Inhalation Exposure'!$L$6:$L$19,'Inhalation Exposure'!$B$6:$B$19,$B138,'Inhalation Exposure'!$D$6:$D$19,$C138)),IF($J138="Central Tendency",VLOOKUP($B138,'Dermal Crosswalk'!$A$6:$R$16,17,FALSE),VLOOKUP($B138,'Dermal Crosswalk'!$A$6:$R$16,13,FALSE))),"--") -> 126.984127 | M138: =IFERROR(VLOOKUP(D138,$V$8:$Y$9,4,FALSE)*IF($D138="Inhalation",IF($J138="Central Tendency",SUMIFS('Inhalation Exposure'!$O$6:$O$19,'Inhalation Exposure'!$B$6:$B$19,$B138,'Inhalation Exposure'!$D$6:$D$19,$C138),SUMIFS('Inhalation Exposure'!$N$6:$N$19,'Inhalation Exposure'!$B$6:$B$19,$B138,'Inhalation Exposure'!$D$6:$D$19,$C138)),IF($J138="Central Tendency",VLOOKUP($B138,'Dermal Crosswalk'!$A$6:$R$16,18,FALSE),VLOOKUP($B138,'Dermal Crosswalk'!$A$6:$R$16,14,FALSE))),"--") -> 4.006153846e-05 | N138: =K138*R138 -> 6068.376068 | O138: =L138*S138 -> 1269.84127 | P138: =M138/T138 -> 4.006153846e-06 | R138: 10 | S138: 10 | T138: 10
B139: 9 | C139: Worker | D139: Inhalation | N139: =CONCATENATE("(APF ",R138,")") -> (APF 10) | O139: =CONCATENATE("(APF ",S138,")") -> (APF 10) | P139: =CONCATENATE("(APF ",T138,")") -> (APF 10) | R139: APF | S139: APF | T139: APF
B140: 9 | C140: Worker | D140: Inhalation | J140: High-End | K140: =IFERROR(VLOOKUP($D140,$V$8:$Y$9,2,FALSE)/IF($D140="Inhalation",IF($J140="Central Tendency",SUMIFS('Inhalation Exposure'!$I$6:$I$19,'Inhalation Exposure'!$B$6:$B$19,$B140,'Inhalation Exposure'!$D$6:$D$19,$C140),SUMIFS('Inhalation Exposure'!$H$6:$H$19,'Inhalation Exposure'!$B$6:$B$19,$B140,'Inhalation Exposure'!$D$6:$D$19,$C140)),IF($J140="Central Tendency",VLOOKUP($B140,'Dermal Crosswalk'!$A$6:$R$16,16,FALSE),VLOOKUP($B140,'Dermal Crosswalk'!$A$6:$R$16,12,FALSE))),"--") -> 177.278402 | L140: =IFERROR(VLOOKUP($D140,$V$8:$Y$9,3,FALSE)/IF($D140="Inhalation",IF($J140="Central Tendency",SUMIFS('Inhalation Exposure'!$M$6:$M$19,'Inhalation Exposure'!$B$6:$B$19,$B140,'Inhalation Exposure'!$D$6:$D$19,$C140),SUMIFS('Inhalation Exposure'!$L$6:$L$19,'Inhalation Exposure'!$B$6:$B$19,$B140,'Inhalation Exposure'!$D$6:$D$19,$C140)),IF($J140="Central Tendency",VLOOKUP($B140,'Dermal Crosswalk'!$A$6:$R$16,17,FALSE),VLOOKUP($B140,'Dermal Crosswalk'!$A$6:$R$16,13,FALSE))),"--") -> 37.09648653 | M140: =IFERROR(VLOOKUP(D140,$V$8:$Y$9,4,FALSE)*IF($D140="Inhalation",IF($J140="Central Tendency",SUMIFS('Inhalation Exposure'!$O$6:$O$19,'Inhalation Exposure'!$B$6:$B$19,$B140,'Inhalation Exposure'!$D$6:$D$19,$C140),SUMIFS('Inhalation Exposure'!$N$6:$N$19,'Inhalation Exposure'!$B$6:$B$19,$B140,'Inhalation Exposure'!$D$6:$D$19,$C140)),IF($J140="Central Tendency",VLOOKUP($B140,'Dermal Crosswalk'!$A$6:$R$16,18,FALSE),VLOOKUP($B140,'Dermal Crosswalk'!$A$6:$R$16,14,FALSE))),"--") -> 0.0001769467456 | N140: =K140*R140 -> 1772.78402 | O140: =L140*S140 -> 370.9648653 | P140: =M140/T140 -> 1.769467456e-05 | R140: 10 | S140: 10 | T140: 10
B141: 9 | C141: Worker | D141: Inhalation | N141: =CONCATENATE("(APF ",R140,")") -> (APF 10) | O141: =CONCATENATE("(APF ",S140,")") -> (APF 10) | P141: =CONCATENATE("(APF ",T140,")") -> (APF 10) | R141: APF | S141: APF | T141: APF
B142: 9 | C142: Worker | D142: Dermal | H142: Worker | I142: Dermal | J142: Central Tendency | K142: =IFERROR(VLOOKUP($D142,$V$8:$Y$9,2,FALSE)/IF($D142="Inhalation",IF($J142="Central Tendency",SUMIFS('Inhalation Exposure'!$I$6:$I$19,'Inhalation Exposure'!$B$6:$B$19,$B142,'Inhalation Exposure'!$D$6:$D$19,$C142),SUMIFS('Inhalation Exposure'!$H$6:$H$19,'Inhalation Exposure'!$B$6:$B$19,$B142,'Inhalation Exposure'!$D$6:$D$19,$C142)),IF($J142="Central Tendency",VLOOKUP($B142,'Dermal Crosswalk'!$A$6:$R$16,16,FALSE),VLOOKUP($B142,'Dermal Crosswalk'!$A$6:$R$16,12,FALSE))),"--") -> 4.829877653 | L142: =IFERROR(VLOOKUP($D142,$V$8:$Y$9,3,FALSE)/IF($D142="Inhalation",IF($J142="Central Tendency",SUMIFS('Inhalation Exposure'!$M$6:$M$19,'Inhalation Exposure'!$B$6:$B$19,$B142,'Inhalation Exposure'!$D$6:$D$19,$C142),SUMIFS('Inhalation Exposure'!$L$6:$L$19,'Inhalation Exposure'!$B$6:$B$19,$B142,'Inhalation Exposure'!$D$6:$D$19,$C142)),IF($J142="Central Tendency",VLOOKUP($B142,'Dermal Crosswalk'!$A$6:$R$16,17,FALSE),VLOOKUP($B142,'Dermal Crosswalk'!$A$6:$R$16,13,FALSE))),"--") -> 1.013533648 | M142: =IFERROR(VLOOKUP(D142,$V$8:$Y$9,4,FALSE)*IF($D142="Inhalation",IF($J142="Central Tendency",SUMIFS('Inhalation Exposure'!$O$6:$O$19,'Inhalation Exposure'!$B$6:$B$19,$B142,'Inhalation Exposure'!$D$6:$D$19,$C142),SUMIFS('Inhalation Exposure'!$N$6:$N$19,'Inhalation Exposure'!$B$6:$B$19,$B142,'Inhalation Exposure'!$D$6:$D$19,$C142)),IF($J142="Central Tendency",VLOOKUP($B142,'Dermal Crosswalk'!$A$6:$R$16,18,FALSE),VLOOKUP($B142,'Dermal Crosswalk'!$A$6:$R$16,14,FALSE))),"--") -> 0.07717097974 | N142: =K142*R142 -> 96.59755306 | O142: =L142*S142 -> 20.27067296 | P142: =M142/T142 -> 0.003858548987 | R142: 20 | S142: 20 | T142: 20
B143: 9 | C143: Worker | D143: Dermal | N143: =CONCATENATE("(PF ",R142,")") -> (PF 20) | O143: =CONCATENATE("(PF ",S142,")") -> (PF 20) | P143: =CONCATENATE("(PF ",T142,")") -> (PF 20) | R143: PF | S143: PF | T143: PF
B144: 9 | C144: Worker | D144: Dermal | J144: High-End | K144: =IFERROR(VLOOKUP($D144,$V$8:$Y$9,2,FALSE)/IF($D144="Inhalation",IF($J144="Central Tendency",SUMIFS('Inhalation Exposure'!$I$6:$I$19,'Inhalation Exposure'!$B$6:$B$19,$B144,'Inhalation Exposure'!$D$6:$D$19,$C144),SUMIFS('Inhalation Exposure'!$H$6:$H$19,'Inhalation Exposure'!$B$6:$B$19,$B144,'Inhalation Exposure'!$D$6:$D$19,$C144)),IF($J144="Central Tendency",VLOOKUP($B144,'Dermal Crosswalk'!$A$6:$R$16,16,FALSE),VLOOKUP($B144,'Dermal Crosswalk'!$A$6:$R$16,12,FALSE))),"--") -> 1.609959218 | L144: =IFERROR(VLOOKUP($D144,$V$8:$Y$9,3,FALSE)/IF($D144="Inhalation",IF($J144="Central Tendency",SUMIFS('Inhalation Exposure'!$M$6:$M$19,'Inhalation Exposure'!$B$6:$B$19,$B144,'Inhalation Exposure'!$D$6:$D$19,$C144),SUMIFS('Inhalation Exposure'!$L$6:$L$19,'Inhalation Exposure'!$B$6:$B$19,$B144,'Inhalation Exposure'!$D$6:$D$19,$C144)),IF($J144="Central Tendency",VLOOKUP($B144,'Dermal Crosswalk'!$A$6:$R$16,17,FALSE),VLOOKUP($B144,'Dermal Crosswalk'!$A$6:$R$16,13,FALSE))),"--") -> 0.3378445493 | M144: =IFERROR(VLOOKUP(D144,$V$8:$Y$9,4,FALSE)*IF($D144="Inhalation",IF($J144="Central Tendency",SUMIFS('Inhalation Exposure'!$O$6:$O$19,'Inhalation Exposure'!$B$6:$B$19,$B144,'Inhalation Exposure'!$D$6:$D$19,$C144),SUMIFS('Inhalation Exposure'!$N$6:$N$19,'Inhalation Exposure'!$B$6:$B$19,$B144,'Inhalation Exposure'!$D$6:$D$19,$C144)),IF($J144="Central Tendency",VLOOKUP($B144,'Dermal Crosswalk'!$A$6:$R$16,18,FALSE),VLOOKUP($B144,'Dermal Crosswalk'!$A$6:$R$16,14,FALSE))),"--") -> 0.2987263732 | N144: =K144*R144 -> 32.19918435 | O144: =L144*S144 -> 6.756890986 | P144: =M144/T144 -> 0.01493631866 | R144: 20 | S144: 20 | T144: 20
B145: 9 | C145: Worker | D145: Dermal | N145: =CONCATENATE("(PF ",R144,")") -> (PF 20) | O145: =CONCATENATE("(PF ",S144,")") -> (PF 20) | P145: =CONCATENATE("(PF ",T144,")") -> (PF 20) | R145: PF | S145: PF | T145: PF
B146: 9 | C146: ONU | D146: Inhalation | H146: ONU | I146: Inhalation 8-hr TWA | J146: Central Tendency | K146: =IFERROR(VLOOKUP($D146,$V$8:$Y$9,2,FALSE)/IF($D146="Inhalation",IF($J146="Central Tendency",SUMIFS('Inhalation Exposure'!$I$6:$I$19,'Inhalation Exposure'!$B$6:$B$19,$B146,'Inhalation Exposure'!$D$6:$D$19,$C146),SUMIFS('Inhalation Exposure'!$H$6:$H$19,'Inhalation Exposure'!$B$6:$B$19,$B146,'Inhalation Exposure'!$D$6:$D$19,$C146)),IF($J146="Central Tendency",VLOOKUP($B146,'Dermal Crosswalk'!$A$6:$R$16,16,FALSE),VLOOKUP($B146,'Dermal Crosswalk'!$A$6:$R$16,12,FALSE))),"--") -> -- | L146: =IFERROR(VLOOKUP($D146,$V$8:$Y$9,3,FALSE)/IF($D146="Inhalation",IF($J146="Central Tendency",SUMIFS('Inhalation Exposure'!$M$6:$M$19,'Inhalation Exposure'!$B$6:$B$19,$B146,'Inhalation Exposure'!$D$6:$D$19,$C146),SUMIFS('Inhalation Exposure'!$L$6:$L$19,'Inhalation Exposure'!$B$6:$B$19,$B146,'Inhalation Exposure'!$D$6:$D$19,$C146)),IF($J146="Central Tendency",VLOOKUP($B146,'Dermal Crosswalk'!$A$6:$R$16,17,FALSE),VLOOKUP($B146,'Dermal Crosswalk'!$A$6:$R$16,13,FALSE))),"--") -> -- | M146: -- | N146: N/A | O146: N/A | P146: N/A | R146: N/A | S146: N/A | T146: N/A
B147: 9 | C147: ONU | D147: Inhalation | J147: High-End | K147: =IFERROR(VLOOKUP($D147,$V$8:$Y$9,2,FALSE)/IF($D147="Inhalation",IF($J147="Central Tendency",SUMIFS('Inhalation Exposure'!$I$6:$I$19,'Inhalation Exposure'!$B$6:$B$19,$B147,'Inhalation Exposure'!$D$6:$D$19,$C147),SUMIFS('Inhalation Exposure'!$H$6:$H$19,'Inhalation Exposure'!$B$6:$B$19,$B147,'Inhalation Exposure'!$D$6:$D$19,$C147)),IF($J147="Central Tendency",VLOOKUP($B147,'Dermal Crosswalk'!$A$6:$R$16,16,FALSE),VLOOKUP($B147,'Dermal Crosswalk'!$A$6:$R$16,12,FALSE))),"--") -> -- | L147: =IFERROR(VLOOKUP($D147,$V$8:$Y$9,3,FALSE)/IF($D147="Inhalation",IF($J147="Central Tendency",SUMIFS('Inhalation Exposure'!$M$6:$M$19,'Inhalation Exposure'!$B$6:$B$19,$B147,'Inhalation Exposure'!$D$6:$D$19,$C147),SUMIFS('Inhalation Exposure'!$L$6:$L$19,'Inhalation Exposure'!$B$6:$B$19,$B147,'Inhalation Exposure'!$D$6:$D$19,$C147)),IF($J147="Central Tendency",VLOOKUP($B147,'Dermal Crosswalk'!$A$6:$R$16,17,FALSE),VLOOKUP($B147,'Dermal Crosswalk'!$A$6:$R$16,13,FALSE))),"--") -> -- | M147: -- | N147: N/A | O147: N/A | P147: N/A | R147: N/A | S147: N/A | T147: N/A
B148: 10 | C148: Worker | D148: Inhalation | E148: Disposal/ Disposal | F148: Wastewater | G148: Section 3.4.1.13 and 5.2 – Disposal | H148: Worker | I148: Inhalation 8-hr TWA | J148: Central Tendency | K148: =IFERROR(VLOOKUP($D148,$V$8:$Y$9,2,FALSE)/IF($D148="Inhalation",IF($J148="Central Tendency",SUMIFS('Inhalation Exposure'!$I$6:$I$19,'Inhalation Exposure'!$B$6:$B$19,$B148,'Inhalation Exposure'!$D$6:$D$19,$C148),SUMIFS('Inhalation Exposure'!$H$6:$H$19,'Inhalation Exposure'!$B$6:$B$19,$B148,'Inhalation Exposure'!$D$6:$D$19,$C148)),IF($J148="Central Tendency",VLOOKUP($B148,'Dermal Crosswalk'!$A$6:$R$16,16,FALSE),VLOOKUP($B148,'Dermal Crosswalk'!$A$6:$R$16,12,FALSE))),"--") -> 151.7246663 | L148: =IFERROR(VLOOKUP($D148,$V$8:$Y$9,3,FALSE)/IF($D148="Inhalation",IF($J148="Central Tendency",SUMIFS('Inhalation Exposure'!$M$6:$M$19,'Inhalation Exposure'!$B$6:$B$19,$B148,'Inhalation Exposure'!$D$6:$D$19,$C148),SUMIFS('Inhalation Exposure'!$L$6:$L$19,'Inhalation Exposure'!$B$6:$B$19,$B148,'Inhalation Exposure'!$D$6:$D$19,$C148)),IF($J148="Central Tendency",VLOOKUP($B148,'Dermal Crosswalk'!$A$6:$R$16,17,FALSE),VLOOKUP($B148,'Dermal Crosswalk'!$A$6:$R$16,13,FALSE))),"--") -> 7.111826614 | M148: =IFERROR(VLOOKUP(D148,$V$8:$Y$9,4,FALSE)*IF($D148="Inhalation",IF($J148="Central Tendency",SUMIFS('Inhalation Exposure'!$O$6:$O$19,'Inhalation Exposure'!$B$6:$B$19,$B148,'Inhalation Exposure'!$D$6:$D$19,$C148),SUMIFS('Inhalation Exposure'!$N$6:$N$19,'Inhalation Exposure'!$B$6:$B$19,$B148,'Inhalation Exposure'!$D$6:$D$19,$C148)),IF($J148="Central Tendency",VLOOKUP($B148,'Dermal Crosswalk'!$A$6:$R$16,18,FALSE),VLOOKUP($B148,'Dermal Crosswalk'!$A$6:$R$16,14,FALSE))),"--") -> 0.0006798348617 | N148: =K148*R148 -> 1517.246663 | O148: =L148*S148 -> 71.11826614 | P148: =M148/T148 -> 6.798348617e-05 | R148: 10 | S148: 10 | T148: 10
B149: 10 | C149: Worker | D149: Inhalation | N149: =CONCATENATE("(APF ",R148,")") -> (APF 10) | O149: =CONCATENATE("(APF ",S148,")") -> (APF 10) | P149: =CONCATENATE("(APF ",T148,")") -> (APF 10) | R149: APF | S149: APF | T149: APF
B150: 10 | C150: Worker | D150: Inhalation | F150: Underground injection | J150: High-End | K150: =IFERROR(VLOOKUP($D150,$V$8:$Y$9,2,FALSE)/IF($D150="Inhalation",IF($J150="Central Tendency",SUMIFS('Inhalation Exposure'!$I$6:$I$19,'Inhalation Exposure'!$B$6:$B$19,$B150,'Inhalation Exposure'!$D$6:$D$19,$C150),SUMIFS('Inhalation Exposure'!$H$6:$H$19,'Inhalation Exposure'!$B$6:$B$19,$B150,'Inhalation Exposure'!$D$6:$D$19,$C150)),IF($J150="Central Tendency",VLOOKUP($B150,'Dermal Crosswalk'!$A$6:$R$16,16,FALSE),VLOOKUP($B150,'Dermal Crosswalk'!$A$6:$R$16,12,FALSE))),"--") -> 42.75234846 | L150: =IFERROR(VLOOKUP($D150,$V$8:$Y$9,3,FALSE)/IF($D150="Inhalation",IF($J150="Central Tendency",SUMIFS('Inhalation Exposure'!$M$6:$M$19,'Inhalation Exposure'!$B$6:$B$19,$B150,'Inhalation Exposure'!$D$6:$D$19,$C150),SUMIFS('Inhalation Exposure'!$L$6:$L$19,'Inhalation Exposure'!$B$6:$B$19,$B150,'Inhalation Exposure'!$D$6:$D$19,$C150)),IF($J150="Central Tendency",VLOOKUP($B150,'Dermal Crosswalk'!$A$6:$R$16,17,FALSE),VLOOKUP($B150,'Dermal Crosswalk'!$A$6:$R$16,13,FALSE))),"--") -> 2.003941066 | M150: =IFERROR(VLOOKUP(D150,$V$8:$Y$9,4,FALSE)*IF($D150="Inhalation",IF($J150="Central Tendency",SUMIFS('Inhalation Exposure'!$O$6:$O$19,'Inhalation Exposure'!$B$6:$B$19,$B150,'Inhalation Exposure'!$D$6:$D$19,$C150),SUMIFS('Inhalation Exposure'!$N$6:$N$19,'Inhalation Exposure'!$B$6:$B$19,$B150,'Inhalation Exposure'!$D$6:$D$19,$C150)),IF($J150="Central Tendency",VLOOKUP($B150,'Dermal Crosswalk'!$A$6:$R$16,18,FALSE),VLOOKUP($B150,'Dermal Crosswalk'!$A$6:$R$16,14,FALSE))),"--") -> 0.00254012669 | N150: =K150*R150 -> 427.5234846 | O150: =L150*S150 -> 100.1970533 | P150: =M150/T150 -> 5.080253379e-05 | R150: 10 | S150: 50 | T150: 50
B151: 10 | C151: Worker | D151: Inhalation | N151: =CONCATENATE("(APF ",R150,")") -> (APF 10) | O151: =CONCATENATE("(APF ",S150,")") -> (APF 50) | P151: =CONCATENATE("(APF ",T150,")") -> (APF 50) | R151: APF | S151: APF | T151: APF
B152: 10 | C152: Worker | D152: Dermal | F152: Landfill | H152: Worker | I152: Dermal | J152: Central Tendency | K152: =IFERROR(VLOOKUP($D152,$V$8:$Y$9,2,FALSE)/IF($D152="Inhalation",IF($J152="Central Tendency",SUMIFS('Inhalation Exposure'!$I$6:$I$19,'Inhalation Exposure'!$B$6:$B$19,$B152,'Inhalation Exposure'!$D$6:$D$19,$C152),SUMIFS('Inhalation Exposure'!$H$6:$H$19,'Inhalation Exposure'!$B$6:$B$19,$B152,'Inhalation Exposure'!$D$6:$D$19,$C152)),IF($J152="Central Tendency",VLOOKUP($B152,'Dermal Crosswalk'!$A$6:$R$16,16,FALSE),VLOOKUP($B152,'Dermal Crosswalk'!$A$6:$R$16,12,FALSE))),"--") -> 4.829877653 | L152: =IFERROR(VLOOKUP($D152,$V$8:$Y$9,3,FALSE)/IF($D152="Inhalation",IF($J152="Central Tendency",SUMIFS('Inhalation Exposure'!$M$6:$M$19,'Inhalation Exposure'!$B$6:$B$19,$B152,'Inhalation Exposure'!$D$6:$D$19,$C152),SUMIFS('Inhalation Exposure'!$L$6:$L$19,'Inhalation Exposure'!$B$6:$B$19,$B152,'Inhalation Exposure'!$D$6:$D$19,$C152)),IF($J152="Central Tendency",VLOOKUP($B152,'Dermal Crosswalk'!$A$6:$R$16,17,FALSE),VLOOKUP($B152,'Dermal Crosswalk'!$A$6:$R$16,13,FALSE))),"--") -> 0.2270315371 | M152: =IFERROR(VLOOKUP(D152,$V$8:$Y$9,4,FALSE)*IF($D152="Inhalation",IF($J152="Central Tendency",SUMIFS('Inhalation Exposure'!$O$6:$O$19,'Inhalation Exposure'!$B$6:$B$19,$B152,'Inhalation Exposure'!$D$6:$D$19,$C152),SUMIFS('Inhalation Exposure'!$N$6:$N$19,'Inhalation Exposure'!$B$6:$B$19,$B152,'Inhalation Exposure'!$D$6:$D$19,$C152)),IF($J152="Central Tendency",VLOOKUP($B152,'Dermal Crosswalk'!$A$6:$R$16,18,FALSE),VLOOKUP($B152,'Dermal Crosswalk'!$A$6:$R$16,14,FALSE))),"--") -> 0.3445133024 | N152: =K152*R152 -> 96.59755306 | O152: =L152*S152 -> 4.540630743 | P152: =M152/T152 -> 0.01722566512 | R152: 20 | S152: 20 | T152: 20
B153: 10 | C153: Worker | D153: Dermal | N153: =CONCATENATE("(PF ",R152,")") -> (PF 20) | O153: =CONCATENATE("(PF ",S152,")") -> (PF 20) | P153: =CONCATENATE("(PF ",T152,")") -> (PF 20) | R153: PF | S153: PF | T153: PF
B154: 10 | C154: Worker | D154: Dermal | J154: High-End | K154: =IFERROR(VLOOKUP($D154,$V$8:$Y$9,2,FALSE)/IF($D154="Inhalation",IF($J154="Central Tendency",SUMIFS('Inhalation Exposure'!$I$6:$I$19,'Inhalation Exposure'!$B$6:$B$19,$B154,'Inhalation Exposure'!$D$6:$D$19,$C154),SUMIFS('Inhalation Exposure'!$H$6:$H$19,'Inhalation Exposure'!$B$6:$B$19,$B154,'Inhalation Exposure'!$D$6:$D$19,$C154)),IF($J154="Central Tendency",VLOOKUP($B154,'Dermal Crosswalk'!$A$6:$R$16,16,FALSE),VLOOKUP($B154,'Dermal Crosswalk'!$A$6:$R$16,12,FALSE))),"--") -> 1.609959218 | L154: =IFERROR(VLOOKUP($D154,$V$8:$Y$9,3,FALSE)/IF($D154="Inhalation",IF($J154="Central Tendency",SUMIFS('Inhalation Exposure'!$M$6:$M$19,'Inhalation Exposure'!$B$6:$B$19,$B154,'Inhalation Exposure'!$D$6:$D$19,$C154),SUMIFS('Inhalation Exposure'!$L$6:$L$19,'Inhalation Exposure'!$B$6:$B$19,$B154,'Inhalation Exposure'!$D$6:$D$19,$C154)),IF($J154="Central Tendency",VLOOKUP($B154,'Dermal Crosswalk'!$A$6:$R$16,17,FALSE),VLOOKUP($B154,'Dermal Crosswalk'!$A$6:$R$16,13,FALSE))),"--") -> 0.07567717905 | M154: =IFERROR(VLOOKUP(D154,$V$8:$Y$9,4,FALSE)*IF($D154="Inhalation",IF($J154="Central Tendency",SUMIFS('Inhalation Exposure'!$O$6:$O$19,'Inhalation Exposure'!$B$6:$B$19,$B154,'Inhalation Exposure'!$D$6:$D$19,$C154),SUMIFS('Inhalation Exposure'!$N$6:$N$19,'Inhalation Exposure'!$B$6:$B$19,$B154,'Inhalation Exposure'!$D$6:$D$19,$C154)),IF($J154="Central Tendency",VLOOKUP($B154,'Dermal Crosswalk'!$A$6:$R$16,18,FALSE),VLOOKUP($B154,'Dermal Crosswalk'!$A$6:$R$16,14,FALSE))),"--") -> 1.33359988 | N154: =K154*R154 -> 32.19918435 | O154: =L154*S154 -> 1.513543581 | P154: =M154/T154 -> 0.06667999402 | R154: 20 | S154: 20 | T154: 20
B155: 10 | C155: Worker | D155: Dermal | N155: =CONCATENATE("(PF ",R154,")") -> (PF 20) | O155: =CONCATENATE("(PF ",S154,")") -> (PF 20) | P155: =CONCATENATE("(PF ",T154,")") -> (PF 20) | R155: PF | S155: PF | T155: PF
B156: 10 | C156: ONU | D156: Inhalation | F156: Recycling | H156: ONU | I156: Inhalation 8-hr TWA | J156: Central Tendency | K156: =IFERROR(VLOOKUP($D156,$V$8:$Y$9,2,FALSE)/IF($D156="Inhalation",IF($J156="Central Tendency",SUMIFS('Inhalation Exposure'!$I$6:$I$19,'Inhalation Exposure'!$B$6:$B$19,$B156,'Inhalation Exposure'!$D$6:$D$19,$C156),SUMIFS('Inhalation Exposure'!$H$6:$H$19,'Inhalation Exposure'!$B$6:$B$19,$B156,'Inhalation Exposure'!$D$6:$D$19,$C156)),IF($J156="Central Tendency",VLOOKUP($B156,'Dermal Crosswalk'!$A$6:$R$16,16,FALSE),VLOOKUP($B156,'Dermal Crosswalk'!$A$6:$R$16,12,FALSE))),"--") -> -- | L156: =IFERROR(VLOOKUP($D156,$V$8:$Y$9,3,FALSE)/IF($D156="Inhalation",IF($J156="Central Tendency",SUMIFS('Inhalation Exposure'!$M$6:$M$19,'Inhalation Exposure'!$B$6:$B$19,$B156,'Inhalation Exposure'!$D$6:$D$19,$C156),SUMIFS('Inhalation Exposure'!$L$6:$L$19,'Inhalation Exposure'!$B$6:$B$19,$B156,'Inhalation Exposure'!$D$6:$D$19,$C156)),IF($J156="Central Tendency",VLOOKUP($B156,'Dermal Crosswalk'!$A$6:$R$16,17,FALSE),VLOOKUP($B156,'Dermal Crosswalk'!$A$6:$R$16,13,FALSE))),"--") -> -- | M156: -- | N156: N/A | O156: N/A | P156: N/A | R156: N/A | S156: N/A | T156: N/A
B157: 10 | C157: ONU | D157: Inhalation | F157: Incineration | J157: High-End | K157: =IFERROR(VLOOKUP($D157,$V$8:$Y$9,2,FALSE)/IF($D157="Inhalation",IF($J157="Central Tendency",SUMIFS('Inhalation Exposure'!$I$6:$I$19,'Inhalation Exposure'!$B$6:$B$19,$B157,'Inhalation Exposure'!$D$6:$D$19,$C157),SUMIFS('Inhalation Exposure'!$H$6:$H$19,'Inhalation Exposure'!$B$6:$B$19,$B157,'Inhalation Exposure'!$D$6:$D$19,$C157)),IF($J157="Central Tendency",VLOOKUP($B157,'Dermal Crosswalk'!$A$6:$R$16,16,FALSE),VLOOKUP($B157,'Dermal Crosswalk'!$A$6:$R$16,12,FALSE))),"--") -> -- | L157: =IFERROR(VLOOKUP($D157,$V$8:$Y$9,3,FALSE)/IF($D157="Inhalation",IF($J157="Central Tendency",SUMIFS('Inhalation Exposure'!$M$6:$M$19,'Inhalation Exposure'!$B$6:$B$19,$B157,'Inhalation Exposure'!$D$6:$D$19,$C157),SUMIFS('Inhalation Exposure'!$L$6:$L$19,'Inhalation Exposure'!$B$6:$B$19,$B157,'Inhalation Exposure'!$D$6:$D$19,$C157)),IF($J157="Central Tendency",VLOOKUP($B157,'Dermal Crosswalk'!$A$6:$R$16,17,FALSE),VLOOKUP($B157,'Dermal Crosswalk'!$A$6:$R$16,13,FALSE))),"--") -> -- | M157: -- | N157: N/A | O157: N/A | P157: N/A | R157: N/A | S157: N/A | T157: N/A
E159: N/A = not assessed because ONUs are not assumed to be wearing PPE
E160: NR = not reported
E161: - - = exposure data for ONUs were not available
E162: – = not included because calculated risk was below benchmark MOE for high-end exposures without PPE
E163: *EPA cannot separately determine a central tendency and high-end estimate and/or EPA cannot determine statistical representativeness of the values given the small sample size.
E164: ** The risk assessment did not provide details about how these values were calculated, therefore, it is unclear what percentile is represented when an exposure is described as “reasonable worst case.”
E165: ***For this scenario, the high-end was the 90th percentile.
E166: ****For this scenario, the high-end was the maximum value.

Sheet RR
H3: Condition of Use | I3: Inhalation Exposure | R3: Dermal
H4: Select the Condition of Use (select) | I4: Exposure Type (select) | R4: Worker Type (select)
H5: Manufacturing | I5: Worker | R5: Average Adult Worker
H7: 8-hr TWA Exposures | R7: Dermal
H8: Exposure Outputs | R8: Exposure Outputs
H9: Category | I9: Exposure Level | J9: Full-Shift (Eight-Hour) TWA Exposure | K9: Chronic, Non-Cancer Exposures | L9: Chronic, Cancer Exposures | R9: Category | S9: Exposure Level | T9: Potential Dose Rate | U9: Acute Retained Dose | V9: Chronic Retained Dose, Non-Cancer | W9: Chronic Retained Dose, Cancer
J10: C1,4-Dioxane, 8-hr TWA (ppm) | K10: ADC1,4-Dioxane, 8-hr TWA (ppm) | L10: LADC1,4-Dioxane, 8-hr TWA (ppm) | T10: APDRexp (mg/day) | U10: ADD1,4-Dioxane (mg/kg-day) | V10: CRD1,4-Dioxane (mg/kg-day) | W10: CRD1,4-Dioxane (mg/kg-day)
H11: Worker | I11: High End | J11: =SUMIFS('Inhalation Exposure'!$H:$H,'Inhalation Exposure'!$C:$C,$H$5,'Inhalation Exposure'!$D:$D,$H11) -> 7.7345 | K11: =SUMIFS('Inhalation Exposure'!$L:$L,'Inhalation Exposure'!$C:$C,$H$5,'Inhalation Exposure'!$D:$D,$H11) -> 7.437019231 | L11: =SUMIFS('Inhalation Exposure'!$N:$N,'Inhalation Exposure'!$C:$C,$H$5,'Inhalation Exposure'!$D:$D,$H11) -> 3.813856016 | R11: Worker, No Gloves | S11: High End | T11: ='Dermal Exposure'!N10 -> 1759.050769 | U11: ='Dermal Exposure'!O10 -> 21.98813461 | V11: ='Dermal Exposure'!P10 -> 21.14243713 | W11: ='Dermal Exposure'!Q10 -> 10.84227545
H12: ONU | J12: =SUMIFS('Inhalation Exposure'!$H:$H,'Inhalation Exposure'!$C:$C,$H$5,'Inhalation Exposure'!$D:$D,$H12) -> 0 | K12: =SUMIFS('Inhalation Exposure'!$L:$L,'Inhalation Exposure'!$C:$C,$H$5,'Inhalation Exposure'!$D:$D,$H12) -> 0 | L12: =SUMIFS('Inhalation Exposure'!$N:$N,'Inhalation Exposure'!$C:$C,$H$5,'Inhalation Exposure'!$D:$D,$H12) -> 0 | S12: Central Tendency | T12: ='Dermal Exposure'!N11 -> 586.3502563 | U12: ='Dermal Exposure'!O11 -> 7.329378204 | V12: ='Dermal Exposure'!P11 -> 7.047479042 | W12: ='Dermal Exposure'!Q11 -> 2.800921158
H13: Worker | I13: Central Tendency | J13: =SUMIFS('Inhalation Exposure'!$I:$I,'Inhalation Exposure'!$C:$C,$H$5,'Inhalation Exposure'!$D:$D,$H13) -> 0.415 | K13: =SUMIFS('Inhalation Exposure'!$M:$M,'Inhalation Exposure'!$C:$C,$H$5,'Inhalation Exposure'!$D:$D,$H13) -> 0.3990384615 | L13: =SUMIFS('Inhalation Exposure'!$O:$O,'Inhalation Exposure'!$C:$C,$H$5,'Inhalation Exposure'!$D:$D,$H13) -> 0.1585922091 | R13: =_xlfn.CONCAT("Worker with Gloves; PF of ",'List Values'!H4) -> Worker with Gloves; PF of 5 | S13: High End | T13: =T11/'List Values'!$H$4 -> 351.8101538 | U13: =U11/'List Values'!$H$4 -> 4.397626922 | V13: =V11/'List Values'!$H$4 -> 4.228487425 | W13: =W11/'List Values'!$H$4 -> 2.16845509
H14: ONU | J14: =SUMIFS('Inhalation Exposure'!$I:$I,'Inhalation Exposure'!$C:$C,$H$5,'Inhalation Exposure'!$D:$D,$H14) -> 0 | K14: =SUMIFS('Inhalation Exposure'!$M:$M,'Inhalation Exposure'!$C:$C,$H$5,'Inhalation Exposure'!$D:$D,$H14) -> 0 | L14: =SUMIFS('Inhalation Exposure'!$O:$O,'Inhalation Exposure'!$C:$C,$H$5,'Inhalation Exposure'!$D:$D,$H14) -> 0 | S14: Central Tendency | T14: =T12/'List Values'!$H$4 -> 117.2700513 | U14: =U12/'List Values'!$H$4 -> 1.465875641 | V14: =V12/'List Values'!$H$4 -> 1.409495808 | W14: =W12/'List Values'!$H$4 -> 0.5601842316
R15: =_xlfn.CONCAT("Worker with Gloves; PF of ",'List Values'!H5) -> Worker with Gloves; PF of 10 | S15: High End | T15: =T11/'List Values'!$H$5 -> 175.9050769 | U15: =U11/'List Values'!$H$5 -> 2.198813461 | V15: =V11/'List Values'!$H$5 -> 2.114243713 | W15: =W11/'List Values'!$H$5 -> 1.084227545
S16: Central Tendency | T16: =T12/'List Values'!$H$5 -> 58.63502563 | U16: =U12/'List Values'!$H$5 -> 0.7329378204 | V16: =V12/'List Values'!$H$5 -> 0.7047479042 | W16: =W12/'List Values'!$H$5 -> 0.2800921158
R17: =_xlfn.CONCAT("Worker with Gloves; PF of ",'List Values'!H6) -> Worker with Gloves; PF of 20 | S17: High End | T17: =T11/'List Values'!$H$6 -> 87.95253845 | U17: =U11/'List Values'!$H$6 -> 1.099406731 | V17: =V11/'List Values'!$H$6 -> 1.057121856 | W17: =W11/'List Values'!$H$6 -> 0.5421137725
S18: Central Tendency | T18: =T12/'List Values'!$H$6 -> 29.31751282 | U18: =U12/'List Values'!$H$6 -> 0.3664689102 | V18: =V12/'List Values'!$H$6 -> 0.3523739521 | W18: =W12/'List Values'!$H$6 -> 0.1400460579
H20: Risk Estimation for Inhalation Exposures | R20: Risk Estimation for Dermal Exposures
C21: Risk Type | D21: Toxicity Endpoint | F21: Study | H21: HEC (mg/m3) | I21: Exposure Level | J21: Benchmark MOE (= Total UF) | K21: =_xlfn.CONCAT("Exposure Estimates: ",$I$5," MOE") -> Exposure Estimates: Worker MOE | R21: HED (mg/kg) | S21: Exposure Level | T21: Benchmark MOE (= Total UF) | U21: =_xlfn.CONCAT("Exposure Estimates: ",$I$5," MOE") -> Exposure Estimates: Worker MOE
K22: No Respirator | L22: APF = 10 | M22: APF = 25 | N22: APF = 50 | O22: APF = 1,000 | P22: APF = 10,000 | U22: No Gloves | V22: PF = 5 | W22: PF = 10 | X22: PF = 20
B23: Tox1 | C23: Acute, Non-Cancer | D23: Liver | E23: Short-term Liver Effects | F23: Mattie et al., 2012 | H23: =VLOOKUP($B23,'Health Data'!$F$7:$K$12,2,FALSE) -> 284 | I23: High End | J23: 300 | K23: =IFERROR($H23/IF($I$5="Worker",$J$11,$J$12), "") -> 36.71859849 | L23: =IFERROR($K23*'List Values'!$E$19, "") -> 367.1859849 | M23: =IFERROR($K23*'List Values'!$E$20, "") -> 917.9649622 | N23: =IFERROR($K23*'List Values'!$E$21, "") -> 1835.929924 | O23: =IFERROR($K23*'List Values'!$E$22, "") -> 36718.59849 | P23: =IFERROR($K23*'List Values'!$E$23, "") -> 367185.9849 | R23: =VLOOKUP($B23,'Health Data'!$F$7:$K$13,3,FALSE) -> 35.4 | S23: High End | T23: 300 | U23: =IFERROR($R23/U$11, "") -> 1.609959218 | V23: =IFERROR($R23/U$13, "") -> 8.049796089 | W23: =IFERROR($R23/U$15, "") -> 16.09959218 | X23: =IFERROR($R23/U$17, "") -> 32.19918435
I24: Central Tendency | J24: 300 | K24: =IFERROR($H23/IF($I$5="Worker",$J$13,$J$14), "") -> 684.3373494 | L24: =IFERROR($K24*'List Values'!$E$19, "") -> 6843.373494 | M24: =IFERROR($K24*'List Values'!$E$20, "") -> 17108.43373 | N24: =IFERROR($K24*'List Values'!$E$21, "") -> 34216.86747 | O24: =IFERROR($K24*'List Values'!$E$22, "") -> 684337.3494 | P24: =IFERROR($K24*'List Values'!$E$23, "") -> 6843373.494 | S24: Central Tendency | T24: 300 | U24: =IFERROR($R23/U$12, "") -> 4.829877653 | V24: =IFERROR($R23/U$14, "") -> 24.14938827 | W24: =IFERROR($R23/U$16, "") -> 48.29877653 | X24: =IFERROR($R23/U$18, "") -> 96.59755306
B25: Tox3 | C25: Chronic, Non-Cancer | D25: Liver | E25: olfactory epithelium effects (i.e., metaplasia and atrophy) | F25: Kasai et al., 2009 | H25: =VLOOKUP($B25,'Health Data'!$F$7:$K$12,2,FALSE) -> 12.8 | I25: High End | J25: 30 | K25: =IFERROR($H25/IF($I$5="Worker",$K$11,$K$12), "") -> 1.721119659 | L25: =IFERROR($K25*'List Values'!$E$19, "") -> 17.21119659 | M25: =IFERROR($K25*'List Values'!$E$20, "") -> 43.02799147 | N25: =IFERROR($K25*'List Values'!$E$21, "") -> 86.05598293 | O25: =IFERROR($K25*'List Values'!$E$22, "") -> 1721.119659 | P25: =IFERROR($K25*'List Values'!$E$23, "") -> 17211.19659 | R25: =VLOOKUP($B25,'Health Data'!$F$7:$K$13,3,FALSE) -> 1.6 | S25: High End | T25: 30 | U25: =IFERROR($R25/V$11, "") -> 0.07567717905 | V25: =IFERROR($R25/V$13, "") -> 0.3783858952 | W25: =IFERROR($R25/V$15, "") -> 0.7567717905 | X25: =IFERROR($R25/V$17, "") -> 1.513543581
I26: Central Tendency | J26: 30 | K26: =IFERROR($H25/IF($I$5="Worker",$K$13,$K$14), "") -> 32.07710843 | L26: =IFERROR($K26*'List Values'!$E$19, "") -> 320.7710843 | M26: =IFERROR($K26*'List Values'!$E$20, "") -> 801.9277108 | N26: =IFERROR($K26*'List Values'!$E$21, "") -> 1603.855422 | O26: =IFERROR($K26*'List Values'!$E$22, "") -> 32077.10843 | P26: =IFERROR($K26*'List Values'!$E$23, "") -> 320771.0843 | S26: Central Tendency | T26: 30 | U26: =IFERROR($R25/V$12, "") -> 0.2270315371 | V26: =IFERROR($R25/V$14, "") -> 1.135157686 | W26: =IFERROR($R25/V$16, "") -> 2.270315371 | X26: =IFERROR($R25/V$18, "") -> 4.540630743
B27: Tox4 | E27: Liver effects | F27: Kociba et al., 1974 | H27: =VLOOKUP($B27,'Health Data'!$F$7:$K$12,2,FALSE) -> -- | I27: High End | J27: 30 | K27: =IFERROR($H27/IF($I$5="Worker",$K$11,$K$12), "") ->  | L27: =IFERROR($K27*'List Values'!$E$19, "") ->  | M27: =IFERROR($K27*'List Values'!$E$20, "") ->  | N27: =IFERROR($K27*'List Values'!$E$21, "") ->  | O27: =IFERROR($K27*'List Values'!$E$22, "") ->  | P27: =IFERROR($K27*'List Values'!$E$23, "") ->  | R27: =VLOOKUP($B27,'Health Data'!$F$7:$K$13,3,FALSE) -> 2.56 | S27: High End | T27: 30 | U27: =IFERROR($R27/V$11, "") -> 0.1210834865 | V27: =IFERROR($R27/V$13, "") -> 0.6054174324 | W27: =IFERROR($R27/V$15, "") -> 1.210834865 | X27: =IFERROR($R27/V$17, "") -> 2.42166973
I28: Central Tendency | J28: 30 | K28: =IFERROR($H27/IF($I$5="Worker",$K$13,$K$14), "") ->  | L28: =IFERROR($K28*'List Values'!$E$19, "") ->  | M28: =IFERROR($K28*'List Values'!$E$20, "") ->  | N28: =IFERROR($K28*'List Values'!$E$21, "") ->  | O28: =IFERROR($K28*'List Values'!$E$22, "") ->  | P28: =IFERROR($K28*'List Values'!$E$23, "") ->  | S28: Central Tendency | T28: 30 | U28: =IFERROR($R27/V$12, "") -> 0.3632504594 | V28: =IFERROR($R27/V$14, "") -> 1.816252297 | W28: =IFERROR($R27/V$16, "") -> 3.632504594 | X28: =IFERROR($R27/V$18, "") -> 7.265009189
B29: Tox5 | C29: Chronic, Cancer | D29: Cancer | E29: Result of combined cancer modeling (including liver) | F29: Kasai et al., 2009 | H29: =VLOOKUP($B29,'Health Data'!$F$7:$K$12,5,FALSE) -> 0.001 | I29: High End | J29: 10-4, 10-5, 10-6 | K29: =IFERROR($H29*IF($I$5="Worker",$L$11,$L$12), "") -> 0.003813856016 | L29: =IFERROR($K29/'List Values'!$E$19, "") -> 0.0003813856016 | M29: =IFERROR($K29/'List Values'!$E$20, "") -> 0.0001525542406 | N29: =IFERROR($K29/'List Values'!$E$21, "") -> 7.627712032e-05 | O29: =IFERROR($K29/'List Values'!$E$22, "") -> 3.813856016e-06 | P29: =IFERROR($K29/'List Values'!$E$23, "") -> 3.813856016e-07 | R29: =VLOOKUP($B29,'Health Data'!$F$7:$K$13,3,FALSE) -> -- | S29: High End | T29: 10-4, 10-5, 10-6 | U29: =IFERROR($R29*$W11, "") ->  | V29: =IFERROR($R29*$W13, "") ->  | W29: =IFERROR($R29*$W15, "") ->  | X29: =IFERROR($R29*$W17, "") -> 
I30: Central Tendency | J30: 10-4, 10-5, 10-6 | K30: =IFERROR($H29*IF($I$5="Worker",$L$13,$L$14), "") -> 0.0001585922091 | L30: =IFERROR($K30/'List Values'!$E$19, "") -> 1.585922091e-05 | M30: =IFERROR($K30/'List Values'!$E$20, "") -> 6.343688363e-06 | N30: =IFERROR($K30/'List Values'!$E$21, "") -> 3.171844181e-06 | O30: =IFERROR($K30/'List Values'!$E$22, "") -> 1.585922091e-07 | P30: =IFERROR($K30/'List Values'!$E$23, "") -> 1.585922091e-08 | S30: Central Tendency | U30: =IFERROR($R29*$W12, "") ->  | V30: =IFERROR($R29*$W14, "") ->  | W30: =IFERROR($R29*$W16, "") ->  | X30: =IFERROR($R29*$W18, "") -> 
B31: Tox6 | C31: Chronic, Cancer | D31: Cancer | E31: Result of combined cancer modeling - male rats (including liver) | F31: Kano et al., 2009 | H31: =VLOOKUP($B31,'Health Data'!$F$7:$G$12,2,FALSE) -> -- | I31: High End | J31: 10-4, 10-5, 10-6 | R31: =VLOOKUP($B31,'Health Data'!$F$7:$K$12,6,FALSE) -> 0.123 | S31: High End | T31: 10-4, 10-5, 10-6 | U31: =IFERROR($R31*$W11, "") -> 1.33359988 | V31: =IFERROR($R31*$W13, "") -> 0.2667199761 | W31: =IFERROR($R31*$W15, "") -> 0.133359988 | X31: =IFERROR($R31*$W17, "") -> 0.06667999402
I32: Central Tendency | J32: 10-4, 10-5, 10-6 | S32: Central Tendency | U32: =IFERROR($R31*$W12, "") -> 0.3445133024 | V32: =IFERROR($R31*$W14, "") -> 0.06890266048 | W32: =IFERROR($R31*$W16, "") -> 0.03445133024 | X32: =IFERROR($R31*$W18, "") -> 0.01722566512
H59: Inhalation Cancer Risk Estimates | I59: =I29 -> High End | J59: =I30 -> Central Tendency | R59: Dermal Cancer Risk Estimates | S59: =S29 -> High End | T59: =S30 -> Central Tendency
H60: No Respirator | I60: =K29 -> 0.003813856016 | J60: =K30 -> 0.0001585922091 | R60: No Gloves (PF = 1) | S60: =U31 -> 1.33359988 | T60: =U32 -> 0.3445133024
H61: APF = 10 | I61: =L29 -> 0.0003813856016 | J61: =L30 -> 1.585922091e-05 | R61: Protective Gloves (PF = 5) | S61: =V31 -> 0.2667199761 | T61: =V32 -> 0.06890266048
H62: APF = 25 | I62: =M29 -> 0.0001525542406 | J62: =M30 -> 6.343688363e-06 | R62: Protective Gloves (Commercial uses, PF = 10) | S62: =W31 -> 0.133359988 | T62: =W32 -> 0.03445133024
A63: = | H63: APF = 50 | I63: =N29 -> 7.627712032e-05 | J63: =N30 -> 3.171844181e-06 | R63: Protective Gloves (Industrial uses, PF = 20) | S63: =X31 -> 0.06667999402 | T63: =X32 -> 0.01722566512
H64: APF = 1,000 | I64: =O29 -> 3.813856016e-06 | J64: =O30 -> 1.585922091e-07
H65: APF = 10,000 | I65: =P29 -> 3.813856016e-07 | J65: =P30 -> 1.585922091e-08

Sheet Health Data
B3: Look-up Values and Risk Parameter Values
G4: Inhalation | H4: Dermal | J4: Inhalation | K4: Dermal
F5: Acute and Chronic, Non-Cancer Parameters | J5: Cancer Parameters | N5: Look-up Table Values
C6: Toxicity Endpoint | E6: Study | F6: Code | G6: HEC (mg/m3) | H6: HED (mg/kg-d) | I6: Benchmark MOE | J6: IUR (mg/m3)-1 | K6: CSF (mg/kg-d)-1 | O6: Exposure Percentiles | P6: Target Cancer Risk Level
B7: Acute, Non-Cancer | D7: Short-term liver effects | E7: Mattie et al., 2012 | F7: Tox1 | G7: 284 | H7: 35.4 | I7: 300 | J7: -- | K7: -- | O7: High End | P7: =0.000001 -> 1e-06
B8: Chronic, Non-Cancer | D8: Centribular necrosis; Liver | E8: Kasai et al., 2009 | F8: Tox2 | G8: =(119000)/ug_per_mg -> 119 | H8: -- | I8: 30 | J8: -- | K8: -- | O8: Central Tendancy | P8: =0.00001 -> 1e-05
D9: Olfactory epithelium effects (i.e., metaplasia and atrophy) | E9: Kasai et al., 2009 | F9: Tox3 | G9: 12.8 | H9: 1.6 | I9: 30 | J9: -- | K9: --
D10: Liver effects | E10: Kociba et al., 1974 | F10: Tox4 | G10: -- | H10: 2.56 | I10: 30 | J10: -- | K10: -- | P10: =0.0001 -> 0.0001
B11: Chronic, Cancer | C11: Cancer | D11: Result of combined cancer modeling (including liver) | E11: Kasai et al., 2009 | F11: Tox5 | G11: -- | H11: -- | I11: -- | J11: =(0.000001)*ug_per_mg -> 0.001 | K11: --
D12: liver cancer in female mice | E12: Kano et al., 2009 | F12: Tox6 | G12: -- | H12: -- | I12: -- | J12: -- | K12: 0.123 | N12: HEC conversion factor
N13: =O15/O14 -> 0.2775066397 | P13: ppm/mg/m3
N14: 1,4-Dioxane MW | O14: 88.106 | P14: g/mol
N15: Molar Volume | O15: 24.45 | P15: L/mol
N18: Data for Risk Graph on Dashboard | P18: High End | Q18: Central Tendancy
N19: Occupational Non-user | P19: =Dashboard!$G$32 -> 0.001319318871 | Q19: =Dashboard!$G$33 -> 0.0001754118879
N20: Worker | P20: =Dashboard!$E$32 -> High End | Q20: =Dashboard!E33 -> Central Tendency
N21: =_xlfn.CONCAT(Dashboard!C7," ",Dashboard!M4," Exposure Estimates") -> 8-hr TWA Exposures Worker Type (select) Exposure Estimates
N24: Occupational Non-user | O24: =Dashboard!L39 -> 0
N25: Worker | O25: =Dashboard!H39 -> 0

Sheet Dermal Exposure
A3: For Dashboard | G3: Dermal Calculation Numbers | N3: Calculated Doses
D4: Exposure Category | E4: Exposure Level | G4: Max Yderm | H4: Calculated Fraction Absorbed, Fabs | I4: Exposure Frequency (EF) (days/yr) | J4: Exposure Frequency (FT) (event/day) | K4: 2-Hand Surface Area (cm2) | L4: Body Weight (kg) | M4: Quantity Remaining on Skin (Qu) (mg/cm2-event) | N4: Potential Dose Rate | O4: Acute Retained Dose | P4: Chronic Retained Dose, Non-Cancer | Q4: Chronic Retained Dose, Cancer | R4: Notes
A6: Look-up Name | B6: Condition of Use | C6: Worker Type | F6: Bin | N6: APDRexp (mg/day) | O6: ADD1,4-Dioxane (mg/kg-day) | P6: CRD1,4-Dioxane (mg/kg-day) | Q6: CRD1,4-Dioxane (mg/kg-day)
A7: =Dashboard!$C$5 -> Repackaging (Bottle) | B7: =VLOOKUP($A7,'Dermal Crosswalk'!$B$6:$J$16,2,FALSE) -> Repackaging | C7: =Dashboard!$M$5 -> Average Adult Worker | D7: No Gloves | E7: High End | F7: =VLOOKUP($A7,'Dermal Crosswalk'!$B$6:$J$16,3,FALSE) -> 1 | G7: =VLOOKUP($A7,'Dermal Crosswalk'!$B$6:$J$16,4,FALSE) -> 1 | H7: =VLOOKUP($A7,'Dermal Crosswalk'!$B$6:$J$16,9,FALSE) -> 0.782844134 | I7: =VLOOKUP($A7,'Inhalation Exposure'!$C$6:$G$19,MATCH($E7,'Inhalation Exposure'!$F$5:$G$5,0)+3,FALSE) -> 32 | J7: 1 | K7: =IF(E7="High End",HLOOKUP($C7,'Exposure Factors'!$C$5:$D$11,4,FALSE),HLOOKUP($C7,'Exposure Factors'!$C$5:$D$11,3,FALSE)) -> 1070 | L7: =HLOOKUP($C7,'Exposure Factors'!$C$5:$D$11,2,FALSE) -> 80 | M7: 2.1 | N7: =IFERROR(K7*M7*H7*G7*J7,"Not Assessed") -> 1759.050769 | O7: =IFERROR($N7/L7,"Not Assessed") -> 21.98813461 | P7: =IFERROR($O7*$I7*HLOOKUP($C7,'Exposure Factors'!$C$5:$D$11,MATCH($E7,'Exposure Factors'!$E$9:$E$10,0)+4,FALSE)/(260*HLOOKUP($C7,'Exposure Factors'!$C$5:$D$11,MATCH($E7,'Exposure Factors'!$E$9:$E$10,0)+4,FALSE)),"Not Assessed") -> 2.706231952 | Q7: =IFERROR($O7*$I7*HLOOKUP($C7,'Exposure Factors'!$C$5:$D$11,MATCH($E7,'Exposure Factors'!$E$9:$E$10,0)+4,FALSE)/(260*HLOOKUP($C7,'Exposure Factors'!$C$5:$D$11,7,FALSE)),"Not Assessed") -> 1.387811258
A8: =Dashboard!$C$5 -> Repackaging (Bottle) | B8: =VLOOKUP($A8,'Dermal Crosswalk'!$B$6:$J$16,2,FALSE) -> Repackaging | C8: =Dashboard!$M$5 -> Average Adult Worker | D8: No Gloves | E8: Central Tendency | F8: =VLOOKUP($A8,'Dermal Crosswalk'!$B$6:$J$16,3,FALSE) -> 1 | G8: =VLOOKUP($A8,'Dermal Crosswalk'!$B$6:$J$16,4,FALSE) -> 1 | H8: =VLOOKUP($A8,'Dermal Crosswalk'!$B$6:$J$16,9,FALSE) -> 0.782844134 | I8: =VLOOKUP($A8,'Inhalation Exposure'!$C$6:$G$19,MATCH($E8,'Inhalation Exposure'!$F$5:$G$5,0)+3,FALSE) -> 3 | J8: 1 | K8: =IF(E8="High End",HLOOKUP($C8,'Exposure Factors'!$C$5:$D$11,4,FALSE),HLOOKUP($C8,'Exposure Factors'!$C$5:$D$11,3,FALSE)) -> 535 | L8: =HLOOKUP($C8,'Exposure Factors'!$C$5:$D$11,2,FALSE) -> 80 | M8: 1.4 | N8: =IFERROR(K8*M8*H8*G8*J8,"Not Assessed") -> 586.3502563 | O8: =IFERROR($N8/L8,"Not Assessed") -> 7.329378204 | P8: =IFERROR($O8*$I8*HLOOKUP($C8,'Exposure Factors'!$C$5:$D$11,MATCH($E8,'Exposure Factors'!$E$9:$E$10,0)+4,FALSE)/(260*HLOOKUP($C8,'Exposure Factors'!$C$5:$D$11,MATCH($E8,'Exposure Factors'!$E$9:$E$10,0)+4,FALSE)),"Not Assessed") -> 0.08456974851 | Q8: =IFERROR($O8*$I8*HLOOKUP($C8,'Exposure Factors'!$C$5:$D$11,MATCH($E8,'Exposure Factors'!$E$9:$E$10,0)+4,FALSE)/(260*HLOOKUP($C8,'Exposure Factors'!$C$5:$D$11,7,FALSE)),"Not Assessed") -> 0.03361105389
A9: For Risk Reduction (RR) Heat Map
A10: =RR!$H$5 -> Manufacturing | B10: =VLOOKUP($A10,'Dermal Crosswalk'!$B$6:$J$16,2,FALSE) -> Manufacturing | C10: =RR!$R$5 -> Average Adult Worker | D10: No Gloves | E10: High End | F10: =VLOOKUP($A10,'Dermal Crosswalk'!$B$6:$J$16,3,FALSE) -> 1 | G10: =VLOOKUP($A10,'Dermal Crosswalk'!$B$6:$J$16,4,FALSE) -> 1 | H10: =VLOOKUP($A10,'Dermal Crosswalk'!$B$6:$J$16,9,FALSE) -> 0.782844134 | I10: =VLOOKUP($A10,'Inhalation Exposure'!$C$6:$G$19,MATCH($E10,'Inhalation Exposure'!$F$5:$G$5,0)+3,FALSE) -> 250 | J10: 1 | K10: =IF(E10="High End",HLOOKUP($C10,'Exposure Factors'!$C$5:$D$11,4,FALSE),HLOOKUP($C10,'Exposure Factors'!$C$5:$D$11,3,FALSE)) -> 1070 | L10: =HLOOKUP($C10,'Exposure Factors'!$C$5:$D$11,2,FALSE) -> 80 | M10: 2.1 | N10: =IFERROR(K10*M10*H10*G10*J10,"Not Assessed") -> 1759.050769 | O10: =IFERROR($N10/L10,"Not Assessed") -> 21.98813461 | P10: =IFERROR($O10*$I10*HLOOKUP($C10,'Exposure Factors'!$C$5:$D$11,MATCH($E10,'Exposure Factors'!$E$9:$E$10,0)+4,FALSE)/(260*HLOOKUP($C10,'Exposure Factors'!$C$5:$D$11,MATCH($E10,'Exposure Factors'!$E$9:$E$10,0)+4,FALSE)),"Not Assessed") -> 21.14243713 | Q10: =IFERROR($O10*$I10*HLOOKUP($C10,'Exposure Factors'!$C$5:$D$11,MATCH($E10,'Exposure Factors'!$E$9:$E$10,0)+4,FALSE)/(260*HLOOKUP($C10,'Exposure Factors'!$C$5:$D$11,7,FALSE)),"Not Assessed") -> 10.84227545
A11: =RR!$H$5 -> Manufacturing | B11: =VLOOKUP($A11,'Dermal Crosswalk'!$B$6:$J$16,2,FALSE) -> Manufacturing | C11: =RR!$R$5 -> Average Adult Worker | D11: No Gloves | E11: Central Tendency | F11: =VLOOKUP($A11,'Dermal Crosswalk'!$B$6:$J$16,3,FALSE) -> 1 | G11: =VLOOKUP($A11,'Dermal Crosswalk'!$B$6:$J$16,4,FALSE) -> 1 | H11: =VLOOKUP($A11,'Dermal Crosswalk'!$B$6:$J$16,9,FALSE) -> 0.782844134 | I11: =VLOOKUP($A11,'Inhalation Exposure'!$C$6:$G$19,MATCH($E11,'Inhalation Exposure'!$F$5:$G$5,0)+3,FALSE) -> 250 | J11: 1 | K11: =IF(E11="High End",HLOOKUP($C11,'Exposure Factors'!$C$5:$D$11,4,FALSE),HLOOKUP($C11,'Exposure Factors'!$C$5:$D$11,3,FALSE)) -> 535 | L11: =HLOOKUP($C11,'Exposure Factors'!$C$5:$D$11,2,FALSE) -> 80 | M11: 1.4 | N11: =IFERROR(K11*M11*H11*G11*J11,"Not Assessed") -> 586.3502563 | O11: =IFERROR($N11/L11,"Not Assessed") -> 7.329378204 | P11: =IFERROR($O11*$I11*HLOOKUP($C11,'Exposure Factors'!$C$5:$D$11,MATCH($E11,'Exposure Factors'!$E$9:$E$10,0)+4,FALSE)/(260*HLOOKUP($C11,'Exposure Factors'!$C$5:$D$11,MATCH($E11,'Exposure Factors'!$E$9:$E$10,0)+4,FALSE)),"Not Assessed") -> 7.047479042 | Q11: =IFERROR($O11*$I11*HLOOKUP($C11,'Exposure Factors'!$C$5:$D$11,MATCH($E11,'Exposure Factors'!$E$9:$E$10,0)+4,FALSE)/(260*HLOOKUP($C11,'Exposure Factors'!$C$5:$D$11,7,FALSE)),"Not Assessed") -> 2.800921158

Sheet Dermal Crosswalk
K3: Calculated High-End Doses | O3: Calculated Central Tendency Doses
F4: High-End | H4: Central Tendency | K4: Potential Dose Rate | L4: Acute Retained Dose | M4: Chronic Retained Dose, Non-Cancer | N4: Chronic Retained Dose, Cancer | O4: Potential Dose Rate | P4: Acute Retained Dose | Q4: Chronic Retained Dose, Non-Cancer | R4: Chronic Retained Dose, Cancer
A5: OES | B5: Look-up Name | C5: Condition of Use | D5: Bin | E5: Max Yderm | F5: Qu (mg/cm2-event) | G5: Surface Area (cm2) | H5: Qu (mg/cm2-event) | I5: Surface Area (cm2) | J5: Fraction Absorbed, fabs | K5: APDRexp (mg/day) | L5: ARD1,4-Dioxane (mg/kg-day) | M5: CRD1,4-Dioxane (mg/kg-day) | N5: CRD1,4-Dioxane (mg/kg-day) | O5: APDRexp (mg/day) | P5: ARD1,4-Dioxane (mg/kg-day) | Q5: CRD1,4-Dioxane (mg/kg-day) | R5: CRD1,4-Dioxane (mg/kg-day)
A6: 1 | B6: Manufacturing | C6: Manufacturing | D6: 1 | E6: 1 | F6: 2.1 | G6: ='Exposure Factors'!$C$8 -> 1070 | H6: 1.4 | I6: ='Exposure Factors'!$C$7 -> 535 | J6: 0.782844134 | K6: =F6*G6*$E6*$J6 -> 1759.050769 | L6: =K6/BW_default -> 21.98813461 | M6: =(L6*VLOOKUP($A6,'Inhalation Exposure'!$B$6:$F$19,5,FALSE)*WY_HE_default)/(EF*WY_HE_default) -> 21.14243713 | N6: =(L6*VLOOKUP($A6,'Inhalation Exposure'!$B$6:$F$19,5,FALSE)*WY_HE_default)/(EF*LT) -> 10.84227545 | O6: =H6*I6*$E6*$J6 -> 586.3502563 | P6: =O6/BW_default -> 7.329378204 | Q6: =(P6*VLOOKUP($A6,'Inhalation Exposure'!$B$6:$G$19,6,FALSE)*WY_CT_default)/(EF*WY_CT_default) -> 7.047479042 | R6: =(P6*VLOOKUP($A6,'Inhalation Exposure'!$B$6:$G$19,6,FALSE)*WY_CT_default)/(EF*LT) -> 2.800921158
A7: 2a | B7: Repackaging (Bottle) | C7: Repackaging | D7: 1 | E7: 1 | F7: 2.1 | G7: ='Exposure Factors'!$C$8 -> 1070 | H7: 1.4 | I7: ='Exposure Factors'!$C$7 -> 535 | J7: 0.782844134 | K7: =F7*G7*$E7*$J7 -> 1759.050769 | L7: 21.98813461 | M7: =(L7*VLOOKUP($A7,'Inhalation Exposure'!$B$6:$F$19,5,FALSE)*WY_HE_default)/(EF*WY_HE_default) -> 2.706231952 | N7: =(L7*VLOOKUP($A7,'Inhalation Exposure'!$B$6:$F$19,5,FALSE)*WY_HE_default)/(EF*LT) -> 1.387811258 | O7: =H7*I7*$E7*$J7 -> 586.3502563 | P7: 7.329378204 | Q7: =(P7*VLOOKUP($A7,'Inhalation Exposure'!$B$6:$G$19,6,FALSE)*WY_CT_default)/(EF*WY_CT_default) -> 0.08456974851 | R7: =(P7*VLOOKUP($A7,'Inhalation Exposure'!$B$6:$G$19,6,FALSE)*WY_CT_default)/(EF*LT) -> 0.03361105389
A8: 2b | B8: Repackaging (Drum) | C8: Repackaging | D8: 1 | E8: 1 | F8: 2.1 | G8: ='Exposure Factors'!$C$8 -> 1070 | H8: 1.4 | I8: ='Exposure Factors'!$C$7 -> 535 | J8: 0.782844134 | K8: 1759.050769 | L8: 21.98813461 | M8: =(L8*VLOOKUP($A8,'Inhalation Exposure'!$B$6:$F$19,5,FALSE)*WY_HE_default)/(EF*WY_HE_default) -> 4.905045414 | N8: =(L8*VLOOKUP($A8,'Inhalation Exposure'!$B$6:$F$19,5,FALSE)*WY_HE_default)/(EF*LT) -> 2.515407904 | O8: 586.3502563 | P8: 7.329378204 | Q8: =(P8*VLOOKUP($A8,'Inhalation Exposure'!$B$6:$G$19,6,FALSE)*WY_CT_default)/(EF*WY_CT_default) -> 0.169139497 | R8: =(P8*VLOOKUP($A8,'Inhalation Exposure'!$B$6:$G$19,6,FALSE)*WY_CT_default)/(EF*LT) -> 0.06722210779
A9: 3 | B9: Industrial Use | C9: Industrial Use | D9: 1 | E9: 1 | F9: 2.1 | G9: ='Exposure Factors'!$C$8 -> 1070 | H9: 1.4 | I9: ='Exposure Factors'!$C$7 -> 535 | J9: 0.782844134 | K9: 1759.050769 | L9: 21.98813461 | M9: =(L9*VLOOKUP($A9,'Inhalation Exposure'!$B$6:$F$19,5,FALSE)*WY_HE_default)/(EF*WY_HE_default) -> 21.14243713 | N9: =(L9*VLOOKUP($A9,'Inhalation Exposure'!$B$6:$F$19,5,FALSE)*WY_HE_default)/(EF*LT) -> 10.84227545 | O9: 586.3502563 | P9: 7.329378204 | Q9: =(P9*VLOOKUP($A9,'Inhalation Exposure'!$B$6:$G$19,6,FALSE)*WY_CT_default)/(EF*WY_CT_default) -> 7.047479042 | R9: =(P9*VLOOKUP($A9,'Inhalation Exposure'!$B$6:$G$19,6,FALSE)*WY_CT_default)/(EF*LT) -> 2.800921158
A10: 10 | B10: Disposal | C10: Disposal | D10: 1 | E10: 1 | F10: 2.1 | G10: ='Exposure Factors'!$C$8 -> 1070 | H10: 1.4 | I10: ='Exposure Factors'!$C$7 -> 535 | J10: 0.782844134 | K10: 1759.050769 | L10: 21.98813461 | M10: =(L10*VLOOKUP($A10,'Inhalation Exposure'!$B$6:$F$19,5,FALSE)*WY_HE_default)/(EF*WY_HE_default) -> 21.14243713 | N10: =(L10*VLOOKUP($A10,'Inhalation Exposure'!$B$6:$F$19,5,FALSE)*WY_HE_default)/(EF*LT) -> 10.84227545 | O10: 586.3502563 | P10: 7.329378204 | Q10: =(P10*VLOOKUP($A10,'Inhalation Exposure'!$B$6:$G$19,6,FALSE)*WY_CT_default)/(EF*WY_CT_default) -> 7.047479042 | R10: =(P10*VLOOKUP($A10,'Inhalation Exposure'!$B$6:$G$19,6,FALSE)*WY_CT_default)/(EF*LT) -> 2.800921158
A11: 4 | B11: Open System Functional Fluids | C11: Open System Functional Fluids | D11: 2 | E11: 0.001 | F11: 2.1 | G11: ='Exposure Factors'!$C$8 -> 1070 | H11: 1.4 | I11: ='Exposure Factors'!$C$7 -> 535 | J11: 0.782844134 | K11: 1.759050769 | L11: 0.02198813461 | M11: =(L11*VLOOKUP($A11,'Inhalation Exposure'!$B$6:$F$19,5,FALSE)*WY_HE_default)/(EF*WY_HE_default) -> 0.02114243713 | N11: =(L11*VLOOKUP($A11,'Inhalation Exposure'!$B$6:$F$19,5,FALSE)*WY_HE_default)/(EF*LT) -> 0.01084227545 | O11: 0.5863502563 | P11: 0.007329378204 | Q11: =(P11*VLOOKUP($A11,'Inhalation Exposure'!$B$6:$G$19,6,FALSE)*WY_CT_default)/(EF*WY_CT_default) -> 0.007047479042 | R11: =(P11*VLOOKUP($A11,'Inhalation Exposure'!$B$6:$G$19,6,FALSE)*WY_CT_default)/(EF*LT) -> 0.002800921158
A12: 6 | B12: Lab Chemicals | C12: Lab Chemicals | D12: 3 | E12: 1 | F12: 2.1 | G12: ='Exposure Factors'!$C$8 -> 1070 | H12: 1.4 | I12: ='Exposure Factors'!$C$7 -> 535 | J12: 0.8563957662 | K12: 1924.321287 | L12: 24.05401608 | M12: =(L12*VLOOKUP($A12,'Inhalation Exposure'!$B$6:$F$19,5,FALSE)*WY_HE_default)/(EF*WY_HE_default) -> 23.12886162 | N12: =(L12*VLOOKUP($A12,'Inhalation Exposure'!$B$6:$F$19,5,FALSE)*WY_HE_default)/(EF*LT) -> 11.86095468 | O12: 641.4404289 | P12: 8.018005362 | Q12: =(P12*VLOOKUP($A12,'Inhalation Exposure'!$B$6:$G$19,6,FALSE)*WY_CT_default)/(EF*WY_CT_default) -> 7.70962054 | R12: =(P12*VLOOKUP($A12,'Inhalation Exposure'!$B$6:$G$19,6,FALSE)*WY_CT_default)/(EF*LT) -> 3.064079958
A13: 8 | B13: Use of Printing Inks | C13: Use of Printing Inks | D13: 3 | E13: 1 | F13: 2.1 | G13: ='Exposure Factors'!$C$8 -> 1070 | H13: 1.4 | I13: ='Exposure Factors'!$C$7 -> 535 | J13: 0.8563957662 | K13: 1924.321287 | L13: 24.05401608 | M13: =(L13*VLOOKUP($A13,'Inhalation Exposure'!$B$6:$F$19,5,FALSE)*WY_HE_default)/(EF*WY_HE_default) -> 23.12886162 | N13: =(L13*VLOOKUP($A13,'Inhalation Exposure'!$B$6:$F$19,5,FALSE)*WY_HE_default)/(EF*LT) -> 11.86095468 | O13: 641.4404289 | P13: 8.018005362 | Q13: =(P13*VLOOKUP($A13,'Inhalation Exposure'!$B$6:$G$19,6,FALSE)*WY_CT_default)/(EF*WY_CT_default) -> 7.70962054 | R13: =(P13*VLOOKUP($A13,'Inhalation Exposure'!$B$6:$G$19,6,FALSE)*WY_CT_default)/(EF*LT) -> 3.064079958
A14: 5 | B14: Spray Foam Application | C14: Spray Foam Application | D14: 4 | E14: 0.001 | F14: 2.1 | G14: ='Exposure Factors'!$C$8 -> 1070 | H14: 1.4 | I14: ='Exposure Factors'!$C$7 -> 535 | J14: 0.8563957662 | K14: 1.924321287 | L14: 0.02405401608 | M14: =(L14*VLOOKUP($A14,'Inhalation Exposure'!$B$6:$F$19,5,FALSE)*WY_HE_default)/(EF*WY_HE_default) -> 0.02312886162 | N14: =(L14*VLOOKUP($A14,'Inhalation Exposure'!$B$6:$F$19,5,FALSE)*WY_HE_default)/(EF*LT) -> 0.01186095468 | O14: 0.6414404289 | P14: 0.008018005362 | Q14: =(P14*VLOOKUP($A14,'Inhalation Exposure'!$B$6:$G$19,6,FALSE)*WY_CT_default)/(EF*WY_CT_default) -> 0.00770962054 | R14: =(P14*VLOOKUP($A14,'Inhalation Exposure'!$B$6:$G$19,6,FALSE)*WY_CT_default)/(EF*LT) -> 0.003064079958
A15: 7 | B15: Film Cement | C15: Film Cement | D15: 5 | E15: 0.5 | F15: 2.1 | G15: ='Exposure Factors'!$C$8 -> 1070 | H15: 1.4 | I15: ='Exposure Factors'!$C$7 -> 535 | J15: 0.8563957662 | K15: 962.1606434 | L15: 12.02700804 | M15: =(L15*VLOOKUP($A15,'Inhalation Exposure'!$B$6:$F$19,5,FALSE)*WY_HE_default)/(EF*WY_HE_default) -> 11.56443081 | N15: =(L15*VLOOKUP($A15,'Inhalation Exposure'!$B$6:$F$19,5,FALSE)*WY_HE_default)/(EF*LT) -> 5.930477338 | O15: 320.7202145 | P15: 4.009002681 | Q15: =(P15*VLOOKUP($A15,'Inhalation Exposure'!$B$6:$G$19,6,FALSE)*WY_CT_default)/(EF*WY_CT_default) -> 3.85481027 | R15: =(P15*VLOOKUP($A15,'Inhalation Exposure'!$B$6:$G$19,6,FALSE)*WY_CT_default)/(EF*LT) -> 1.532039979
A16: 9 | B16: Dry Film Lubricant | C16: Dry Film Lubricant | D16: 6 | E16: 1 | F16: 2.1 | G16: ='Exposure Factors'!$C$8 -> 1070 | H16: 1.4 | I16: ='Exposure Factors'!$C$7 -> 535 | J16: 0.782844134 | K16: 1759.050769 | L16: 21.98813461 | M16: =(L16*VLOOKUP($A16,'Inhalation Exposure'!$B$6:$F$19,5,FALSE)*WY_HE_default)/(EF*WY_HE_default) -> 4.735905917 | N16: =(L16*VLOOKUP($A16,'Inhalation Exposure'!$B$6:$F$19,5,FALSE)*WY_HE_default)/(EF*LT) -> 2.428669701 | O16: 586.3502563 | P16: 7.329378204 | Q16: =(P16*VLOOKUP($A16,'Inhalation Exposure'!$B$6:$G$19,6,FALSE)*WY_CT_default)/(EF*WY_CT_default) -> 1.578635306 | R16: =(P16*VLOOKUP($A16,'Inhalation Exposure'!$B$6:$G$19,6,FALSE)*WY_CT_default)/(EF*LT) -> 0.6274063394

Sheet Inhalation Exposure
F3: Exposure Frequency | H3: Eight Hour TWA Exposures | J3: 24-hr Acute Exposures | L3: Chronic, Non-Cancer Exposures | N3: Chronic, Cancer Exposures
F4: (day/yr) | H4: C8-hr TWA (mg/m3) | J4: AEC24-hr TWA (mg/m3) | L4: ADC8-hr TWA (mg/m3) | N4: LADC8-hr TWA (mg/m3)
B5: OES Group | C5: Condition of Use | D5: Category | E5: Exposure Scenario | F5: High End | G5: Central Tendency | H5: High End | I5: Central Tendency | J5: High End | K5: Central Tendency | L5: High End | M5: Central Tendency | N5: High End | O5: Central Tendency | P5: 8 hr Data Points | Q5: Total Datapoints | R5: Sources & Notes | S5: Data Type
B6: 1 | C6: Manufacturing | D6: Worker | E6: 8-hr | F6: 250 | G6: 250 | H6: 7.7345 | I6: 0.415 | L6: 7.437019231 | M6: 0.3990384615 | N6: 3.813856016 | O6: 0.1585922091 | P6: 30 | Q6: 30 | R6: BASF, 2017; BASF, 2016 | S6: Monitoring Data
B7: 2a | C7: Repackaging (Bottle) | D7: Worker | E7: 8-hr | F7: 32 | G7: 3 | H7: 33.11090714 | I7: 9.284137799 | L7: 3.394554304 | M7: 0.4632765303 | N7: 1.319318871 | O7: 0.1754118879 | P7: N/A | Q7: N/A | R7: Monte Carlo Simulation results | S7: Modeled Data
B8: 2b | C8: Repackaging (Drum) | D8: Worker | E8: 8-hr | F8: 58 | G8: 6 | H8: 38.15304697 | I8: 10.64730707 | L8: 3.394554304 | M8: 0.4632765303 | N8: 1.319318871 | O8: 0.1754118879 | P8: N/A | Q8: N/A | R8: Monte Carlo Simulation results | S8: Modeled Data
B9: 3 | C9: Industrial Use | D9: Worker | E9: 8-hr | F9: 250 | G9: 250 | H9: 20 | I9: 5 | L9: =H9*ED_8*F9*WY_high/AT_ADC_high -> 19.23076923 | M9: =I9*ED_8*G9*WY_mid/AT_ADC_mid -> 4.807692308 | N9: =H9*ED_8*F9*WY_high/AT_LADC -> 9.861932939 | O9: =I9*ED_8*G9*WY_mid/AT_LADC -> 1.910749507 | P9: <293 | Q9: <294 | R9: EU, 2002 | S9: Monitoring Data
B10: 4 | C10: Open System Functional Fluids | D10: Worker | E10: 8-hr | F10: 250 | G10: 250 | H10: 0.003791394123 | I10: 0.001065764688 | L10: 0.003645571272 | M10: 0.001024773738 | N10: 0.00145319589 | O10: 0.0003875929123 | P10: N/A | Q10: N/A | R10: Monte Carlo Simulation results | S10: Modeled Data
B11: 4 | C11: Open System Functional Fluids | D11: ONU | E11: 8-hr | F11: 250 | G11: 250 | H11: 0.000251625 | I11: 0.0001491875 | L11: =H11*ED_8*F11*WY_high/AT_ADC_high -> 0.0002419471154 | M11: =I11*ED_8*G11*WY_mid/AT_ADC_mid -> 0.0001434495192 | N11: =H11*ED_8*F11*WY_high/AT_LADC -> 0.0001240754438 | O11: =I11*ED_8*G11*WY_mid/AT_LADC -> 5.701198841e-05 | P11: 5 | Q11: 5 | R11: Area monitoring data | S11: Monitoring Data
B12: 5 | C12: Spray Foam Application | D12: Worker | E12: 8-hr | F12: 250 | G12: 250 | H12: 0.01181854676 | I12: 0.009728054503 | L12: 0.01136398727 | M12: 0.009353898561 | N12: 0.005254765396 | O12: 0.003629666511 | P12: N/A | Q12: N/A | R12: Monte Carlo Simulation results | S12: Modeled Data
B13: 5 | C13: Spray Foam Application | D13: ONU | E13: 8-hr | F13: 250 | G13: 250 | H13: 0.001875 | I13: 0.001875 | L13: =H13*ED_8*F13*WY_high/AT_ADC_high -> 0.001802884615 | M13: =I13*ED_8*G13*WY_mid/AT_ADC_mid -> 0.001802884615 | N13: =H13*ED_8*F13*WY_high/AT_LADC -> 0.000924556213 | O13: =I13*ED_8*G13*WY_mid/AT_LADC -> 0.0007165310651 | P13: N/A | Q13: N/A | R13: What-if exposures based on OSHA PNOR PEL adjusted for dioxane weight fraction. | S13: Modeled Data
B14: 6 | C14: Lab Chemicals | D14: Worker | E14: 8-hr | F14: 250 | G14: 250 | H14: 5.749375 | I14: 0.11 | L14: 5.528245192 | M14: 0.1057692308 | N14: 2.834997535 | O14: 0.04203648915 | P14: 334 | Q14: 335 | R14: EU, 2002 | S14: Monitoring Data
B15: 7 | C15: Film Cement | D15: Worker | E15: 8-hr | F15: 250 | G15: 250 | H15: 2.807291667 | I15: 1.521875 | L15: =H15*ED_8*F15*WY_high/AT_ADC_high -> 2.69931891 | M15: =I15*ED_8*G15*WY_mid/AT_ADC_mid -> 1.463341346 | N15: =H15*ED_8*F15*WY_high/AT_LADC -> 1.384266108 | O15: =I15*ED_8*G15*WY_mid/AT_LADC -> 0.5815843812 | P15: 4 | Q15: 5 | R15: NIOSH, 1982 | S15: Monitoring Data
B16: 7 | C16: Film Cement | D16: ONU | E16: 8-hr | F16: 250 | G16: 250 | H16: 0.1041666667 | I16: 0.1041666667 | L16: 0.1001602564 | M16: 0.1001602564 | N16: 0.05136423406 | O16: 0.03980728139 | P16: 1 | Q16: 1 | R16: NIOSH, 1982 | S16: Monitoring Data
B17: 8 | C17: Use of Printing Inks | D17: Worker | E17: 8-hr | F17: 250 | G17: 250 | H17: 0.0972 | I17: 0.0972 | L17: 0.09346153846 | M17: 0.09346153846 | N17: 0.04792899408 | O17: 0.03714497041 | P17: Unknown | Q17: Unknown | R17: Ryand and Hubbard, 2016 | S17: Monitoring Data
B18: 9 | C18: Dry Film Lubricant | D18: Worker | E18: 8-hr | F18: 56 | G18: 56 | H18: 1.602 | I18: 0.468 | L18: 0.3450461538 | M18: 0.1008 | N18: 0.1769467456 | O18: 0.04006153846 | P18: 7 | Q18: 15 | R18: KCNSC, 2018. 15 PBZ samples, from which 7 8-hr TWAs are derived. | S18: Monitoring Data
B19: 10 | C19: Disposal | D19: Worker | E19: 8-hr | F19: 250 | G19: 250 | H19: 6.642909927 | I19: 1.871811663 | L19: 6.387413391 | M19: 1.799818907 | N19: 2.54012669 | O19: 0.6798348617 | P19: N/A | Q19: N/A | R19: Monte Carlo Simulation results | S19: Modeled Data
M23: 1000 | N23: CT | O23: HE
L24: Manufacturing | M24: Worker | N24: =O6*$M$23 -> 158.5922091 | O24: =N6*$M$23 -> 3813.856016
L25: Repackaging (Bottle) | M25: Worker | N25: 175.4118879 | O25: 1319.318871
L26: Repackaging (Drum) | M26: Worker | N26: 175.4118879 | O26: 1319.318871
L27: Industrial Use | M27: Worker | N27: 1910.749507 | O27: 9861.932939
L28: Open System Functional Fluids | M28: Worker | N28: 0.3875929123 | O28: 1.45319589
L29: Open System Functional Fluids | M29: ONU | N29: 0.05701198841 | O29: 0.1240754438
L30: Spray Foam Application | M30: Worker | N30: 3.629666511 | O30: 5.254765396
L31: Spray Foam Application | M31: ONU | N31: 0.7165310651 | O31: 0.924556213
L32: Lab Chemicals | M32: Worker | N32: 42.03648915 | O32: 2834.997535
L33: Film Cement | M33: Worker | N33: 581.5843812 | O33: 1384.266108
L34: Film Cement | M34: ONU | N34: 39.80728139 | O34: 51.36423406
L35: Use of Printing Inks | M35: Worker | N35: 37.14497041 | O35: 47.92899408
L36: Dry Film Lubricant | M36: Worker | N36: 40.06153846 | O36: 176.9467456
L37: Disposal | M37: Worker | N37: 679.8348617 | O37: 2540.12669

Sheet List Values
B3: Conditions of Use | E3: Exposure Data Types | H3: Dermal Exposure Scenario
B4: Manufacturing | E4: Monitoring Data | H4: 5
B5: Repackaging (Bottle) | E5: Modeled Data | H5: 10
B6: Repackaging (Drum) | H6: 20
B7: Industrial Use
B8: Open System Functional Fluids | E8: Worker Type
B9: Spray Foam Application | E9: Average Adult Worker
B10: Lab Chemicals | E10: Woman of Childbearing Age | H10: Exposure Type
B11: Film Cement | H11: Worker
B12: Use of Printing Inks | H12: ONU
B13: Dry Film Lubricant
B14: Disposal | E14: BMDL Percentile
E15: 0.5 | H15: 1,4-Dioxane
E16: 0.99
H17: MW | I17: 88.1 | J17: g/mol
E18: Assigned Protection Factor | H18: Molar Volume | I18: 24.45 | J18: L/mol
E19: 10
E20: 25 | H20: OSHA PEL | I20: 100 | J20: ppm
E21: 50 | I21: =I20/I18*MW -> 360.3271984 | J21: mg/m3
E22: 1000
E23: 10000 | H23: Unit Conversions
H24: Micrograms to milligrams | I24: 1000 | J24: μg/mg
H26: Parameter Name | I26: Symbol | J26: Value | K26: Unit
H27: Exposure Duration (8-hr) | I27: ED_8 | J27: 8 | K27: hr/day
H28: Exposure Duration (12-hr) | I28: ED_12 | J28: 12 | K28: hr/day
H29: Acute Exposure Averaging Time | I29: AT | J29: 24 | K29: hr/day
H30: Exposure Frequency | I30: EF | J30: 260 | K30: day/yr
H31: Working Years Per Lifetime (Mid) | I31: WY_mid | J31: 31 | K31: yr
H32: Working Years Per Lifetime (High) | I32: WY_high | J32: 40 | K32: yr
H33: Lifetime Years for LADC | I33: LT | J33: 78 | K33: yr
H34: Averaging time For ADC (Mid) | I34: AT_ADC_mid | J34: =WY_mid*EF*ED_8 -> 64480 | K34: hr
H35: Averaging time For ADC (High) | I35: AT_ADC_high | J35: =WY_high*EF*ED_8 -> 83200 | K35: hr
H36: Averaging time For LADC | I36: AT_LADC | J36: =LT*EF*ED_8 -> 162240 | K36: hr

Sheet Exposure Factors
B3: Exposure Factors
C5: Average Adult Worker | D5: Woman of Childbearing Age | E5: Characterization of Value
B6: Body Weight, BW (kg) | C6: 80 | D6: =AVERAGE(65.9,71.9,74.8,77.1) -> 72.425
B7: 1 Hand Surface Area (cm2) | C7: =C8/2 -> 535 | D7: =D8/2 -> 445 | E7: Central Tendency
B8: 2 Hand Surface Area (cm2) | C8: 1070 | D8: 890 | E8: High End
B9: Working Years - High-End (yr) | C9: 40 | D9: 40 | E9: High End
B10: Working Years - Central Tendency (yr) | C10: 31 | D10: 31 | E10: Central Tendency
B11: Lifetime | C11: 78 | D11: 78
B14: Woman of Childbearing Age Exposure Factors:
B15: Body Weight:
B16: From the Exposure Factors Handbook Table 8-5: Mean and Percentile Body Weights (kg) for Females Derived from NHANES (1990-2006) (1)
B17: Age 16 to <21 years: 65.9 kg (mean)
B18: Age 21 to <30 years: 71.9 kg (mean)
B19: Age 30 to <40 years: 74.8 kg (mean)
B20: Age 40 to <50 years: 77.1 kg (mean)
B23: (1) U.S. Environmental Protection Agency (EPA). (2011) Exposure Factors Handbook: 2011 Edition. National Center for Environmental Assessment, Washington, DC; EPA/600/R-09/052F. Available from the National Technical Information Service, Springfield, VA, and online at http://www.epa.gov/ncea/efh.
